Workbook

Sheet Global Business Solutions
A12: Contact Details :
A14: Richard Ryding
A15: Division Head
A16: richard@globalbusiness.co.za
A17: +27 83 440 2130
A20: Johnny Goldberg
A21: CEO
A22: johnny@iafrica.com
A23: +27 83 281 9571
A25: DATA INPUT AREAS
A27: COMPANY NAME | B27: Test
A29: FINANCIAL INFORMATION USED | B29: 2017-02-28
A31: Input Information | C31: Budget | D31: Actual
A32: Total Directors | D32: =Management!B53 -> 0
A33: Total Executive Directors | D33: =Management!B56 -> 0
A34: Total Other Executive Management | D34: =Management!B66 -> 0
A35: Senior and Other Executive Management Combined (Y/N) | C35: N
A36: Senior Management | D36: ='Employment Equity Worksheet'!L35 -> 0
A37: Middle Management | D37: ='Employment Equity Worksheet'!L36 -> 0
A38: Junior Management | D38: ='Employment Equity Worksheet'!L37 -> 0
A39: Payroll | D39: ='Skills Development'!B46 -> 0
A40: Head Count | D40: ='Employment Equity Worksheet'!L41 -> 0
A41: TMPS | C41: =+'Target - TMPS and NPAT'!D41 -> 0 | D41: =TMPS!D41 -> 0
A42: Turnover | D42: =+C42 -> 0
A43: NPAT | D43: =+C43 -> 0
A44: Supplier Development - Early Settlement Benefit used (Y/N) | C44: N
A45: Enterprise Development - Early Settlement Benefit used (Y/N) | C45: N
A46: Stats Table used | C46: Table 3

Sheet Sheet2 (hidden)

Sheet Scorecard
A1: COMPANY NAME | B1: ='Global Business Solutions'!B27 -> Test
A3: FINANCIAL INFORMATION USED | B3: ='Global Business Solutions'!B29 -> 2017-02-28
A5: GENERIC SCORECARD | C5: Performance | D5: Score | E5: Compliance Target | F5: Target Score | G5: Element Score | H5: Verification Agency | I5: Diff Per Verification Agency | J5: Total per Verification Agency | K5: Difference
A7: Ownership | G7: =SUM(D8:D14) -> 0 | J7: =SUM(H8:H14) -> 0 | K7: =+G7-J7 -> 0
A8: Voting Rights | C8: =+Ownership!D39 -> 0 | D8: =+Ownership!E39 -> 0 | E8: 25% + 1 | F8: 4 | H8: 0 | I8: =H8-D8 -> 0
A9: Women Voting Rights | C9: =+Ownership!D40 -> 0 | D9: =+Ownership!E40 -> 0 | E9: 0.1 | F9: 2 | H9: 0 | I9: =H9-D9 -> 0
A10: Economic Interest | C10: =+Ownership!D41 -> 0 | D10: =+Ownership!E41 -> 0 | E10: 0.25 | F10: 4 | H10: 0 | I10: 0
A11: Women Economic Interest | C11: =+Ownership!D42 -> 0 | D11: =+Ownership!E42 -> 0 | E11: 0.1 | F11: 2 | H11: 0 | I11: 0
A12: Broad Based | C12: =+Ownership!D43 -> 0 | D12: =+Ownership!E43 -> 0 | E12: 0.03 | F12: 3 | H12: 0 | I12: 0
A13: Net Value | D13: =+Ownership!E44 -> 0 | E13: Various | F13: 8 | H13: 0 | I13: 0
A14: New Entrant | C14: =+Ownership!D45 -> 0 | D14: =+Ownership!E45 -> 0 | E14: 0.02 | F14: 2 | H14: 0 | I14: 0
A16: Management | G16: =SUM(D17:D29) -> 0 | J16: =SUM(H17:H29) -> 0 | K16: =+G16-J16 -> 0
A17: Board Representation - Black | C17: =Management!B37 -> 0 | D17: =IF(((C17/E17)*F17)>F17,F17,ROUND(((C17/E17)*F17),2)) -> 0 | E17: 0.5 | F17: 2 | H17: 0 | I17: =H17-D17 -> 0
A18: Board Representation - Black Females | C18: =Management!B38 -> 0 | D18: =IF(((C18/E18)*F18)>F18,F18,ROUND(((C18/E18)*F18),2)) -> 0 | E18: 0.25 | F18: 1 | H18: 0 | I18: 0
A19: Black Executive Directors | C19: =Management!B39 -> 0 | D19: 0 | E19: 0.5 | F19: 2 | H19: 0 | I19: 0
A20: Black Executive Directors - Females | C20: =Management!B40 -> 0 | D20: 0 | E20: 0.25 | F20: 1 | H20: 0 | I20: 0
A21: Black Executive Management | C21: =Management!B47 -> 0 | D21: 0 | E21: 0.6 | F21: =IF('Targets & Inputs'!C12="Y",4,2) -> 2 | H21: 0 | I21: 0
A22: Black Executive Management - Females | C22: =Management!B48 -> 0 | D22: 0 | E22: 0.3 | F22: =IF('Targets & Inputs'!C12="Y",2,1) -> 1 | H22: 0 | I22: 0
A23: Black senior management | C23: =IF(F23>0,D23/F23,0) -> 0 | D23: =SUM('Employment Equity Worksheet'!B34:I34) -> 0 | E23: 0.6 | F23: =IF('Targets & Inputs'!C12="Y",0,2) -> 2 | H23: 0 | I23: 0
A24: Black senior management - Female | C24: =IF(F24>0,D24/F24,0) -> 0 | D24: =SUM('Employment Equity Worksheet'!G41:I41) -> 0 | E24: 0.3 | F24: =IF('Targets & Inputs'!C12="Y",0,1) -> 1 | H24: 0 | I24: 0
A25: Black mid-management | C25: =+D25/F25 -> 0 | D25: =SUM('Employment Equity Worksheet'!B49:I49) -> 0 | E25: 0.75 | F25: 2 | H25: 0 | I25: 0
A26: Black mid-management - Females | C26: 0 | D26: =SUM('Employment Equity Worksheet'!G56:I56) -> 0 | E26: 0.38 | F26: 1 | H26: 0 | I26: 0
A27: Black junior management | C27: 0 | D27: =SUM('Employment Equity Worksheet'!B64:I64) -> 0 | E27: 0.88 | F27: 1 | H27: 0 | I27: 0
A28: Black junior management - Females | C28: 0 | D28: =SUM('Employment Equity Worksheet'!G71:I71) -> 0 | E28: 0.44 | F28: 1 | H28: 0 | I28: 0
A29: Black disabled people | C29: ='Employment Equity Worksheet'!B115 -> 0 | D29: 0 | E29: 0.02 | F29: 2 | H29: 0 | I29: 0
A31: Skills Development | G31: =SUM(D32:D36) -> 0 | J31: =SUM(H32:H36) -> 0 | K31: =+G31-J31 -> 0
A32: Score for Skills Spend | C32: ='Skills Development'!D54 -> 0 | D32: =+'Skills Development'!C54 -> 0 | E32: 0.06 | F32: 8 | H32: 0 | I32: =H32-D32 -> 0
A33: Score for Disabled Skills Spend | C33: ='Skills Development'!K51 -> 0 | D33: ='Skills Development'!K50 -> 0 | E33: 0.003 | F33: 4 | H33: 0 | I33: =H33-D33 -> 0
A34: Learners - Black | C34: ='Skills Development'!D68 -> 0 | D34: ='Skills Development'!C68 -> 0 | E34: 0.025 | F34: 4 | H34: 0 | I34: =H34-D34 -> 0
A35: Black Unemployed people participating in training | C35: ='Skills Development'!J68 -> 0 | D35: ='Skills Development'!I68 -> 0 | E35: 0.025 | F35: 4 | H35: 0 | I35: =H35-D35 -> 0
A36: Bonus Point - Absorption of Learners | C36: ='Skills Development'!B73 -> 0 | D36: =IF(((C36/E36)*F36)>F36,F36,((C36/E36)*F36)) -> 0 | E36: 1 | F36: 5 | H36: 0 | I36: =H36-D36 -> 0
A38: Preferential Procurement | G38: =SUM(D39:D48) -> 0 | J38: =SUM(H39:H48) -> 0 | K38: =+G38-J38 -> 0
A39: B-BBEE Procurement Spend from all Empowering Suppliers | C39: ='Procurement Calculation'!C17 -> 0 | D39: ='Procurement Calculation'!F17 -> 0 | E39: 0.8 | F39: 5 | H39: 0 | I39: =H39-D39 -> 0
A40: BEE Procurement Spend from QSE Empowering Suppliers | C40: ='Procurement Calculation'!C18 -> 0 | D40: ='Procurement Calculation'!F18 -> 0 | E40: 0.15 | F40: 3 | H40: 0 | I40: 0
A41: BEE Procurement Spend from all EME Suppliers | C41: ='Procurement Calculation'!C19 -> 0 | D41: ='Procurement Calculation'!F19 -> 0 | E41: 0.15 | F41: 4 | H41: 0 | I41: 0
A42: B-BBEE Procurement Spend from all Empowering Suppliers | B42: Black Owned >51% | C42: ='Procurement Calculation'!C20 -> 0 | D42: ='Procurement Calculation'!F20 -> 0 | E42: 0.4 | F42: 9 | H42: 0 | I42: 0
A43: B-BBEE Procurement Spend from all Empowering Suppliers | B43: >=30% Black Women Owned | C43: ='Procurement Calculation'!C21 -> 0 | D43: ='Procurement Calculation'!F21 -> 0 | E43: 0.12 | F43: 4 | H43: 0 | I43: 0
A44: Bonus Point - BBBEE Spend from Designated Group Suppliers | B44: >=51% Black Owned | C44: ='Procurement Calculation'!C22 -> 0 | D44: ='Procurement Calculation'!F22 -> 0 | E44: 0.02 | F44: 2 | H44: 0 | I44: 0
A45: Annual Value of all Supplier Development Contributions | C45: ='Procurement Calculation'!C23 -> 0 | D45: ='Procurement Calculation'!F23 -> 0 | E45: 0.02 | F45: 10 | H45: 0 | I45: 0
A46: Annual Value of all Enterprise Development Contributions | C46: ='Procurement Calculation'!C24 -> 0 | D46: ='Procurement Calculation'!F24 -> 0 | E46: 0.01 | F46: 5 | H46: 0 | I46: 0
A47: Bonus Point - Graduation from Enterprise Development to Supplier Development | C47: ='Procurement Calculation'!C25 -> 0 | D47: ='Procurement Calculation'!F25+0 -> 0 | E47: 1 | F47: 1 | H47: 0 | I47: 0
A48: Bonus Point - creating one or more jobs through Enterprise Development or Supplier Development | C48: ='Procurement Calculation'!C26 -> 0 | D48: ='Procurement Calculation'!F26+0 -> 0 | E48: 1 | F48: 1 | H48: 0 | I48: 0
A50: Socio Economic Development | G50: =D51 -> 0 | J50: =+H51 -> 0 | K50: =+G50-J50 -> 0
A51: Spend on SED Initiatives | C51: =IFERROR('Socio Economic Development'!B32,0) -> 0 | D51: ='Socio Economic Development'!B35 -> 0 | E51: 0.01 | F51: 5 | H51: 0 | I51: =H51-D51 -> 0
A53: TOTAL | G53: =SUM(G7:G51) -> 0 | H53: =SUM(H7:H51) -> 0 | I53: =SUM(I7:I51) -> 0 | J53: =SUM(J7:J51) -> 0 | K53: =SUM(K7:K51) -> 0
A54: LEVEL | G54: =IF(G53>=100,1,IF(G53>=95,2,IF(G53>=90,3,IF(G53>=80,4,IF(G53>=75,5,IF(G53>=70,6,IF(G53>=55,7,IF(G53>=40,8,"Non-Compliant")))))))) -> Non-Compliant | J54: =IF(J53>=100,1,IF(J53>=95,2,IF(J53>=90,3,IF(J53>=80,4,IF(J53>=75,5,IF(J53>=70,6,IF(J53>=55,7,IF(J53>=40,8,"Non-Compliant")))))))) -> Non-Compliant
A56: DISCOUNTING Level test
A58: Priority Elements | G58: Submin Met | J58: Submin Met
A59: Ownership | G59: =IF(D13>=F13*0.4,"Y","N") -> N | J59: =IF(H13>=F13*0.4,"Y","N") -> N
A60: Skills Development | G60: =IF(SUM(D32:D35)>=SUM(F32:F35)*0.4,"Y","N") -> N | J60: =IF(SUM(H32:H35)>=SUM(F32:F35)*0.4,"Y","N") -> N
A61: Enterprise and Supplier Development | G61: =IF(OR(G62="N",G63="N",G64="N"),"N","Y") -> N | J61: =IF(OR(J62="N",J63="N",J64="N"),"N","Y") -> N
A62: Procurement | G62: =IF(SUM(D39:D43)>=SUM(F39:F43)*0.4,"Y","N") -> N | J62: =IF(SUM(H39:H43)>=SUM(F39:F43)*0.4,"Y","N") -> N
A63: Supplier Development | G63: =IF(D45>=F45*0.4,"Y","N") -> N | J63: =IF(H45>=F45*0.4,"Y","N") -> N
A64: Enterprise Development | G64: =IF(D46>=F46*0.4,"Y","N") -> N | J64: =IF(H46>=F46*0.4,"Y","N") -> N
A66: Discount level | G66: =IF(OR(G59="N",G60="N",G61="N"),"Y","N") -> Y | J66: =IF(OR(J59="N",J60="N",J61="N"),"Y","N") -> Y
A68: Level | G68: =+G54 -> Non-Compliant | J68: =+J54 -> Non-Compliant
A70: Less: Discounted Level | G70: =IF(G66="Y",1,0) -> 1 | J70: =IF(J66="Y",1,0) -> 1
A72: Adjusted Level | G72: =IF(G68="Non-compliant","Non-Compliant",IF(G68>0,G68+G70,"Non-Compliant")) -> Non-Compliant | J72: =IF(J68="Non-compliant","Non-Compliant",IF(J68>0,J68+J70,"Non-Compliant")) -> Non-Compliant
A74: Recognition Level | G74: =VLOOKUP(G72,A77:D87,4) -> B-BBEE Procurement Recognition Level | J74: =VLOOKUP(J72,A77:D877,4) -> B-BBEE Procurement Recognition Level
A77: B-BBEE Status | B77: Qualification points (New COGP) | D77: B-BBEE Procurement Recognition Level
A79: 1 | B79: 100 | D79: 1.35
A80: 2 | B80: 95 | C80: 100 | D80: 1.25
A81: 3 | B81: 90 | C81: 95 | D81: 1.1
A82: 4 | B82: 80 | C82: 90 | D82: 1
A83: 5 | B83: 75 | C83: 80 | D83: 0.8
A84: 6 | B84: 70 | C84: 75 | D84: 0.6
A85: 7 | B85: 55 | C85: 70 | D85: 0.5
A86: 8 | B86: 40 | C86: 55 | D86: 0.1
A87: 9 | C87: 40 | D87: 0

Sheet Targets & Inputs
A1: COMPANY NAME | B1: ='Global Business Solutions'!B27 -> Test
A3: FINANCIAL INFORMATION USED | B3: ='Global Business Solutions'!B29 -> 2017-02-28
A5: Targets & Input
A8: Input Information | C8: Budget | D8: Actual
A9: Total Directors | C9: ='Global Business Solutions'!C32 -> 0 | D9: =Management!B30 -> 0 | G9: Input area
A10: Total Executive Directors | C10: ='Global Business Solutions'!C33 -> 0 | D10: =Management!B33 -> 0 | G10: Formula - Please do not over write
A11: Total Other Executive Management | C11: ='Global Business Solutions'!C34 -> 0 | D11: =Management!B43 -> 0
A12: Senior and Other Executive Management Combined (Y/N) | C12: N
A13: Senior Management | C13: ='Global Business Solutions'!C36 -> 0 | D13: ='Employment Equity Worksheet'!L12 -> 0
A14: Middle Management | C14: ='Global Business Solutions'!C37 -> 0 | D14: ='Employment Equity Worksheet'!L13 -> 0
A15: Junior Management | C15: ='Global Business Solutions'!C38 -> 0 | D15: ='Employment Equity Worksheet'!L14 -> 0
A16: Payroll | C16: ='Global Business Solutions'!C39 -> 0 | D16: ='Skills Development'!B23 -> 0
A17: Head Count | C17: ='Global Business Solutions'!C40 -> 0 | D17: ='Employment Equity Worksheet'!L18 -> 0
A18: TMPS | C18: =+'Target - TMPS and NPAT'!D18 -> 0 | D18: =TMPS!D18 -> 0
A19: Turnover | C19: ='Global Business Solutions'!C42 -> 0 | D19: =+C19 -> 0
A20: NPAT | C20: ='Global Business Solutions'!C43 -> 0 | D20: =+C20 -> 0
A21: Supplier Development - Early Settlement Benefit used (Y/N) | C21: ='Global Business Solutions'!C44 -> N
A22: Enterprise Development - Early Settlement Benefit used (Y/N) | C22: ='Global Business Solutions'!C45 -> N
A23: Stats Table used | C23: ='Global Business Solutions'!C46 -> Table 3
A25: EAP Target | C25: AM | D25: IM | E25: CM | F25: AF | G25: IF | H25: CF
A26: EAP Target | C26: 0.428 | D26: 0.018 | E26: 0.053 | F26: 0.351 | G26: 0.01 | H26: 0.045
A27: Adjusted EAP | C27: =+C26/SUM($C$26:$H$26) -> 0.4729281768 | D27: 0.01988950276 | E27: 0.05856353591 | F27: 0.3878453039 | G27: 0.01104972376 | H27: 0.04972375691
A29: Management Control
A31: Board of Directors | C31: Directors | F31: Executive Directors
A32: Budget | C32: Total | D32: B | E32: BF | F32: Total | G32: B | H32: BF
A33: Target Board | C33: =+C9 -> 0 | D33: =ROUNDUP(C33*Scorecard!E17,-0.5) -> 0 | E33: =ROUNDUP(C33*Scorecard!E18,-0.5) -> 0 | F33: =+C10 -> 0 | G33: =ROUNDUP(F33*Scorecard!E19,-0.5) -> 0 | H33: =ROUNDUP(F33*Scorecard!E20,-0.5) -> 0
A35: Actual against target | C35: Total | D35: B | E35: BF | F35: Total | G35: B | H35: BF | I35: Current Points
A36: Target Board - Actual Figures | B36: =D4*Scorecard!E20 -> 0 | C36: =D9 -> 0 | D36: =ROUNDUP(C36*Scorecard!E17,-0.5) -> 0 | E36: =ROUNDUP(C36*Scorecard!E18,-0.5) -> 0 | F36: =D10 -> 0 | G36: =ROUNDUP(F36*Scorecard!E19,-0.5) -> 0 | H36: =ROUNDUP(F36*Scorecard!E20,-0.5) -> 0
A37: Actual Board | B37: =SUM(C37:H37) -> 0 | C37: =Management!B30 -> 0 | D37: =Management!B31 -> 0 | E37: =Management!B32 -> 0 | F37: =Management!B33 -> 0 | G37: =Management!B34 -> 0 | H37: =Management!B35 -> 0 | I37: =SUM(Management!C37:C40) -> 0
A38: Required | C38: =IF(C36>=C37,C36-C37,0) -> 0 | D38: 0 | E38: 0 | F38: 0 | G38: 0 | H38: 0
A40: Executive Management | C40: Executive Management
A41: Budget | C41: Total | D41: B | E41: BF
A42: Target Executive Management | C42: =C11 -> 0 | D42: =ROUNDUP(C42*Scorecard!E21,-0.5) -> 0 | E42: =ROUNDUP(C42*Scorecard!E22,-0.5) -> 0
A44: Actual against target | C44: Total | D44: B | E44: BF | F44: Current Points
A45: Target Executive Management - Actual Figures | B45: =D13*Scorecard!E29 -> 0 | C45: =D11 -> 0 | D45: =ROUNDUP(C45*Scorecard!E21,-0.5) -> 0 | E45: =ROUNDUP(C45*Scorecard!E22,-0.5) -> 0
A46: Actual Executive Management | B46: =SUM(C46:H46) -> 0 | C46: =Management!B43 -> 0 | D46: =Management!B44 -> 0 | E46: =Management!B45 -> 0 | F46: =SUM(Management!C47:C48) -> 0
A47: Required | C47: =IF(C45>=C46,C45-C46,0) -> 0 | D47: =IF(D45>=D46,D45-D46,0) -> 0 | E47: =IF(E45>=E46,E45-E46,0) -> 0
A49: Senior Management | B49: Target | C49: AM | D49: IM | E49: CM | F49: AF | G49: IF | H49: CF
A50: Senior Management - Budgeted figures | B50: =C13 -> 0 | C50: =IF($B$50*Scorecard!$E$23*C27<0.5,0,ROUNDUP($B$50*Scorecard!$E$23*C27,-0.5)) -> 0 | D50: =IF($B$50*Scorecard!$E$23*D27<0.5,0,ROUNDUP($B$50*Scorecard!$E$23*D27,-0.5)) -> 0 | E50: =IF($B$50*Scorecard!$E$23*E27<0.5,0,ROUNDUP($B$50*Scorecard!$E$23*E27,-0.5)) -> 0 | F50: =IF($B$50*Scorecard!$E$23*F27<0.5,0,ROUNDUP($B$50*Scorecard!$E$23*F27,-0.5)) -> 0 | G50: =IF($B$50*Scorecard!$E$23*G27<0.5,0,ROUNDUP($B$50*Scorecard!$E$23*G27,-0.5)) -> 0 | H50: =IF($B$50*Scorecard!$E$23*H27<0.5,0,ROUNDUP($B$50*Scorecard!$E$23*H27,-0.5)) -> 0
A52: Actual against target | B52: Target | C52: AM | D52: IM | E52: CM | F52: AF | G52: IF | H52: CF | I52: Current Points
A53: Target Senior Management - Actual Figures | B53: =D13 -> 0 | C53: =IF($B$53*Scorecard!$E$23*C27<0.5,0,ROUNDUP($B$53*Scorecard!$E$23*C27,-0.5)) -> 0 | D53: =IF($B$53*Scorecard!$E$23*D27<0.5,0,ROUNDUP($B$53*Scorecard!$E$23*D27,-0.5)) -> 0 | E53: =IF($B$53*Scorecard!$E$23*E27<0.5,0,ROUNDUP($B$53*Scorecard!$E$23*E27,-0.5)) -> 0 | F53: =IF($B$53*Scorecard!$E$23*F27<0.5,0,ROUNDUP($B$53*Scorecard!$E$23*F27,-0.5)) -> 0 | G53: =IF($B$53*Scorecard!$E$23*G27<0.5,0,ROUNDUP($B$53*Scorecard!$E$23*G27,-0.5)) -> 0 | H53: =IF($B$53*Scorecard!$E$23*H27<0.5,0,ROUNDUP($B$53*Scorecard!$E$23*H27,-0.5)) -> 0
A54: Actual Senior Management | B54: ='Employment Equity Worksheet'!L12 -> 0 | C54: ='Employment Equity Worksheet'!B12 -> 0 | D54: ='Employment Equity Worksheet'!C12 -> 0 | E54: ='Employment Equity Worksheet'!D12 -> 0 | F54: ='Employment Equity Worksheet'!G12 -> 0 | G54: ='Employment Equity Worksheet'!H12 -> 0 | H54: ='Employment Equity Worksheet'!I12 -> 0 | I54: =SUM('Employment Equity Worksheet'!B34:I34)+SUM('Employment Equity Worksheet'!G41:I41) -> 0
A55: Required | C55: =IF(C53>=C54,C53-C54,0) -> 0 | D55: 0 | E55: 0 | F55: 0 | G55: 0 | H55: 0
A57: Middle Management | B57: Target | C57: AM | D57: IM | E57: CM | F57: AF | G57: IF | H57: CF
A58: Middle Management - Budgeted figures | B58: =C14 -> 0 | C58: =IF($B$58*Scorecard!$E$25*C27<0.5,0,ROUNDUP($B$58*Scorecard!$E$25*C27,-0.5)) -> 0 | D58: =IF($B$58*Scorecard!$E$25*D27<0.5,0,ROUNDUP($B$58*Scorecard!$E$25*D27,-0.5)) -> 0 | E58: =IF($B$58*Scorecard!$E$25*E27<0.5,0,ROUNDUP($B$58*Scorecard!$E$25*E27,-0.5)) -> 0 | F58: =IF($B$58*Scorecard!$E$25*F27<0.5,0,ROUNDUP($B$58*Scorecard!$E$25*F27,-0.5)) -> 0 | G58: =IF($B$58*Scorecard!$E$25*G27<0.5,0,ROUNDUP($B$58*Scorecard!$E$25*G27,-0.5)) -> 0 | H58: =IF($B$58*Scorecard!$E$25*H27<0.5,0,ROUNDUP($B$58*Scorecard!$E$25*H27,-0.5)) -> 0
A60: Actual against target | B60: Target | C60: AM | D60: IM | E60: CM | F60: AF | G60: IF | H60: CF | I60: Current Points
A61: Target Middle Management - Actual Figures | B61: =D14 -> 0 | C61: =IF($B$61*Scorecard!$E$25*C27<0.5,0,ROUNDUP($B$61*Scorecard!$E$25*C27,-0.5)) -> 0 | D61: =IF($B$61*Scorecard!$E$25*D27<0.5,0,ROUNDUP($B$61*Scorecard!$E$25*D27,-0.5)) -> 0 | E61: =IF($B$61*Scorecard!$E$25*E27<0.5,0,ROUNDUP($B$61*Scorecard!$E$25*E27,-0.5)) -> 0 | F61: =IF($B$61*Scorecard!$E$25*F27<0.5,0,ROUNDUP($B$61*Scorecard!$E$25*F27,-0.5)) -> 0 | G61: =IF($B$61*Scorecard!$E$25*G27<0.5,0,ROUNDUP($B$61*Scorecard!$E$25*G27,-0.5)) -> 0 | H61: =IF($B$61*Scorecard!$E$25*H27<0.5,0,ROUNDUP($B$61*Scorecard!$E$25*H27,-0.5)) -> 0
A62: Actual Middle Management | B62: =D14 -> 0 | C62: ='Employment Equity Worksheet'!B13 -> 0 | D62: ='Employment Equity Worksheet'!C13 -> 0 | E62: ='Employment Equity Worksheet'!D13 -> 0 | F62: ='Employment Equity Worksheet'!G13 -> 0 | G62: ='Employment Equity Worksheet'!H13 -> 0 | H62: ='Employment Equity Worksheet'!I13 -> 0 | I62: =SUM('Employment Equity Worksheet'!B49:I49)+SUM('Employment Equity Worksheet'!G56:I56) -> 0
A63: Required | C63: =IF(C61>=C62,C61-C62,0) -> 0 | D63: 0 | E63: 0 | F63: 0 | G63: 0 | H63: 0
A65: Junior Management | B65: Target | C65: AM | D65: IM | E65: CM | F65: AF | G65: IF | H65: CF
A66: Junior Management - Budgeted figures | B66: =C15 -> 0 | C66: =IF($B$66*Scorecard!$E$27*C27<0.5,0,ROUNDUP($B$66*Scorecard!$E$27*C27,-0.5)) -> 0 | D66: =IF($B$66*Scorecard!$E$27*D27<0.5,0,ROUNDUP($B$66*Scorecard!$E$27*D27,-0.5)) -> 0 | E66: =IF($B$66*Scorecard!$E$27*E27<0.5,0,ROUNDUP($B$66*Scorecard!$E$27*E27,-0.5)) -> 0 | F66: =IF($B$66*Scorecard!$E$27*F27<0.5,0,ROUNDUP($B$66*Scorecard!$E$27*F27,-0.5)) -> 0 | G66: =IF($B$66*Scorecard!$E$27*G27<0.5,0,ROUNDUP($B$66*Scorecard!$E$27*G27,-0.5)) -> 0 | H66: =IF($B$66*Scorecard!$E$27*H27<0.5,0,ROUNDUP($B$66*Scorecard!$E$27*H27,-0.5)) -> 0
A68: Actual against target | B68: Target | C68: AM | D68: IM | E68: CM | F68: AF | G68: IF | H68: CF | I68: Current Points
A69: Target Junior Management - Actual Figures | B69: =D15 -> 0 | C69: =IF($B$69*Scorecard!$E$27*C27<0.5,0,ROUNDUP($B$69*Scorecard!$E$27*C27,-0.5)) -> 0 | D69: =IF($B$69*Scorecard!$E$27*D27<0.5,0,ROUNDUP($B$69*Scorecard!$E$27*D27,-0.5)) -> 0 | E69: =IF($B$69*Scorecard!$E$27*E27<0.5,0,ROUNDUP($B$69*Scorecard!$E$27*E27,-0.5)) -> 0 | F69: =IF($B$69*Scorecard!$E$27*F27<0.5,0,ROUNDUP($B$69*Scorecard!$E$27*F27,-0.5)) -> 0 | G69: =IF($B$69*Scorecard!$E$27*G27<0.5,0,ROUNDUP($B$69*Scorecard!$E$27*G27,-0.5)) -> 0 | H69: =IF($B$69*Scorecard!$E$27*H27<0.5,0,ROUNDUP($B$69*Scorecard!$E$27*H27,-0.5)) -> 0
A70: Actual Junior Management | B70: =D15 -> 0 | C70: ='Employment Equity Worksheet'!B14 -> 0 | D70: ='Employment Equity Worksheet'!C14 -> 0 | E70: ='Employment Equity Worksheet'!D14 -> 0 | F70: ='Employment Equity Worksheet'!G14 -> 0 | G70: ='Employment Equity Worksheet'!H14 -> 0 | H70: ='Employment Equity Worksheet'!I14 -> 0 | I70: =SUM('Employment Equity Worksheet'!B64:I64)+SUM('Employment Equity Worksheet'!G71:I71) -> 0
A71: Required | C71: =IF(C69>=C70,C69-C70,0) -> 0 | D71: 0 | E71: 0 | F71: 0 | G71: 0 | H71: 0
A73: Disabled Staff
A74: Disabled Staff - Budgeted figures | B74: =ROUNDUP(C17*Scorecard!E29,-0.5) -> 0
A76: Actual against target - Disabled | B76: Target
A77: Disabled black staff - Actual Figures | B77: =ROUNDUP(D17*Scorecard!E29,-0.5) -> 0
A78: Actual Disabled Black Staff | B78: =SUM('Employment Eq DATA INPUT'!M33:R33) -> 0
A79: Proposed Disabled Learners
A80: Required | B80: =IF(B77>=B78,B77-B78-B79,0) -> 0
A82: Skills Development
A84: Total Skills Development Spend | C84: Amount Spent on Black Males | F84: Amount Spent on Black Females
A85: Budget | B85: Target | C85: AM | D85: IM | E85: CM | F85: AF | G85: IF | H85: CF
A86: Target Spend on Black people - Budgeted figures | B86: =C16*Scorecard!$E$32 -> 0 | C86: =IF($C$16*Scorecard!$E$32*C27<0,0,$C$16*Scorecard!$E$32*C27) -> 0 | D86: =IF($C$16*Scorecard!$E$32*D27<0,0,$C$16*Scorecard!$E$32*D27) -> 0 | E86: =IF($C$16*Scorecard!$E$32*E27<0,0,$C$16*Scorecard!$E$32*E27) -> 0 | F86: =IF($C$16*Scorecard!$E$32*F27<0,0,$C$16*Scorecard!$E$32*F27) -> 0 | G86: =IF($C$16*Scorecard!$E$32*G27<0,0,$C$16*Scorecard!$E$32*G27) -> 0 | H86: =IF($C$16*Scorecard!$E$32*H27<0,0,$C$16*Scorecard!$E$32*H27) -> 0
A88: Actual against target | B88: Target | C88: AM | D88: IM | E88: CM | F88: AF | G88: IF | H88: CF | I88: Current Points
A89: Target Spend on Black people - Actual Figures | B89: =D16*Scorecard!E32 -> 0 | C89: =IF($D$16*Scorecard!$E$32*C27<0,0,$D$16*Scorecard!$E$32*C27) -> 0 | D89: =IF($D$16*Scorecard!$E$32*D27<0,0,$D$16*Scorecard!$E$32*D27) -> 0 | E89: =IF($D$16*Scorecard!$E$32*E27<0,0,$D$16*Scorecard!$E$32*E27) -> 0 | F89: =IF($D$16*Scorecard!$E$32*F27<0,0,$D$16*Scorecard!$E$32*F27) -> 0 | G89: =IF($D$16*Scorecard!$E$32*G27<0,0,$D$16*Scorecard!$E$32*G27) -> 0 | H89: =IF($D$16*Scorecard!$E$32*H27<0,0,$D$16*Scorecard!$E$32*H27) -> 0
A90: Actual Spend | B90: =SUM(C90:H90) -> 0 | C90: ='Skills Development'!C42 -> 0 | D90: ='Skills Development'!D42 -> 0 | E90: ='Skills Development'!E42 -> 0 | F90: ='Skills Development'!F42 -> 0 | G90: ='Skills Development'!G42 -> 0 | H90: ='Skills Development'!H42 -> 0 | I90: =+'Skills Development'!C54 -> 0
A91: Proposed Disabled Learners Spend | B91: =SUM(C91:H91) -> 0
A92: Required | B92: =SUM(C92:H92) -> 0 | C92: =IF(C89>=C90,C89-C90-C91,0) -> 0 | D92: =IF(D89>=D90,D89-D90-D91,0) -> 0 | E92: 0 | F92: 0 | G92: 0 | H92: 0
A94: Total Skills Development Spend - Disabled
A95: Target Spend on Black people - Budgeted figures | B95: =+C16*Scorecard!E33 -> 0
A97: Actual against target - Disabled | B97: Target
A98: Target Spend on Black people - Actual Figures | B98: =D16*Scorecard!E33 -> 0
A99: Actual Spend | B99: =+'Skills Development'!K46 -> 0
A100: Proposed Disabled Learners Spend
A101: Required | B101: =IF(B98>=B99,B98-B99-B100,0) -> 0
A103: Total Learnerships, Apprenticeships and Internships | C103: Amount Spent on Black Males | F103: Amount Spent on Black Females
A104: Budget | B104: Target | C104: AM | D104: IM | E104: CM | F104: AF | G104: IF | H104: CF
A105: Budgeted number of black people on B, C and D training | B105: =SUM(C105:H105) -> 0 | C105: =ROUNDUP($C$17*Scorecard!$E$34*C27,-0.5) -> 0 | D105: =ROUNDUP($C$17*Scorecard!$E$34*D27,-0.5) -> 0 | E105: =ROUNDUP($C$17*Scorecard!$E$34*E27,-0.5) -> 0 | F105: =ROUNDUP($C$17*Scorecard!$E$34*F27,-0.5) -> 0 | G105: =ROUNDUP($C$17*Scorecard!$E$34*G27,-0.5) -> 0 | H105: =ROUNDUP($C$17*Scorecard!$E$34*H27,-0.5) -> 0
A107: Actual against target | B107: Target | C107: AM | D107: IM | E107: CM | F107: AF | G107: IF | H107: CF | I107: Current Points
A108: Target Black people - Actual Figures | B108: =SUM(C108:H108) -> 0 | C108: =ROUNDUP($D$17*Scorecard!$E$34*C27,-0.5) -> 0 | D108: =ROUNDUP($D$17*Scorecard!$E$34*D27,-0.5) -> 0 | E108: =ROUNDUP($D$17*Scorecard!$E$34*E27,-0.5) -> 0 | F108: =ROUNDUP($D$17*Scorecard!$E$34*F27,-0.5) -> 0 | G108: =ROUNDUP($D$17*Scorecard!$E$34*G27,-0.5) -> 0 | H108: =ROUNDUP($D$17*Scorecard!$E$34*H27,-0.5) -> 0
A109: Actual number of black people on B, C and D training | B109: =SUM(C109:H109) -> 0 | C109: ='SD Table 2'!N34 -> 0 | D109: ='SD Table 2'!O34 -> 0 | E109: ='SD Table 2'!P34 -> 0 | F109: ='SD Table 2'!Q34 -> 0 | G109: ='SD Table 2'!R34 -> 0 | H109: ='SD Table 2'!S34 -> 0 | I109: =+'Skills Development'!C68 -> 0
A110: Proposed Disabled Learners Spend | B110: =SUM(C110:H110) -> 0
A111: Required | B111: =SUM(C111:H111) -> 0 | C111: =IF(C108>=C109,C108-C109-C110,0) -> 0 | D111: =IF(D108>=D109,D108-D109-D110,0) -> 0 | E111: 0 | F111: 0 | G111: 0 | H111: 0
A113: Total Unemployed Training | C113: Black Males - Unemployed Training | F113: Black Females - Unemployed Training
A114: Budget | B114: Target | C114: AM | D114: IM | E114: CM | F114: AF | G114: IF | H114: CF
A115: Budgeted number of Unemployed black people trained | B115: =SUM(C115:H115) -> 0 | C115: =ROUNDUP($C$17*Scorecard!$E$35*C27,-0.5) -> 0 | D115: =ROUNDUP($C$17*Scorecard!$E$35*D27,-0.5) -> 0 | E115: =ROUNDUP($C$17*Scorecard!$E$35*E27,-0.5) -> 0 | F115: =ROUNDUP($C$17*Scorecard!$E$35*F27,-0.5) -> 0 | G115: =ROUNDUP($C$17*Scorecard!$E$35*G27,-0.5) -> 0 | H115: =ROUNDUP($C$17*Scorecard!$E$35*H27,-0.5) -> 0
A117: Actual against target | B117: Target | C117: AM | D117: IM | E117: CM | F117: AF | G117: IF | H117: CF | I117: Current Points
A118: Target Black people - Actual Figures | B118: =SUM(C118:H118) -> 0 | C118: =ROUNDUP($D$17*Scorecard!$E$35*C27,-0.5) -> 0 | D118: =ROUNDUP($D$17*Scorecard!$E$35*D27,-0.5) -> 0 | E118: =ROUNDUP($D$17*Scorecard!$E$35*E27,-0.5) -> 0 | F118: =ROUNDUP($D$17*Scorecard!$E$35*F27,-0.5) -> 0 | G118: =ROUNDUP($D$17*Scorecard!$E$35*G27,-0.5) -> 0 | H118: =ROUNDUP($D$17*Scorecard!$E$35*H27,-0.5) -> 0
A119: Actual number of unemployed black people on training | B119: =SUM(C119:H119) -> 0 | C119: ='Skills Development'!I60 -> 0 | D119: ='Skills Development'!J60 -> 0 | E119: ='Skills Development'!K60 -> 0 | F119: ='Skills Development'!L60 -> 0 | G119: ='Skills Development'!M60 -> 0 | H119: ='Skills Development'!N60 -> 0 | I119: ='Skills Development'!I68 -> 0
A120: Proposed Disabled Learners Spend | B120: =SUM(C120:H120) -> 0
A121: Required | B121: =SUM(C121:H121) -> 0 | C121: =IF(C118>=C119,C118-C119-C120,0) -> 0 | D121: =IF(D118>=D119,D118-D119-D120,0) -> 0 | E121: =IF(E118>=E119,E118-E119-E120,0) -> 0 | F121: =IF(F118>=F119,F118-F119-F120,0) -> 0 | G121: =IF(G118>=G119,G118-G119-G120,0) -> 0 | H121: =IF(H118>=H119,H118-H119-H120,0) -> 0
A123: ENTERPRISE & SUPPLIER DEVELOPMENT
A125: PREFERENTIAL PROCUREMENT
A127: Procurement Indicator | C127: Target Spend | D127: Target @ Actual TMPS | E127: Actual Spend | F127: Required | G127: Current Points
A128: B-BBEE Procurement Spend from all Empowering Suppliers as % of Measured Spend | C128: =$C$18*Scorecard!E39 -> 0 | D128: =$D$18*Scorecard!$E39 -> 0 | E128: ='Procurement Calculation'!B8 -> 0 | F128: =IF(D128>=E128,D128-E128,0) -> 0 | G128: ='Procurement Calculation'!F17 -> 0
A129: BEE Procurement Spend from Empowering QSE Suppliers | C129: =$C$18*Scorecard!E40 -> 0 | D129: =$D$18*Scorecard!$E40 -> 0 | E129: ='Procurement Calculation'!B9 -> 0 | F129: 0 | G129: ='Procurement Calculation'!F18 -> 0
A130: BEE Procurement Spend from EME Suppliers | C130: =$C$18*Scorecard!E41 -> 0 | D130: =$D$18*Scorecard!$E41 -> 0 | E130: ='Procurement Calculation'!B10 -> 0 | F130: 0 | G130: ='Procurement Calculation'!F19 -> 0
A131: Spend from Black Owned Suppliers | B131: Black Owned | C131: =$C$18*Scorecard!E42 -> 0 | D131: =$D$18*Scorecard!$E42 -> 0 | E131: ='Procurement Calculation'!B11 -> 0 | F131: 0 | G131: ='Procurement Calculation'!F20 -> 0
A132: Spend from Black Owned Suppliers | B132: Black Woman Owned | C132: =$C$18*Scorecard!E43 -> 0 | D132: =$D$18*Scorecard!$E43 -> 0 | E132: ='Procurement Calculation'!B12 -> 0 | F132: 0 | G132: ='Procurement Calculation'!F21 -> 0
A133: BBBEE Spend from Designated Group Suppliers >=51% Black Owned | C133: =$C$18*Scorecard!E44 -> 0 | D133: =$D$18*Scorecard!$E44 -> 0 | E133: ='Procurement Calculation'!B13 -> 0 | F133: 0 | G133: ='Procurement Calculation'!F22 -> 0
A135: SUPPLIER DEVELOPMENT
A137: Supplier Development | C137: Target Spend | D137: Current Points
A138: Supplier Development | C138: =HLOOKUP($C$23,$B$179:$J$182,4)*Scorecard!E45*1 -> 0
A139: Target @ Actual NPAT | B139: Early Settlement | C139: =IF(AND(ROUND(HLOOKUP($C$23,'ED & SD'!$A$71:$J$74,4)*Scorecard!E45>Scorecard!F45*15%,2),$C$21="Y"),ROUND(HLOOKUP($C$23,'ED & SD'!$A$71:$J$74,4)*Scorecard!E45*15%,2)*1,0) -> 0
A140: Target @ Actual NPAT | B140: Other | C140: =IF(AND(ROUND(HLOOKUP($C$23,'ED & SD'!$A$71:$J$74,4)*Scorecard!E45>Scorecard!F45*85%,2),$C$21="Y"),ROUND(HLOOKUP($C$23,'ED & SD'!$A$71:$J$74,4)*Scorecard!E45*85%,2)*1,(HLOOKUP($C$23,'ED & SD'!$A$71:$J$74,4)*Scorecard!E45*1)) -> 0
A141: Actual Spend | B141: Early Settlement | C141: ='ED & SD'!B35 -> 0 | D141: ='ED & SD'!B47 -> 0
A142: Actual Spend | B142: Other | C142: ='ED & SD'!L32 -> 0
A143: Required | B143: Early Settlement | C143: =IF(C139>=C141,C139-C141,0) -> 0
A144: Required | B144: Other | C144: =IF(C140>=C142,C140-C142,0) -> 0
A146: ENTERPRISE DEVELOPMENT
A148: Enterprise Development | C148: Target Spend | D148: Current Points
A149: Enterprise Development | C149: =HLOOKUP($C$23,$B$179:$J$182,4)*Scorecard!E46*1 -> 0
A150: Target @ Actual NPAT | B150: Early Settlement | C150: =IF(AND(ROUND(HLOOKUP($C$23,'ED & SD'!$A$71:$J$74,4)*Scorecard!E46>Scorecard!F45*15%,2),$C$22="Y"),ROUND(HLOOKUP($C$23,'ED & SD'!$A$71:$J$74,4)*Scorecard!E46*15%,2)*1,0) -> 0
A151: Target @ Actual NPAT | B151: Other | C151: =IF(AND(ROUND(HLOOKUP($C$23,'ED & SD'!$A$71:$J$74,4)*Scorecard!E46>Scorecard!F45*85%,2),$C$22="Y"),ROUND(HLOOKUP($C$23,'ED & SD'!$A$71:$J$74,4)*Scorecard!E46*85%,2)*1,HLOOKUP($C$23,'ED & SD'!$A$71:$J$74,4)*Scorecard!E46*1) -> 0
A152: Actual Spend | B152: Early Settlement | C152: ='ED & SD'!O32 -> 0 | D152: ='ED & SD'!C47 -> 0
A153: Actual Spend | B153: Other | C153: ='ED & SD'!M32 -> 0
A154: Required | B154: Early Settlement | C154: =IF(C150>=C152,C150-C152,0) -> 0
A155: Required | B155: Other | C155: =IF(C151>=C153,C151-C153,0) -> 0
A157: SOCIO-ECONOMIC DEVELOPMENT
A159: Socio-Economic Development | C159: Target Spend | D159: Current Points
A160: Socio-Economic Development | C160: =HLOOKUP($C$23,$B$179:$J$182,4)*Scorecard!E51*1 -> 0
A161: Target @ Actual NPAT | C161: =HLOOKUP($C$23,'ED & SD'!$A$71:$J$74,4)*Scorecard!E51*1 -> 0 | D161: ='Socio Economic Development'!B35 -> 0
A162: Actual Spend | C162: ='Socio Economic Development'!G29 -> 0
A163: Required | C163: =IF(C161>=C162,C161-C162,0) -> 0
A166: 2016-12-31 | B166: All Industries | C166: Mining & Quarrying | D166: Manufacturing | E166: Electricity, Gas & Water Supply | F166: Construction | G166: Trade | H166: Transport, Storage & Communication | I166: Real Estate & Other Business Services | J166: Community, Social and Personal Services
B167: Table 1 | C167: Table 2 | D167: Table 3 | E167: Table 4 | F167: Table 5 | G167: Table 6 | H167: Table 7 | I167: Table 8 | J167: Table 9
A168: Stats SA Returns
A169: Turnover | B169: 2309987 | C169: 158235 | D169: 645643 | E169: 56197 | F169: 109228 | G169: 810779 | H169: 203834 | I169: 270075 | J169: 55996
A170: Net profit before Tax | B170: 164904 | C170: 23915 | D170: 38725 | E170: -197 | F170: 3713 | G170: 44922 | H170: 16409 | I170: 35077 | J170: 2340
A171: Tax | B171: 31644 | C171: 5820 | D171: 8716 | E171: 504 | F171: 1497 | G171: 5616 | H171: 3862 | I171: 4454 | J171: 1175
A172: Net Profit after Tax | B172: =+B170-B171 -> 133260 | C172: =+C170-C171 -> 18095 | D172: 30009 | E172: -701 | F172: 2216 | G172: 39306 | H172: 12547 | I172: 30623 | J172: =+J170-J171 -> 1165
A173: NPAT % | B173: =IF(B169>0,B172/B169,0) -> 0.05768863634 | C173: =IF(C169>0,C172/C169,0) -> 0.1143552311 | D173: 0.04647924627 | E173: -0.01247397548 | F173: 0.02028783828 | G173: 0.048479302 | H173: 0.06155499083 | I173: 0.1133870221 | J173: =IF(J169>0,J172/J169,0) -> 0.0208050575
A174: 0.25 | B174: =+B173*$A$174 -> 0.01442215909 | C174: =+C173*$A$174 -> 0.02858880779 | D174: 0.01161981157 | E174: -0.00311849387 | F174: 0.005071959571 | G174: 0.0121198255 | H174: 0.01538874771 | I174: 0.02834675553 | J174: 0.005201264376
A176: Client Figures
A177: Budgeted Turnover | B177: =C19 -> 0 | C177: =+B177 -> 0 | D177: =+C177 -> 0 | E177: 0 | F177: 0 | G177: 0 | H177: 0 | I177: 0 | J177: =+I177 -> 0
B179: Table 1 | C179: Table 2 | D179: Table 3 | E179: Table 4 | F179: Table 5 | G179: Table 6 | H179: Table 7 | I179: Table 8 | J179: Table 9
A180: Industry Norm NPAT | B180: =+B177*B174 -> 0 | C180: 0 | D180: 0 | E180: 0 | F180: 0 | G180: 0 | H180: 0 | I180: 0 | J180: 0
A181: Budgeted NPAT | B181: =C20 -> 0 | C181: =+B181 -> 0 | D181: =+C181 -> 0 | E181: 0 | F181: 0 | G181: 0 | H181: 0 | I181: 0 | J181: =+I181 -> 0
A182: Figure Used | B182: =IF(B180>B181,B180,B181) -> 0 | C182: =IF(C180>C181,C180,C181) -> 0 | D182: 0 | E182: 0 | F182: 0 | G182: 0 | H182: 0 | I182: 0 | J182: =IF(J180>J181,J180,J181) -> 0

Sheet Target - TMPS and NPAT
A1: COMPANY NAME | B1: ='Global Business Solutions'!B27 -> Test
A3: FINANCIAL INFORMATION USED | B3: ='Global Business Solutions'!B29 -> 2017-02-28
A5: Target TMPS
A9: Budgeted figures | C9: ='Procurement Recognition'!C7 -> 2017-02-28 | D9: Total
A10: COS | D10: =SUM(C10:C10) -> 0
A11: Operational Expenditure | D11: =SUM(C11:C11) -> 0
A12: Capex | D12: =SUM(C12:C12) -> 0
A13: Interest & Finance Charges | D13: =SUM(C13:C13) -> 0
A14: Miscellaneous | D14: =SUM(C14:C14) -> 0
A15: Total Expenditure | C15: =SUM(C10:C14) -> 0 | D15: =SUM(D10:D14) -> 0
A16: Imports and Government Suppliers per schedule | D16: 0
A17: Exclusions - per Table below | C17: =+C49 -> 0 | D17: =SUM(C17:C17) -> 0
A18: TMPS | C18: =C15-C17 -> 0 | D18: =D15-D17-D16 -> 0 | E18: =+D18-TMPS!D18 -> 0
C19: 0
A20: Exclusions
A22: Bad debts | D22: =SUM(C22:C22) -> 0
A23: Depreciation | D23: 0
A24: Donations | D24: 0
A25: Fines | D25: 0
A26: Licences and levies | D26: 0
A27: Loss on sale of Fixed Assets | D27: 0
A28: Member's remuneration | D28: 0
A29: Penalties & Interest - SARS | D29: 0
A30: Rates & Taxes | D30: 0
A31: Salaries & Wages | D31: 0
A32: Salaries & Wages in CoS | D32: 0
A33: Loss on Forex | D33: 0
A34: Government or Municipal Tender Costs | D34: 0
A35: Customs & Excise (freight supplier duties) | D35: 0
A36: Utilities | D36: 0
A37: Workers Compensation | D37: 0
A38: Miscellaneous | D38: 0
A39: Miscellaneous | D39: 0
A40: Miscellaneous | D40: 0
A41: Miscellaneous | D41: 0
A42: Miscellaneous | D42: 0
A43: Miscellaneous | D43: 0
A44: Miscellaneous | D44: 0
A45: Miscellaneous | D45: 0
A46: Miscellaneous | D46: 0
A47: Miscellaneous | D47: 0
A48: Miscellaneous | D48: 0
C49: =SUM(C21:C48) -> 0 | D49: =SUM(D22:D48) -> 0

Sheet Ownership
A1: COMPANY NAME | B1: ='Target - TMPS and NPAT'!B1:E1 -> Test
A3: FINANCIAL INFORMATION USED | B3: ='Target - TMPS and NPAT'!B3:E3 -> 2017-02-28
A5: Ownership
A9: Instructions: | B9: Complete ALL shareholders/ members details. If the entity is a trust, please complete with the details of the beneficiaries of the trust.
A11: Shareholder/ Member Name | B11: Identity Number | C11: RSA Citizen (Y/N) | D11: Race (B/W) | E11: Gender (M/F) | F11: % Owned in Entity | G11: % Economic Interest | H11: % Voting Rights | I11: Amount paid for shares/ membership | J11: Amount outstanding for shares/ membership (to entity or 3rd party) | K11: Current Value of Company | L11: New Entrant (Y/N) | M11: ESOP/ Broad-based scheme (Y/N) | N11: Co-Coperative (Y/N) | O11: Designated Group (Y/N) | P11: Black Ownership | Q11: Black Women Ownership | R11: Black Economic Interest | S11: Black Women Economic Interest | T11: Black Voting Rights | U11: Black Women Voting Rights | V11: New Entrant | W11: Designated Group
P12: =IF(AND(C12="Y",D12="B"),F12,"") ->  | Q12: =IF(AND(E12="F",C12="Y",D12="B"),F12,"") ->  | R12: =IF(AND(C12="Y",D12="B"),G12,"") ->  | S12: =IF(AND(E12="F",C12="Y",D12="B"),G12,"") ->  | T12: =IF(AND(C12="Y",D12="B"),H12,"") ->  | U12: =IF(AND(E12="F",C12="Y",D12="B"),H12,"") ->  | V12: =IF(L12="Y",P12,"") ->  | W12: =IF(OR(M12="Y",N12="Y",O12="Y"),P12,"") -> 
P16: =IF(AND(C16="Y",D16="B"),F16,"") ->  | Q16: =IF(AND(E16="F",C16="Y",D16="B"),F16,"") ->  | R16: =IF(AND(C16="Y",D16="B"),G16,"") ->  | S16: =IF(AND(E16="F",C16="Y",D16="B"),G16,"") ->  | T16: =IF(AND(C16="Y",D16="B"),H16,"") ->  | U16: =IF(AND(E16="F",C16="Y",D16="B"),H16,"") ->  | V16: =IF(L16="Y",P16,"") ->  | W16: =IF(OR(M16="Y",N16="Y",O16="Y"),P16,"") -> 
A31: Total | F31: =SUM(F12:F30) -> 0 | G31: =SUM(G12:G30) -> 0 | H31: =SUM(H12:H30) -> 0 | I31: =SUM(I12:I30) -> 0 | J31: =SUM(J12:J30) -> 0 | P31: =SUM(P12:P30) -> 0 | Q31: 0 | R31: 0 | S31: 0 | T31: 0 | U31: 0 | V31: 0 | W31: 0
A33: Definitions:
A34: New Entrant | B34: Before holding rights of ownership in the entity, has not held equity instruments in any other entity which has a total value of not more than R20,000,000
A35: Designated Groups | B35: Unemployed, Youths (between ages 18-35), person with disabilities, people living in rural areas.
A38: Indicator | B38: Target | C38: Weighting Points | D38: Company Performance | E38: Score
A39: Black Shareholders VR | B39: 0.25 | C39: 4 | D39: =T31 -> 0 | E39: =IF(D39/B39*C39>C39,C39,ROUND(D39/B39*C39,2)) -> 0
A40: Black Women Shareholders VR | B40: 0.1 | C40: 2 | D40: =U31 -> 0 | E40: =IF(D40/B40*C40>C40,C40,ROUND(D40/B40*C40,2)) -> 0
A41: Black Shareholders EI | B41: 0.25 | C41: 4 | D41: =R31 -> 0 | E41: 0
A42: Black Women Shareholders EI | B42: 0.1 | C42: 2 | D42: =S31 -> 0 | E42: 0
A43: Black Designated Groups EI | B43: 0.03 | C43: 3 | D43: =W31 -> 0 | E43: 0
A44: Net Value | B44: 0.25 | C44: 8 | E44: ='NEI Calculator'!C39 -> 0
A45: Black New Entrant | B45: 0.02 | C45: 2 | D45: =V31 -> 0 | E45: 0
C46: =SUM(C39:C45) -> 25 | E46: =SUM(E39:E45) -> 0

Sheet NEI Calculator
A1: COMPANY NAME | C1: =+Ownership!B1 -> Test
A3: FINANCIAL INFORMATION USED | C3: =+Ownership!B3 -> 2017-02-28
A5: NEI Calculator
A10: Deemed Net Value Calculation | B10: B | C10: =+C12*Ownership!D41 -> 0 | D10: Value of Equity Interest at date of measurement (Black Shareholding)
B11: C | C11: =Ownership!J31 -> 0 | D11: Value of any debt relating to acquisition debt at date of measurement.
B12: D | C12: =+Ownership!K12 -> 0 | D12: Value of ME at date of measurement (Total Value of Company)
B14: A | C14: =IF(C12>0,(C10-C11)/C12,0) -> 0
A17: Time Based Graduation Factors | B17: Year 1 | C17: 0.1
B18: Year 2 | C18: 0.2
B19: Years 3 & 4 | C19: 0.4
B20: Years 5 & 6 | C20: 0.6
B21: Years 7 & 8 | C21: 0.8
B22: Years 9 & 10 | C22: 1
A24: Net Value (formula A) Calculation | B24: B | C24: =+C14 -> 0 | D24: Deemed Net Value Above
B25: C | C25: =VLOOKUP(I25,B17:C22,2) -> 0.8 | D25: Time based graduation factor | G25: Period since B-BBEE deal | I25: Years 7 & 8
B26: D | C26: 0.25 | D26: Compliance Target
B27: E | C27: 8 | D27: Weighting Points
B29: A | C29: =IF(AND(C25>0,C26>0),IF(ROUND(C24*C27*(1/(C25*C26)),2)>C27,C27,ROUND(C24*C27*(1/(C25*C26)),2)),0) -> 0
A32: Net Value (formula B) Calculation | B32: B | C32: =+Ownership!D41 -> 0
B33: C | C33: =C26 -> 0.25
B34: D | C34: 8
B36: A | C36: =IF(C33>0,IF((C32/C33)*C34>C34,C34,(C32/C33)*C34),0) -> 0
A39: Net Equity Interest | C39: =IF(C29<C36,C29,C36) -> 0

Sheet Management
B1: ='Global Business Solutions'!B27 -> Test
A3: FINANCIAL INFORMATION USED | B3: ='Global Business Solutions'!B29 -> 2017-02-28
A5: Management
A9: Name | B9: Race | C9: Gender | D9: Status | E9: Non Executive Board Members (NED) | M9: Executive Directors (ED) | U9: Executive Committee Members (EXCO)
B10: A/I/C/W - Please input Non South African as "W" | C10: M/F | D10: Non-Exec/Exec/Exco | E10: White or NSA Male | F10: White or NSA Female | G10: African Male | H10: Indian Male | I10: Coloured Male | J10: African Female | K10: Indian Female | L10: Coloured Female | M10: White or NSA Male | N10: White or NSA Female | O10: African Male | P10: Indian Male | Q10: Coloured Male | R10: African Female | S10: Indian Female | T10: Coloured Female | U10: White or NSA Male | V10: White or NSA Female | W10: African Male | X10: Indian Male | Y10: Coloured Male | Z10: African Female | AA10: Indian Female | AB10: Coloured Female
E11: =IF(AND(C11="M",B11="W", D11="Non-Exec"),1,"") ->  | F11: =IF(AND(C11="F",B11="W",D11="Non-Exec"),1,"") ->  | G11: =IF(AND(C11="M",B11="A",D11="Non-Exec"),1,"") ->  | H11: =IF(AND(C11="M",B11="I",D11="Non-Exec"),1,"") ->  | I11: =IF(AND(C11="M",B11="C",D11="Non-Exec"),1,"") ->  | J11: =IF(AND(C11="F",B11="A",D11="Non-Exec"),1,"") ->  | K11: =IF(AND(C11="F",B11="I",D11="Non-Exec"),1,"") ->  | L11: =IF(AND(C11="F",B11="C",D11="Non-Exec"),1,"") ->  | M11: =IF(AND(C11="M",D11="Exec",B11="W"),1,"") ->  | N11: =IF(AND(C11="F",B11="W",D11="Exec"),1,"") ->  | O11: =IF(AND(C11="M",B11="A",D11= "exec"),1,"") ->  | P11: =IF(AND(C11="M",B11="I",D11="Exec"),1,"") ->  | Q11: =IF(AND(C11="M",B11="C",D11="Exec"),1,"") ->  | R11: =IF(AND(C11="F",B11="A",D11="Exec"),1,"") ->  | S11: =IF(AND(C11="F",B11="I",D11="Exec"),1,"") ->  | T11: =IF(AND(C11="F",B11="C",D11="Exec"),1,"") ->  | U11: =IF(AND(C11="M",B11="W",D11="Exco"),1,"") ->  | V11: =IF(AND(C11="F",B11="W",D11="Exco"),1,"") ->  | W11: =IF(AND(C11="M",B11="A",D11="Exco"),1,"") ->  | X11: =IF(AND(C11="M",B11="I",D11="Exco"),1,"") ->  | Y11: =IF(AND(C11="M",B11="C",D11="Exco"),1,"") ->  | Z11: =IF(AND(C11="F",B11="A",D11="Exco"),1,"") ->  | AA11: =IF(AND(C11="F",B11="I",D11="Exco"),1,"") ->  | AB11: =IF(AND(C11="F",B11="C",D11="Exco"),1,"") -> 
E12: =IF(AND(C12="M",B12="W", D12="Non-Exec"),1,"") ->  | F12: =IF(AND(C12="F",B12="W",D12="Non-Exec"),1,"") ->  | G12: =IF(AND(C12="M",B12="A",D12="Non-Exec"),1,"") ->  | H12: =IF(AND(C12="M",B12="I",D12="Non-Exec"),1,"") ->  | I12: =IF(AND(C12="M",B12="C",D12="Non-Exec"),1,"") ->  | J12: =IF(AND(C12="F",B12="A",D12="Non-Exec"),1,"") ->  | K12: =IF(AND(C12="F",B12="I",D12="Non-Exec"),1,"") ->  | L12: =IF(AND(C12="F",B12="C",D12="Non-Exec"),1,"") ->  | M12: =IF(AND(C12="M",D12="Exec",B12="W"),1,"") ->  | N12: =IF(AND(C12="F",B12="W",D12="Exec"),1,"") ->  | O12: =IF(AND(C12="M",B12="A",D12= "exec"),1,"") ->  | P12: =IF(AND(C12="M",B12="I",D12="Exec"),1,"") ->  | Q12: =IF(AND(C12="M",B12="C",D12="Exec"),1,"") ->  | R12: =IF(AND(C12="F",B12="A",D12="Exec"),1,"") ->  | S12: =IF(AND(C12="F",B12="I",D12="Exec"),1,"") ->  | T12: =IF(AND(C12="F",B12="C",D12="Exec"),1,"") ->  | U12: =IF(AND(C12="M",B12="W",D12="Exco"),1,"") ->  | V12: =IF(AND(C12="F",B12="W",D12="Exco"),1,"") ->  | W12: =IF(AND(C12="M",B12="A",D12="Exco"),1,"") ->  | X12: =IF(AND(C12="M",B12="I",D12="Exco"),1,"") ->  | Y12: =IF(AND(C12="M",B12="C",D12="Exco"),1,"") ->  | Z12: =IF(AND(C12="F",B12="A",D12="Exco"),1,"") ->  | AA12: =IF(AND(C12="F",B12="I",D12="Exco"),1,"") ->  | AB12: =IF(AND(C12="F",B12="C",D12="Exco"),1,"") -> 
E27: =IF(AND(C27="M",B27="W", D27="Non-Exec"),1,"") ->  | F27: =IF(AND(C27="F",B27="W",D27="Non-Exec"),1,"") ->  | G27: =IF(AND(C27="M",B27="A",D27="Non-Exec"),1,"") ->  | H27: =IF(AND(C27="M",B27="I",D27="Non-Exec"),1,"") ->  | I27: =IF(AND(C27="M",B27="C",D27="Non-Exec"),1,"") ->  | J27: =IF(AND(C27="F",B27="A",D27="Non-Exec"),1,"") ->  | K27: =IF(AND(C27="F",B27="I",D27="Non-Exec"),1,"") ->  | L27: =IF(AND(C27="F",B27="C",D27="Non-Exec"),1,"") ->  | M27: =IF(AND(C27="M",D27="Exec",B27="W"),1,"") ->  | N27: =IF(AND(C27="F",B27="W",D27="Exec"),1,"") ->  | O27: =IF(AND(C27="M",B27="A",D27= "exec"),1,"") ->  | P27: =IF(AND(C27="M",B27="I",D27="Exec"),1,"") ->  | Q27: =IF(AND(C27="M",B27="C",D27="Exec"),1,"") ->  | R27: =IF(AND(C27="F",B27="A",D27="Exec"),1,"") ->  | S27: =IF(AND(C27="F",B27="I",D27="Exec"),1,"") ->  | T27: =IF(AND(C27="F",B27="C",D27="Exec"),1,"") ->  | U27: =IF(AND(C27="M",B27="W",D27="Exco"),1,"") ->  | V27: =IF(AND(C27="F",B27="W",D27="Exco"),1,"") ->  | W27: =IF(AND(C27="M",B27="A",D27="Exco"),1,"") ->  | X27: =IF(AND(C27="M",B27="I",D27="Exco"),1,"") ->  | Y27: =IF(AND(C27="M",B27="C",D27="Exco"),1,"") ->  | Z27: =IF(AND(C27="F",B27="A",D27="Exco"),1,"") ->  | AA27: =IF(AND(C27="F",B27="I",D27="Exco"),1,"") ->  | AB27: =IF(AND(C27="F",B27="C",D27="Exco"),1,"") -> 
E28: =SUM(E11:E27) -> 0 | F28: 0 | G28: 0 | H28: 0 | I28: 0 | J28: 0 | K28: 0 | L28: 0 | M28: 0 | N28: 0 | O28: 0 | P28: 0 | Q28: 0 | R28: 0 | S28: 0 | T28: 0 | U28: 0 | V28: 0 | W28: 0 | X28: 0 | Y28: 0 | Z28: 0 | AA28: 0 | AB28: 0
A30: Total Directors | B30: =SUM(E28:T28) -> 0
A31: Total Black Directors | B31: =SUM(G28:L28)+SUM(O28:T28) -> 0
A32: Total Black Female Directors | B32: =SUM(J28:L28)+SUM(R28:T28) -> 0
A33: Total Executive Directors | B33: =SUM(M28:T28) -> 0
A34: Total Black Executive Directors | B34: =SUM(O28:T28) -> 0
A35: Total Black Female Executive Directors | B35: =SUM(R28:T28) -> 0
A37: Board Representation - Black | B37: =IFERROR((B31/B30),0) -> 0 | C37: =IF(((B37/50%)*2)>2,2,((B37/50%)*2)) -> 0
A38: Board Representation - Black Female | B38: =IFERROR((B32/B30),0) -> 0 | C38: =IF(((B38/25%)*1)>1,1,((B38/25%)*1)) -> 0
A39: Executive Directors - Black | B39: =IFERROR(((B34/B33)),0) -> 0 | C39: =IF(((B39/60%)*2)>2,2,((B39/60%)*2)) -> 0
A40: Executive Directors - Black Female | B40: =IF(B33>0,B35/B33,0) -> 0 | C40: =IF(((B40/30%)*1)>1,1,((B40/30%)*1)) -> 0
A42: Other Executive Management | C42: Senior and Exec combined | E42: =IF(AND('Targets & Inputs'!C12="Y",OR(SUM(U28:AB28)=0,'Employment Equity Worksheet'!L12=0)),"Y","N") -> N
A43: Total Exco Managers | B43: =SUM(U28:AB28)+IF(E42="Y",'Employment Equity Worksheet'!L12,0) -> 0
A44: Total Black EXCO Managers | B44: =SUM(W28:AB28)+IF(E42="Y",'Employment Equity Worksheet'!M12,0) -> 0 | D44: Total Black Management
A45: Total Black Female EXCO Managers | B45: =SUM(Z28:AB28)+IF(E42="Y",'Employment Equity Worksheet'!N12,0) -> 0 | D45: Total Black Female Management
A47: Black EXCO | B47: =IF(B43>0,B44/B43,0) -> 0 | C47: =IF(((B47/60%)*2)>2,2,((B47/60%)*2)) -> 0
A48: Black Female EXCO | B48: =IF(B43>0,B45/B43,0) -> 0 | C48: =IF(((B48/30%)*1)>1,1,((B48/30%)*1)) -> 0
A49: W
A51: M
A52: F
A54: Non-Exec
A55: Exec
A56: Exco
A58: STM
A59: OTM
A60: N/A
A62: Top
A63: Senior
A64: N/A

Sheet Employment Equity Worksheet
A1: COMPANY NAME | B1: ='Global Business Solutions'!B27 -> Test
A3: FINANCIAL INFORMATION USED | B3: ='Global Business Solutions'!B29 -> 2017-02-28
A5: Employment Equity
A9: Occupational Level | B9: Male | G9: Female
B10: African | C10: Indian | D10: Coloured | E10: White/NSA | F10: Sub-Total | G10: African | H10: Indian | I10: Coloured | J10: White/NSA | K10: Sub-Total | L10: Total | M10: Black | N10: Black
A11: Top management - excluding non - executive Directors | B11: ='Employment Eq DATA INPUT'!V33 -> 0 | C11: ='Employment Eq DATA INPUT'!W33 -> 0 | D11: ='Employment Eq DATA INPUT'!X33 -> 0 | E11: ='Employment Eq DATA INPUT'!T33 -> 0 | F11: =SUM(B11:E11) -> 0 | G11: ='Employment Eq DATA INPUT'!Y33 -> 0 | H11: ='Employment Eq DATA INPUT'!Z33 -> 0 | I11: ='Employment Eq DATA INPUT'!AA33 -> 0 | J11: ='Employment Eq DATA INPUT'!U33 -> 0 | K11: =SUM(G11:J11) -> 0 | L11: =K11+F11 -> 0 | M11: =SUM(B11:D11)+N11 -> 0 | N11: =SUM(G11:I11) -> 0
A12: Senior management | B12: ='Employment Eq DATA INPUT'!AE33 -> 0 | C12: ='Employment Eq DATA INPUT'!AF33 -> 0 | D12: ='Employment Eq DATA INPUT'!AG33 -> 0 | E12: ='Employment Eq DATA INPUT'!AC33 -> 0 | F12: =SUM(B12:E12) -> 0 | G12: ='Employment Eq DATA INPUT'!AH33 -> 0 | H12: ='Employment Eq DATA INPUT'!AI33 -> 0 | I12: ='Employment Eq DATA INPUT'!AJ33 -> 0 | J12: ='Employment Eq DATA INPUT'!AD33 -> 0 | K12: =SUM(G12:J12) -> 0 | L12: 0 | M12: =SUM(B12:D12)+N12 -> 0 | N12: =SUM(G12:I12) -> 0
A13: Professionally qualified and experienced specialists and mid-management | B13: ='Employment Eq DATA INPUT'!AN33 -> 0 | C13: ='Employment Eq DATA INPUT'!AO33 -> 0 | D13: ='Employment Eq DATA INPUT'!AP33 -> 0 | E13: ='Employment Eq DATA INPUT'!AL33 -> 0 | F13: 0 | G13: ='Employment Eq DATA INPUT'!AQ33 -> 0 | H13: ='Employment Eq DATA INPUT'!AR33 -> 0 | I13: ='Employment Eq DATA INPUT'!AS33 -> 0 | J13: ='Employment Eq DATA INPUT'!AM33 -> 0 | K13: 0 | L13: 0 | M13: 0 | N13: 0
A14: Skilled technical and academically qualified workers, junior management, supervisors, foremen, and superintendents | B14: ='Employment Eq DATA INPUT'!AW33 -> 0 | C14: ='Employment Eq DATA INPUT'!AX33 -> 0 | D14: ='Employment Eq DATA INPUT'!AY33 -> 0 | E14: ='Employment Eq DATA INPUT'!AU33 -> 0 | F14: 0 | G14: ='Employment Eq DATA INPUT'!AZ33 -> 0 | H14: ='Employment Eq DATA INPUT'!BA33 -> 0 | I14: ='Employment Eq DATA INPUT'!BB33 -> 0 | J14: ='Employment Eq DATA INPUT'!AV33 -> 0 | K14: =SUM(G14:J14) -> 0 | L14: 0 | M14: 0 | N14: 0
A15: Semi-skilled and discretionary decision making | B15: ='Employment Eq DATA INPUT'!BF33 -> 0 | C15: ='Employment Eq DATA INPUT'!BG33 -> 0 | D15: ='Employment Eq DATA INPUT'!BH33 -> 0 | E15: ='Employment Eq DATA INPUT'!BD33 -> 0 | F15: 0 | G15: ='Employment Eq DATA INPUT'!BI33 -> 0 | H15: ='Employment Eq DATA INPUT'!BJ33 -> 0 | I15: ='Employment Eq DATA INPUT'!BK33 -> 0 | J15: ='Employment Eq DATA INPUT'!BE33 -> 0 | K15: 0 | L15: 0 | M15: 0 | N15: 0
A16: Unskilled and defined decision making | B16: ='Employment Eq DATA INPUT'!BO33 -> 0 | C16: ='Employment Eq DATA INPUT'!BP33 -> 0 | D16: ='Employment Eq DATA INPUT'!BQ33 -> 0 | E16: ='Employment Eq DATA INPUT'!BM33 -> 0 | F16: 0 | G16: ='Employment Eq DATA INPUT'!BR33 -> 0 | H16: ='Employment Eq DATA INPUT'!BS33 -> 0 | I16: ='Employment Eq DATA INPUT'!BT33 -> 0 | J16: ='Employment Eq DATA INPUT'!BN33 -> 0 | K16: 0 | L16: 0 | M16: 0 | N16: 0
A17: Expats | F17: 0 | K17: =SUM(G17:J17) -> 0 | L17: =K17+F17 -> 0 | M17: 0 | N17: 0
B18: =SUM(B11:B17) -> 0 | C18: =SUM(C11:C17) -> 0 | D18: 0 | E18: 0 | F18: 0 | G18: 0 | H18: 0 | I18: 0 | J18: 0 | K18: 0 | L18: =SUM(L11:L17) -> 0 | M18: =SUM(M11:M17) -> 0 | N18: =SUM(N11:N17) -> 0
A20: EAP Target | B20: =+'Targets & Inputs'!C26 -> 0.428 | C20: =+'Targets & Inputs'!D26 -> 0.018 | D20: =+'Targets & Inputs'!E26 -> 0.053 | G20: =+'Targets & Inputs'!F26 -> 0.351 | H20: =+'Targets & Inputs'!G26 -> 0.01 | I20: =+'Targets & Inputs'!H26 -> 0.045
A21: Adjusted EAP | B21: =+'Targets & Inputs'!C27 -> 0.4729281768 | C21: =+'Targets & Inputs'!D27 -> 0.01988950276 | D21: =+'Targets & Inputs'!E27 -> 0.05856353591 | G21: =+'Targets & Inputs'!F27 -> 0.3878453039 | H21: =+'Targets & Inputs'!G27 -> 0.01104972376 | I21: =+'Targets & Inputs'!H27 -> 0.04972375691
A22: Adjusted EAP - Female | G22: =ROUND(G20/SUM($G$20:$I$20),4) -> 0.8645 | H22: =ROUND(H20/SUM($G$20:$I$20),4) -> 0.0246 | I22: =ROUND(I20/SUM($G$20:$I$20),4) -> 0.1108
B24: Senior Management | C24: Middle Management | D24: Junior Management | G24: Senior Management | H24: Middle Management | I24: Junior Management
A25: Points | B25: =+Scorecard!F23 -> 2 | C25: =+Scorecard!F25 -> 2 | D25: =+Scorecard!F27 -> 1 | G25: =+Scorecard!F24 -> 1 | H25: =+Scorecard!F26 -> 1 | I25: =+Scorecard!F28 -> 1
A26: Target | B26: =+Scorecard!E23 -> 0.6 | C26: =+Scorecard!E25 -> 0.75 | D26: =+Scorecard!E27 -> 0.88 | G26: =+Scorecard!E24 -> 0.3 | H26: =+Scorecard!E26 -> 0.38 | I26: =+Scorecard!E28 -> 0.44
A28: Senior Management
A29: Points per Category | B29: =ROUND(B21*$B$25,2) -> 0.95 | C29: =ROUND(C21*$B$25,2) -> 0.04 | D29: =ROUND(D21*$B$25,2) -> 0.12 | G29: =ROUND(G21*$B$25,2) -> 0.78 | H29: =ROUND(H21*$B$25,2) -> 0.02 | I29: =ROUND(I21*$B$25,2) -> 0.1
A30: Target per category | B30: =ROUND($B$26*B21,4) -> 0.2838 | C30: =ROUND($B$26*C21,4) -> 0.0119 | D30: =ROUND($B$26*D21,4) -> 0.0351 | G30: =ROUND($B$26*G21,4) -> 0.2327 | H30: =ROUND($B$26*H21,4) -> 0.0066 | I30: =ROUND($B$26*I21,4) -> 0.0298
A32: Percentage Black | B32: =IF($L$12>0,B12/$L$12,0) -> 0 | C32: =IF($L$12>0,C12/$L$12,0) -> 0 | D32: 0 | E32: 0 | G32: 0 | H32: 0 | I32: 0 | J32: 0
A33: Percentage Achieved | B33: =+B32/B30 -> 0 | C33: =+C32/C30 -> 0 | D33: 0 | G33: 0 | H33: 0 | I33: 0
A34: Points | B34: =IF(B32/B30*B29>B29,B29,ROUND(B32/B30*B29,2)) -> 0 | C34: =IF(C32/C30*C29>C29,C29,ROUND(C32/C30*C29,2)) -> 0 | D34: =IF(D32/D30*D29>D29,D29,ROUND(D32/D30*D29,2)) -> 0 | G34: =IF(G32/G30*G29>G29,G29,ROUND(G32/G30*G29,2)) -> 0 | H34: =IF(H32/H30*H29>H29,H29,ROUND(H32/H30*H29,2)) -> 0 | I34: =IF(I32/I30*I29>I29,I29,ROUND(I32/I30*I29,2)) -> 0
A36: Points per Category - BF | G36: =ROUND(G22*$G$25,2) -> 0.86 | H36: =ROUND(H22*$G$25,2) -> 0.02 | I36: =ROUND(I22*$G$25,2) -> 0.11
A37: Target per category - BF | G37: =ROUND(G22*$G$26,4) -> 0.2594 | H37: =ROUND(H22*$G$26,4) -> 0.0074 | I37: =ROUND(I22*$G$26,4) -> 0.0332
A39: Percentage Black - BF | G39: =IF($L$12>0,G12/$L$12,0) -> 0 | H39: =IF($L$12>0,H12/$L$12,0) -> 0 | I39: =IF($L$12>0,I12/$L$12,0) -> 0 | J39: =IF($L$12>0,J12/$L$12,0) -> 0
A40: Percentage Achieved - BF | G40: =G32/G37 -> 0 | H40: =H32/H37 -> 0 | I40: =I32/I37 -> 0
A41: Points - BF | G41: =IF(G32/G37*G36>G36,G36,ROUND(G32/G37*G36,2)) -> 0 | H41: =IF(H32/H37*H36>H36,H36,ROUND(H32/H37*H36,2)) -> 0 | I41: =IF(I32/I37*I36>I36,I36,ROUND(I32/I37*I36,2)) -> 0
A43: Middle Management
A44: Points per Category | B44: =ROUND(B21*$C$25,2) -> 0.95 | C44: =ROUND(C21*$C$25,2) -> 0.04 | D44: =ROUND(D21*$C$25,2) -> 0.12 | G44: =ROUND(G21*$C$25,2) -> 0.78 | H44: =ROUND(H21*$C$25,2) -> 0.02 | I44: =ROUND(I21*$C$25,2) -> 0.1
A45: Target per category | B45: =ROUND($C$26*B21,4) -> 0.3547 | C45: =ROUND($C$26*C21,4) -> 0.0149 | D45: =ROUND($C$26*D21,4) -> 0.0439 | G45: =ROUND($C$26*G21,4) -> 0.2909 | H45: =ROUND($C$26*H21,4) -> 0.0083 | I45: =ROUND($C$26*I21,4) -> 0.0373
A47: Percentage Black | B47: =IF($L$13>0,B13/$L$13,0) -> 0 | C47: =IF($L$13>0,C13/$L$13,0) -> 0 | D47: 0 | E47: 0 | G47: 0 | H47: 0 | I47: 0 | J47: 0
A48: Percentage Achieved | B48: =+B47/B45 -> 0 | C48: =+C47/C45 -> 0 | D48: =+D47/D45 -> 0 | G48: =+G47/G45 -> 0 | H48: =+H47/H45 -> 0 | I48: =+I47/I45 -> 0
A49: Points | B49: =IF(B47/B45*B44>B44,B44,ROUND(B47/B45*B44,2)) -> 0 | C49: =IF(C47/C45*C44>C44,C44,ROUND(C47/C45*C44,2)) -> 0 | D49: =IF(D47/D45*D44>D44,D44,ROUND(D47/D45*D44,2)) -> 0 | G49: =IF(G47/G45*G44>G44,G44,ROUND(G47/G45*G44,2)) -> 0 | H49: =IF(H47/H45*H44>H44,H44,ROUND(H47/H45*H44,2)) -> 0 | I49: =IF(I47/I45*I44>I44,I44,ROUND(I47/I45*I44,2)) -> 0
A51: Points per Category | G51: =ROUND(G22*$H$25,2) -> 0.86 | H51: =ROUND(H22*$H$25,2) -> 0.02 | I51: =ROUND(I22*$H$25,2) -> 0.11
A52: Target per category | G52: =ROUND(G22*$H$26,4) -> 0.3285 | H52: =ROUND(H22*$H$26,4) -> 0.0093 | I52: =ROUND(I22*$H$26,4) -> 0.0421
A54: Percentage Black - BF | G54: =IF($L$13>0,G13/$L$13,0) -> 0 | H54: =IF($L$13>0,H13/$L$13,0) -> 0 | I54: =IF($L$13>0,I13/$L$13,0) -> 0 | J54: =IF($L$13>0,J13/$L$13,0) -> 0
A55: Percentage Achieved - BF | G55: =+G54/G52 -> 0 | H55: =+H54/H52 -> 0 | I55: =+I54/I52 -> 0
A56: Points - BF | G56: =IF(G54/G52*G51>G51,G51,ROUND(G54/G52*G51,2)) -> 0 | H56: =IF(H54/H52*H51>H51,H51,ROUND(H54/H52*H51,2)) -> 0 | I56: =IF(I54/I52*I51>I51,I51,ROUND(I54/I52*I51,2)) -> 0
A58: Junior Management
A59: Points per Category | B59: =ROUND($D$25*B21,2) -> 0.47 | C59: =ROUND($D$25*C21,2) -> 0.02 | D59: =ROUND($D$25*D21,2) -> 0.06 | G59: =ROUND($D$25*G21,2) -> 0.39 | H59: =ROUND($D$25*H21,2) -> 0.01 | I59: =ROUND($D$25*I21,2) -> 0.05
A60: Target per category | B60: =ROUND($D$26*B21,4) -> 0.4162 | C60: =ROUND($D$26*C21,4) -> 0.0175 | D60: =ROUND($D$26*D21,4) -> 0.0515 | G60: =ROUND($D$26*G21,4) -> 0.3413 | H60: =ROUND($D$26*H21,4) -> 0.0097 | I60: =ROUND($D$26*I21,4) -> 0.0438
A62: Percentage Black | B62: =IF($L$14>0,B14/$L$14,0) -> 0 | C62: =IF($L$14>0,C14/$L$14,0) -> 0 | D62: =IF($L$14>0,D14/$L$14,0) -> 0 | E62: =IF($L$14>0,E14/$L$14,0) -> 0 | G62: =IF($L$14>0,G14/$L$14,0) -> 0 | H62: =IF($L$14>0,H14/$L$14,0) -> 0 | I62: =IF($L$14>0,I14/$L$14,0) -> 0 | J62: =IF($L$14>0,J14/$L$14,0) -> 0
A63: Percentage Achieved | B63: =+B62/B60 -> 0 | C63: =+C62/C60 -> 0 | D63: =+D62/D60 -> 0 | G63: =+G62/G60 -> 0 | H63: =+H62/H60 -> 0 | I63: =+I62/I60 -> 0
A64: Points | B64: =IF(B62/B60*B59>B59,B59,ROUND(B62/B60*B59,2)) -> 0 | C64: =IF(C62/C60*C59>C59,C59,ROUND(C62/C60*C59,2)) -> 0 | D64: =IF(D62/D60*D59>D59,D59,ROUND(D62/D60*D59,2)) -> 0 | G64: =IF(G62/G60*G59>G59,G59,ROUND(G62/G60*G59,2)) -> 0 | H64: =IF(H62/H60*H59>H59,H59,ROUND(H62/H60*H59,2)) -> 0 | I64: =IF(I62/I60*I59>I59,I59,ROUND(I62/I60*I59,2)) -> 0
A66: Points per Category | G66: =ROUND($I$25*G22,2) -> 0.86 | H66: =ROUND($I$25*H22,2) -> 0.02 | I66: =ROUND($I$25*I22,2) -> 0.11
A67: Target per category | G67: =ROUND(G22*$I$26,4) -> 0.3804 | H67: =ROUND(H22*$I$26,4) -> 0.0108 | I67: =ROUND(I22*$I$26,4) -> 0.0488
A69: Percentage Black | G69: =IF($L$14>0,G14/$L$14,0) -> 0 | H69: =IF($L$14>0,H14/$L$14,0) -> 0 | I69: =IF($L$14>0,I14/$L$14,0) -> 0 | J69: =IF($L$14>0,J14/$L$14,0) -> 0
A70: Percentage Achieved | G70: =+G69/G67 -> 0 | H70: =+H69/H67 -> 0 | I70: =+I69/I67 -> 0
A71: Points | G71: =IF(G69/G67*G66>G66,G66,ROUND(G69/G67*G66,2)) -> 0 | H71: =IF(H69/H67*H66>H66,H66,ROUND(H69/H67*H66,2)) -> 0 | I71: =IF(I69/I67*I66>I66,I66,ROUND(I69/I67*I66,2)) -> 0
A74: Calculations
A76: Occupational Level | B76: Male
B77: African | C77: Indian | D77: Coloured | E77: Total Black Male | F77: White/ NSA | G77: Total Male
A78: Top Management | B78: =B11 -> 0 | C78: 0 | D78: 0 | E78: =SUM(B78:D78) -> 0 | F78: =E11 -> 0 | G78: =+E78+F78 -> 0
A79: Senior Management | B79: 0 | C79: 0 | D79: 0 | E79: 0 | F79: 0 | G79: 0
A80: Professionally Qualified and Experienced Specialist and Mid-management | B80: 0 | C80: 0 | D80: 0 | E80: 0 | F80: 0 | G80: 0
A81: Skilled Technical and academically qualified workers, junior management, supervisors, foremen, and superintendents | B81: 0 | C81: 0 | D81: 0 | E81: 0 | F81: 0 | G81: 0
A82: Semi-Skilled and discretionary decision making | B82: 0 | C82: 0 | D82: 0 | E82: 0 | F82: 0 | G82: 0
A83: Unskilled and defined decision making | B83: 0 | C83: 0 | D83: 0 | E83: 0 | F83: 0 | G83: 0
A84: Total Permanent Employees | B84: =SUM(B78:B83) -> 0 | C84: 0 | D84: 0 | E84: 0 | F84: 0 | G84: 0
A85: Total Disabled Employees | B85: ='Employment Eq DATA INPUT'!M33 -> 0 | C85: ='Employment Eq DATA INPUT'!N33 -> 0 | D85: ='Employment Eq DATA INPUT'!O33 -> 0 | E85: =SUM(B85:D85) -> 0 | F85: ='Employment Eq DATA INPUT'!K33 -> 0 | G85: =SUM(E85:F85) -> 0
A86: Top Management used in EXCO | B86: =Management!O29 -> 0 | C86: =Management!P29 -> 0 | D86: =Management!Q29 -> 0 | E86: =SUM(B86:D86) -> 0 | F86: =Management!M29 -> 0 | G86: =SUM(E86:F86) -> 0
A87: Percentage Black | B87: =IF($L$18>0,B84/$L$18,0) -> 0 | C87: 0 | D87: 0 | E87: =SUM(B87:D87) -> 0 | F87: =IF($L$18>0,F84/$L$18,0) -> 0 | G87: =+E87+F87 -> 0
A88: Percentage Black - Disabled | B88: 0 | C88: 0 | D88: 0 | E88: =SUM(B88:D88) -> 0 | F88: =IF($L$18>0,F85/$L$18,0) -> 0 | G88: =+E88+F88 -> 0
A90: Occupational Level | B90: Female
B91: African | C91: Indian | D91: Coloured | E91: Total Black Female | F91: White/ NSA | G91: Sub-Total
A92: Top Management | B92: =G11 -> 0 | C92: 0 | D92: 0 | E92: =SUM(B92:D92) -> 0 | F92: =J11 -> 0 | G92: =+E92+F92 -> 0
A93: Senior Management | B93: 0 | C93: 0 | D93: 0 | E93: 0 | F93: 0 | G93: 0
A94: Professionally Qualified and Experienced Specialist and Mid-management | B94: 0 | C94: 0 | D94: 0 | E94: 0 | F94: 0 | G94: 0
A95: Skilled Technical and academically qualified workers, junior management, supervisors, foremen, and superintendents | B95: 0 | C95: 0 | D95: 0 | E95: 0 | F95: 0 | G95: 0
A96: Semi-Skilled and discretionary decision making | B96: 0 | C96: 0 | D96: 0 | E96: 0 | F96: 0 | G96: 0
A97: Unskilled and defined decision making | B97: 0 | C97: 0 | D97: 0 | E97: 0 | F97: 0 | G97: 0
A98: Total Permanent Employees | B98: =SUM(B92:B97) -> 0 | C98: 0 | D98: 0 | E98: 0 | F98: 0 | G98: 0
A99: Total Disabled Employees | B99: ='Employment Eq DATA INPUT'!P33 -> 0 | C99: ='Employment Eq DATA INPUT'!Q33 -> 0 | D99: ='Employment Eq DATA INPUT'!R33 -> 0 | E99: =SUM(B99:D99) -> 0 | F99: ='Employment Eq DATA INPUT'!L33 -> 0 | G99: =SUM(E99:F99) -> 0
A100: Top Management used in EXCO | B100: =Management!R29 -> 0 | C100: =Management!S29 -> 0 | D100: =Management!T29 -> 0 | E100: =SUM(B100:D100) -> 0 | F100: =Management!N29 -> 0 | G100: =SUM(E100:F100) -> 0
A101: Percentage Black | B101: =IF($L$18>0,B98/$L$18,0) -> 0 | C101: 0 | D101: 0 | E101: =SUM(B101:D101) -> 0 | F101: =IF($L$18>0,F98/$L$18,0) -> 0 | G101: =+E101+F101 -> 0
A102: Percentage Black - Disabled | B102: 0 | C102: 0 | D102: 0 | E102: =SUM(B102:D102) -> 0 | F102: =IF($L$18>0,F99/$L$18,0) -> 0 | G102: =+E102+F102 -> 0
A104: Occupational Level | B104: Total
A106: Top Management | B106: =SUM(G78+G92) -> 0
A107: Senior Management | B107: 0
A108: Professionally Qualified and Experienced Specialist and Mid-management | B108: 0
A109: Skilled Technical and academically qualified workers, junior management, supervisors, foremen, and superintendents | B109: 0
A110: Semi-Skilled and discretionary decision making | B110: 0
A111: Unskilled and defined decision making | B111: 0
A112: Total Permanent Employees | B112: =SUM(B106:B111) -> 0
A113: Total Disabled Employees | B113: =SUM(G85+G99) -> 0
A114: Top Management used in EXCO | B114: =G100+G86 -> 0
A115: Disabled People | B115: =IF(B112>0,(E85+E99)/(B112),0) -> 0

Sheet Employment Eq DATA INPUT
A1: COMPANY NAME | C1: ='Global Business Solutions'!B27 -> Test
A3: FINANCIAL INFORMATION USED | C3: ='Global Business Solutions'!B29 -> 2017-02-28
A5: Employment Equity Data
A9: Instructions: | C9: Complete information regarding details of employees and management with the latest available data. Only include those who are permanently employed or those who have a employment contract for longer than 3 continuous months
K11: Disabled | T11: Top Management (T) | AC11: Senior Management (S) | AL11: Middle Management (M) | AU11: Junior Management (J) | BD11: 'Semi-Skilled' (SS) | BM11: 'Unskilled' (US)
A12: Name | B12: EE Number | C12: Identity Number | D12: RSA Citizen (Y/N) | E12: Race (A/I/C/W) - Please indicate Non SA Citizen as "W" | F12: Gender (M/F) | G12: Disabled (Y/N) - Only Input Medically certified disabilities | H12: Nature of Disability | I12: Position | J12: Occupational Level (T/S/M/J/SS/US) | K12: White or NSA Male | L12: White or NSA Female | M12: African Male | N12: Indian Male | O12: Coloured Male | P12: African Female | Q12: Indian Female | R12: Coloured Female | S12: Total | T12: White or NSA Male | U12: White or NSA Female | V12: African Male | W12: Indian Male | X12: Coloured Male | Y12: African Female | Z12: Indian Female | AA12: Coloured Female | AB12: Total | AC12: White or NSA Male | AD12: White or NSA Female | AE12: African Male | AF12: Indian Male | AG12: Coloured Male | AH12: African Female | AI12: Indian Female | AJ12: Coloured Female | AK12: Total | AL12: White or NSA Male | AM12: White or NSA Female | AN12: African Male | AO12: Indian Male | AP12: Coloured Male | AQ12: African Female | AR12: Indian Female | AS12: Coloured Female | AT12: Total | AU12: White or NSA Male | AV12: White or NSA Female | AW12: African Male | AX12: Indian Male | AY12: Coloured Male | AZ12: African Female | BA12: Indian Female | BB12: Coloured Female | BC12: Total | BD12: White or NSA Male | BE12: White or NSA Female | BF12: African Male | BG12: Indian Male | BH12: Coloured Male | BI12: African Female | BJ12: Indian Female | BK12: Coloured Female | BL12: Total | BM12: White or NSA Male | BN12: White or NSA Female | BO12: African Male | BP12: Indian Male | BQ12: Coloured Male | BR12: African Female | BS12: Indian Female | BT12: Coloured Female | BU12: Total
K13: =IF(AND(F13="M",D13="y",E13="W",G13="Y"),1,0) -> 0 | L13: =IF(AND(F13="F",D13="y",E13="W",G13="Y"),1,0) -> 0 | M13: =IF(AND(F13="M",D13="y",E13="A",G13="Y"),1,0) -> 0 | N13: =IF(AND(F13="M",D13="y",E13="I",G13="Y"),1,0) -> 0 | O13: =IF(AND(F13="M",D13="y",E13="C",G13="Y"),1,0) -> 0 | P13: =IF(AND(F13="F",D13="y",E13="A",G13="Y"),1,0) -> 0 | Q13: =IF(AND(F13="F",D13="y",E13="I",G13="Y"),1,0) -> 0 | R13: =IF(AND(F13="F",D13="y",E13="C",G13="Y"),1,0) -> 0 | S13: =SUM(K13:R13) -> 0 | T13: =IF(AND(F13="M",J13="T",E13="W"),1,0) -> 0 | U13: =IF(AND(F13="F",J13="T",E13="W"),1,0) -> 0 | V13: =IF(AND(F13="M",J13="T",E13="A"),1,0) -> 0 | W13: =IF(AND(F13="M",J13="T",E13="I"),1,0) -> 0 | X13: =IF(AND(F13="M",J13="T",E13="C"),1,0) -> 0 | Y13: =IF(AND(F13="F",J13="T",E13="A"),1,0) -> 0 | Z13: =IF(AND(F13="F",J13="T",E13="I"),1,0) -> 0 | AA13: =IF(AND(F13="F",J13="T",E13="C"),1,0) -> 0 | AB13: =SUM(T13:AA13) -> 0 | AC13: =IF(AND(F13="M",J13="S",E13="W"),1,0) -> 0 | AD13: =IF(AND(F13="F",J13="S",E13="W"),1,0) -> 0 | AE13: =IF(AND(F13="M",J13="S",E13="A"),1,0) -> 0 | AF13: =IF(AND(F13="M",J13="S",E13="I"),1,0) -> 0 | AG13: =IF(AND(F13="M",J13="S",E13="C"),1,0) -> 0 | AH13: =IF(AND(F13="F",J13="S",E13="A"),1,0) -> 0 | AI13: =IF(AND(F13="F",J13="S",E13="I"),1,0) -> 0 | AJ13: =IF(AND(F13="F",J13="S",E13="C"),1,0) -> 0 | AK13: =SUM(AC13:AJ13) -> 0 | AL13: =IF(AND(F13="M",J13="M",E13="W"),1,0) -> 0 | AM13: =IF(AND(F13="F",J13="M",E13="W"),1,0) -> 0 | AN13: =IF(AND(F13="M",J13="M",E13="A"),1,0) -> 0 | AO13: =IF(AND(F13="M",J13="M",E13="I"),1,0) -> 0 | AP13: =IF(AND(F13="M",J13="M",E13="C"),1,0) -> 0 | AQ13: =IF(AND(F13="F",J13="M",E13="A"),1,0) -> 0 | AR13: =IF(AND(F13="F",J13="M",E13="I"),1,0) -> 0 | AS13: =IF(AND(F13="F",J13="M",E13="C"),1,0) -> 0 | AT13: =SUM(AL13:AS13) -> 0 | AU13: =IF(AND(F13="M",J13="J",E13="W"),1,0) -> 0 | AV13: =IF(AND(F13="F",J13="J",E13="W"),1,0) -> 0 | AW13: =IF(AND(F13="M",J13="J",E13="A"),1,0) -> 0 | AX13: =IF(AND(F13="M",J13="J",E13="I"),1,0) -> 0 | AY13: =IF(AND(F13="M",J13="J",E13="C"),1,0) -> 0 | AZ13: =IF(AND(F13="F",J13="J",E13="A"),1,0) -> 0 | BA13: =IF(AND(F13="F",J13="J",E13="I"),1,0) -> 0 | BB13: =IF(AND(F13="F",J13="J",E13="C"),1,0) -> 0 | BC13: =SUM(AU13:BB13) -> 0 | BD13: =IF(AND(F13="M",J13="SS",E13="W"),1,0) -> 0 | BE13: =IF(AND(F13="F",J13="SS",E13="W"),1,0) -> 0 | BF13: =IF(AND(F13="M",J13="SS",E13="A"),1,0) -> 0 | BG13: =IF(AND(F13="M",J13="SS",E13="I"),1,0) -> 0 | BH13: =IF(AND(F13="M",J13="SS",E13="C"),1,0) -> 0 | BI13: =IF(AND(F13="F",J13="SS",E13="A"),1,0) -> 0 | BJ13: =IF(AND(F13="F",J13="SS",E13="I"),1,0) -> 0 | BK13: =IF(AND(F13="F",J13="SS",E13="C"),1,0) -> 0 | BL13: =SUM(BD13:BK13) -> 0 | BM13: =IF(AND(F13="M",J13="US",E13="W"),1,0) -> 0 | BN13: =IF(AND(F13="F",J13="US",E13="W"),1,0) -> 0 | BO13: =IF(AND(F13="M",J13="US",E13="A"),1,0) -> 0 | BP13: =IF(AND(F13="M",J13="US",E13="I"),1,0) -> 0 | BQ13: =IF(AND(F13="M",J13="US",E13="C"),1,0) -> 0 | BR13: =IF(AND(F13="F",J13="US",E13="A"),1,0) -> 0 | BS13: =IF(AND(F13="F",J13="US",E13="I"),1,0) -> 0 | BT13: =IF(AND(F13="F",J13="US",E13="C"),1,0) -> 0 | BU13: =SUM(BM13:BT13) -> 0
K14: 0 | L14: 0 | M14: 0 | N14: 0 | O14: 0 | P14: 0 | Q14: 0 | R14: 0 | S14: 0 | T14: 0 | U14: 0 | V14: 0 | W14: 0 | X14: 0 | Y14: 0 | Z14: 0 | AA14: 0 | AB14: 0 | AC14: 0 | AD14: 0 | AE14: 0 | AF14: 0 | AG14: 0 | AH14: 0 | AI14: 0 | AJ14: 0 | AK14: 0 | AL14: 0 | AM14: 0 | AN14: 0 | AO14: 0 | AP14: 0 | AQ14: 0 | AR14: 0 | AS14: 0 | AT14: 0 | AU14: 0 | AV14: 0 | AW14: 0 | AX14: 0 | AY14: 0 | AZ14: 0 | BA14: 0 | BB14: 0 | BC14: 0 | BD14: 0 | BE14: 0 | BF14: 0 | BG14: 0 | BH14: 0 | BI14: 0 | BJ14: 0 | BK14: 0 | BL14: 0 | BM14: 0 | BN14: 0 | BO14: 0 | BP14: 0 | BQ14: 0 | BR14: 0 | BS14: 0 | BT14: 0 | BU14: 0
K15: 0 | L15: 0 | M15: 0 | N15: 0 | O15: 0 | P15: 0 | Q15: 0 | R15: 0 | S15: 0 | T15: 0 | U15: 0 | V15: 0 | W15: 0 | X15: 0 | Y15: 0 | Z15: 0 | AA15: 0 | AB15: 0 | AC15: 0 | AD15: 0 | AE15: 0 | AF15: 0 | AG15: 0 | AH15: 0 | AI15: 0 | AJ15: 0 | AK15: 0 | AL15: 0 | AM15: 0 | AN15: 0 | AO15: 0 | AP15: 0 | AQ15: 0 | AR15: 0 | AS15: 0 | AT15: 0 | AU15: 0 | AV15: 0 | AW15: 0 | AX15: 0 | AY15: 0 | AZ15: 0 | BA15: 0 | BB15: 0 | BC15: 0 | BD15: 0 | BE15: 0 | BF15: 0 | BG15: 0 | BH15: 0 | BI15: 0 | BJ15: 0 | BK15: 0 | BL15: 0 | BM15: 0 | BN15: 0 | BO15: 0 | BP15: 0 | BQ15: 0 | BR15: 0 | BS15: 0 | BT15: 0 | BU15: 0
K16: =IF(AND(F16="M",D16="y",E16="W",G16="Y"),1,0) -> 0 | L16: =IF(AND(F16="F",D16="y",E16="W",G16="Y"),1,0) -> 0 | M16: =IF(AND(F16="M",D16="y",E16="A",G16="Y"),1,0) -> 0 | N16: =IF(AND(F16="M",D16="y",E16="I",G16="Y"),1,0) -> 0 | O16: =IF(AND(F16="M",D16="y",E16="C",G16="Y"),1,0) -> 0 | P16: =IF(AND(F16="F",D16="y",E16="A",G16="Y"),1,0) -> 0 | Q16: =IF(AND(F16="F",D16="y",E16="I",G16="Y"),1,0) -> 0 | R16: =IF(AND(F16="F",D16="y",E16="C",G16="Y"),1,0) -> 0 | S16: =SUM(K16:R16) -> 0 | T16: =IF(AND(F16="M",J16="T",E16="W"),1,0) -> 0 | U16: =IF(AND(F16="F",J16="T",E16="W"),1,0) -> 0 | V16: =IF(AND(F16="M",J16="T",E16="A"),1,0) -> 0 | W16: =IF(AND(F16="M",J16="T",E16="I"),1,0) -> 0 | X16: =IF(AND(F16="M",J16="T",E16="C"),1,0) -> 0 | Y16: =IF(AND(F16="F",J16="T",E16="A"),1,0) -> 0 | Z16: =IF(AND(F16="F",J16="T",E16="I"),1,0) -> 0 | AA16: =IF(AND(F16="F",J16="T",E16="C"),1,0) -> 0 | AB16: =SUM(T16:AA16) -> 0 | AC16: =IF(AND(F16="M",J16="S",E16="W"),1,0) -> 0 | AD16: =IF(AND(F16="F",J16="S",E16="W"),1,0) -> 0 | AE16: =IF(AND(F16="M",J16="S",E16="A"),1,0) -> 0 | AF16: =IF(AND(F16="M",J16="S",E16="I"),1,0) -> 0 | AG16: =IF(AND(F16="M",J16="S",E16="C"),1,0) -> 0 | AH16: =IF(AND(F16="F",J16="S",E16="A"),1,0) -> 0 | AI16: =IF(AND(F16="F",J16="S",E16="I"),1,0) -> 0 | AJ16: =IF(AND(F16="F",J16="S",E16="C"),1,0) -> 0 | AK16: =SUM(AC16:AJ16) -> 0 | AL16: =IF(AND(F16="M",J16="M",E16="W"),1,0) -> 0 | AM16: =IF(AND(F16="F",J16="M",E16="W"),1,0) -> 0 | AN16: =IF(AND(F16="M",J16="M",E16="A"),1,0) -> 0 | AO16: =IF(AND(F16="M",J16="M",E16="I"),1,0) -> 0 | AP16: =IF(AND(F16="M",J16="M",E16="C"),1,0) -> 0 | AQ16: =IF(AND(F16="F",J16="M",E16="A"),1,0) -> 0 | AR16: =IF(AND(F16="F",J16="M",E16="I"),1,0) -> 0 | AS16: =IF(AND(F16="F",J16="M",E16="C"),1,0) -> 0 | AT16: =SUM(AL16:AS16) -> 0 | AU16: =IF(AND(F16="M",J16="J",E16="W"),1,0) -> 0 | AV16: =IF(AND(F16="F",J16="J",E16="W"),1,0) -> 0 | AW16: =IF(AND(F16="M",J16="J",E16="A"),1,0) -> 0 | AX16: =IF(AND(F16="M",J16="J",E16="I"),1,0) -> 0 | AY16: =IF(AND(F16="M",J16="J",E16="C"),1,0) -> 0 | AZ16: =IF(AND(F16="F",J16="J",E16="A"),1,0) -> 0 | BA16: =IF(AND(F16="F",J16="J",E16="I"),1,0) -> 0 | BB16: =IF(AND(F16="F",J16="J",E16="C"),1,0) -> 0 | BC16: =SUM(AU16:BB16) -> 0 | BD16: =IF(AND(F16="M",J16="SS",E16="W"),1,0) -> 0 | BE16: =IF(AND(F16="F",J16="SS",E16="W"),1,0) -> 0 | BF16: =IF(AND(F16="M",J16="SS",E16="A"),1,0) -> 0 | BG16: =IF(AND(F16="M",J16="SS",E16="I"),1,0) -> 0 | BH16: =IF(AND(F16="M",J16="SS",E16="C"),1,0) -> 0 | BI16: =IF(AND(F16="F",J16="SS",E16="A"),1,0) -> 0 | BJ16: =IF(AND(F16="F",J16="SS",E16="I"),1,0) -> 0 | BK16: =IF(AND(F16="F",J16="SS",E16="C"),1,0) -> 0 | BL16: =SUM(BD16:BK16) -> 0 | BM16: =IF(AND(F16="M",J16="US",E16="W"),1,0) -> 0 | BN16: =IF(AND(F16="F",J16="US",E16="W"),1,0) -> 0 | BO16: =IF(AND(F16="M",J16="US",E16="A"),1,0) -> 0 | BP16: =IF(AND(F16="M",J16="US",E16="I"),1,0) -> 0 | BQ16: =IF(AND(F16="M",J16="US",E16="C"),1,0) -> 0 | BR16: =IF(AND(F16="F",J16="US",E16="A"),1,0) -> 0 | BS16: =IF(AND(F16="F",J16="US",E16="I"),1,0) -> 0 | BT16: =IF(AND(F16="F",J16="US",E16="C"),1,0) -> 0 | BU16: =SUM(BM16:BT16) -> 0
K17: 0 | L17: 0 | M17: 0 | N17: 0 | O17: 0 | P17: 0 | Q17: 0 | R17: 0 | S17: 0 | T17: 0 | U17: 0 | V17: 0 | W17: 0 | X17: 0 | Y17: 0 | Z17: 0 | AA17: 0 | AB17: 0 | AC17: 0 | AD17: 0 | AE17: 0 | AF17: 0 | AG17: 0 | AH17: 0 | AI17: 0 | AJ17: 0 | AK17: 0 | AL17: 0 | AM17: 0 | AN17: 0 | AO17: 0 | AP17: 0 | AQ17: 0 | AR17: 0 | AS17: 0 | AT17: 0 | AU17: 0 | AV17: 0 | AW17: 0 | AX17: 0 | AY17: 0 | AZ17: 0 | BA17: 0 | BB17: 0 | BC17: 0 | BD17: 0 | BE17: 0 | BF17: 0 | BG17: 0 | BH17: 0 | BI17: 0 | BJ17: 0 | BK17: 0 | BL17: 0 | BM17: 0 | BN17: 0 | BO17: 0 | BP17: 0 | BQ17: 0 | BR17: 0 | BS17: 0 | BT17: 0 | BU17: 0
K18: 0 | L18: 0 | M18: 0 | N18: 0 | O18: 0 | P18: 0 | Q18: 0 | R18: 0 | S18: 0 | T18: 0 | U18: 0 | V18: 0 | W18: 0 | X18: 0 | Y18: 0 | Z18: 0 | AA18: 0 | AB18: 0 | AC18: 0 | AD18: 0 | AE18: 0 | AF18: 0 | AG18: 0 | AH18: 0 | AI18: 0 | AJ18: 0 | AK18: 0 | AL18: 0 | AM18: 0 | AN18: 0 | AO18: 0 | AP18: 0 | AQ18: 0 | AR18: 0 | AS18: 0 | AT18: 0 | AU18: 0 | AV18: 0 | AW18: 0 | AX18: 0 | AY18: 0 | AZ18: 0 | BA18: 0 | BB18: 0 | BC18: 0 | BD18: 0 | BE18: 0 | BF18: 0 | BG18: 0 | BH18: 0 | BI18: 0 | BJ18: 0 | BK18: 0 | BL18: 0 | BM18: 0 | BN18: 0 | BO18: 0 | BP18: 0 | BQ18: 0 | BR18: 0 | BS18: 0 | BT18: 0 | BU18: 0
K19: 0 | L19: 0 | M19: 0 | N19: 0 | O19: 0 | P19: 0 | Q19: 0 | R19: 0 | S19: 0 | T19: 0 | U19: 0 | V19: 0 | W19: 0 | X19: 0 | Y19: 0 | Z19: 0 | AA19: 0 | AB19: 0 | AC19: 0 | AD19: 0 | AE19: 0 | AF19: 0 | AG19: 0 | AH19: 0 | AI19: 0 | AJ19: 0 | AK19: 0 | AL19: 0 | AM19: 0 | AN19: 0 | AO19: 0 | AP19: 0 | AQ19: 0 | AR19: 0 | AS19: 0 | AT19: 0 | AU19: 0 | AV19: 0 | AW19: 0 | AX19: 0 | AY19: 0 | AZ19: 0 | BA19: 0 | BB19: 0 | BC19: 0 | BD19: 0 | BE19: 0 | BF19: 0 | BG19: 0 | BH19: 0 | BI19: 0 | BJ19: 0 | BK19: 0 | BL19: 0 | BM19: 0 | BN19: 0 | BO19: 0 | BP19: 0 | BQ19: 0 | BR19: 0 | BS19: 0 | BT19: 0 | BU19: 0
K20: 0 | L20: 0 | M20: 0 | N20: 0 | O20: 0 | P20: 0 | Q20: 0 | R20: 0 | S20: 0 | T20: 0 | U20: 0 | V20: 0 | W20: 0 | X20: 0 | Y20: 0 | Z20: 0 | AA20: 0 | AB20: 0 | AC20: 0 | AD20: 0 | AE20: 0 | AF20: 0 | AG20: 0 | AH20: 0 | AI20: 0 | AJ20: 0 | AK20: 0 | AL20: 0 | AM20: 0 | AN20: 0 | AO20: 0 | AP20: 0 | AQ20: 0 | AR20: 0 | AS20: 0 | AT20: 0 | AU20: 0 | AV20: 0 | AW20: 0 | AX20: 0 | AY20: 0 | AZ20: 0 | BA20: 0 | BB20: 0 | BC20: 0 | BD20: 0 | BE20: 0 | BF20: 0 | BG20: 0 | BH20: 0 | BI20: 0 | BJ20: 0 | BK20: 0 | BL20: 0 | BM20: 0 | BN20: 0 | BO20: 0 | BP20: 0 | BQ20: 0 | BR20: 0 | BS20: 0 | BT20: 0 | BU20: 0
K21: 0 | L21: 0 | M21: 0 | N21: 0 | O21: 0 | P21: 0 | Q21: 0 | R21: 0 | S21: 0 | T21: 0 | U21: 0 | V21: 0 | W21: 0 | X21: 0 | Y21: 0 | Z21: 0 | AA21: 0 | AB21: 0 | AC21: 0 | AD21: 0 | AE21: 0 | AF21: 0 | AG21: 0 | AH21: 0 | AI21: 0 | AJ21: 0 | AK21: 0 | AL21: 0 | AM21: 0 | AN21: 0 | AO21: 0 | AP21: 0 | AQ21: 0 | AR21: 0 | AS21: 0 | AT21: 0 | AU21: 0 | AV21: 0 | AW21: 0 | AX21: 0 | AY21: 0 | AZ21: 0 | BA21: 0 | BB21: 0 | BC21: 0 | BD21: 0 | BE21: 0 | BF21: 0 | BG21: 0 | BH21: 0 | BI21: 0 | BJ21: 0 | BK21: 0 | BL21: 0 | BM21: 0 | BN21: 0 | BO21: 0 | BP21: 0 | BQ21: 0 | BR21: 0 | BS21: 0 | BT21: 0 | BU21: 0
K22: 0 | L22: 0 | M22: 0 | N22: 0 | O22: 0 | P22: 0 | Q22: 0 | R22: 0 | S22: 0 | T22: 0 | U22: 0 | V22: 0 | W22: 0 | X22: 0 | Y22: 0 | Z22: 0 | AA22: 0 | AB22: 0 | AC22: 0 | AD22: 0 | AE22: 0 | AF22: 0 | AG22: 0 | AH22: 0 | AI22: 0 | AJ22: 0 | AK22: 0 | AL22: 0 | AM22: 0 | AN22: 0 | AO22: 0 | AP22: 0 | AQ22: 0 | AR22: 0 | AS22: 0 | AT22: 0 | AU22: 0 | AV22: 0 | AW22: 0 | AX22: 0 | AY22: 0 | AZ22: 0 | BA22: 0 | BB22: 0 | BC22: 0 | BD22: 0 | BE22: 0 | BF22: 0 | BG22: 0 | BH22: 0 | BI22: 0 | BJ22: 0 | BK22: 0 | BL22: 0 | BM22: 0 | BN22: 0 | BO22: 0 | BP22: 0 | BQ22: 0 | BR22: 0 | BS22: 0 | BT22: 0 | BU22: 0
K23: 0 | L23: 0 | M23: 0 | N23: 0 | O23: 0 | P23: 0 | Q23: 0 | R23: 0 | S23: 0 | T23: 0 | U23: 0 | V23: 0 | W23: 0 | X23: 0 | Y23: 0 | Z23: 0 | AA23: 0 | AB23: 0 | AC23: 0 | AD23: 0 | AE23: 0 | AF23: 0 | AG23: 0 | AH23: 0 | AI23: 0 | AJ23: 0 | AK23: 0 | AL23: 0 | AM23: 0 | AN23: 0 | AO23: 0 | AP23: 0 | AQ23: 0 | AR23: 0 | AS23: 0 | AT23: 0 | AU23: 0 | AV23: 0 | AW23: 0 | AX23: 0 | AY23: 0 | AZ23: 0 | BA23: 0 | BB23: 0 | BC23: 0 | BD23: 0 | BE23: 0 | BF23: 0 | BG23: 0 | BH23: 0 | BI23: 0 | BJ23: 0 | BK23: 0 | BL23: 0 | BM23: 0 | BN23: 0 | BO23: 0 | BP23: 0 | BQ23: 0 | BR23: 0 | BS23: 0 | BT23: 0 | BU23: 0
K24: 0 | L24: 0 | M24: 0 | N24: 0 | O24: 0 | P24: 0 | Q24: 0 | R24: 0 | S24: 0 | T24: 0 | U24: 0 | V24: 0 | W24: 0 | X24: 0 | Y24: 0 | Z24: 0 | AA24: 0 | AB24: 0 | AC24: 0 | AD24: 0 | AE24: 0 | AF24: 0 | AG24: 0 | AH24: 0 | AI24: 0 | AJ24: 0 | AK24: 0 | AL24: 0 | AM24: 0 | AN24: 0 | AO24: 0 | AP24: 0 | AQ24: 0 | AR24: 0 | AS24: 0 | AT24: 0 | AU24: 0 | AV24: 0 | AW24: 0 | AX24: 0 | AY24: 0 | AZ24: 0 | BA24: 0 | BB24: 0 | BC24: 0 | BD24: 0 | BE24: 0 | BF24: 0 | BG24: 0 | BH24: 0 | BI24: 0 | BJ24: 0 | BK24: 0 | BL24: 0 | BM24: 0 | BN24: 0 | BO24: 0 | BP24: 0 | BQ24: 0 | BR24: 0 | BS24: 0 | BT24: 0 | BU24: 0
K25: 0 | L25: 0 | M25: 0 | N25: 0 | O25: 0 | P25: 0 | Q25: 0 | R25: 0 | S25: 0 | T25: 0 | U25: 0 | V25: 0 | W25: 0 | X25: 0 | Y25: 0 | Z25: 0 | AA25: 0 | AB25: 0 | AC25: 0 | AD25: 0 | AE25: 0 | AF25: 0 | AG25: 0 | AH25: 0 | AI25: 0 | AJ25: 0 | AK25: 0 | AL25: 0 | AM25: 0 | AN25: 0 | AO25: 0 | AP25: 0 | AQ25: 0 | AR25: 0 | AS25: 0 | AT25: 0 | AU25: 0 | AV25: 0 | AW25: 0 | AX25: 0 | AY25: 0 | AZ25: 0 | BA25: 0 | BB25: 0 | BC25: 0 | BD25: 0 | BE25: 0 | BF25: 0 | BG25: 0 | BH25: 0 | BI25: 0 | BJ25: 0 | BK25: 0 | BL25: 0 | BM25: 0 | BN25: 0 | BO25: 0 | BP25: 0 | BQ25: 0 | BR25: 0 | BS25: 0 | BT25: 0 | BU25: 0
K26: 0 | L26: 0 | M26: 0 | N26: 0 | O26: 0 | P26: 0 | Q26: 0 | R26: 0 | S26: 0 | T26: 0 | U26: 0 | V26: 0 | W26: 0 | X26: 0 | Y26: 0 | Z26: 0 | AA26: 0 | AB26: 0 | AC26: 0 | AD26: 0 | AE26: 0 | AF26: 0 | AG26: 0 | AH26: 0 | AI26: 0 | AJ26: 0 | AK26: 0 | AL26: 0 | AM26: 0 | AN26: 0 | AO26: 0 | AP26: 0 | AQ26: 0 | AR26: 0 | AS26: 0 | AT26: 0 | AU26: 0 | AV26: 0 | AW26: 0 | AX26: 0 | AY26: 0 | AZ26: 0 | BA26: 0 | BB26: 0 | BC26: 0 | BD26: 0 | BE26: 0 | BF26: 0 | BG26: 0 | BH26: 0 | BI26: 0 | BJ26: 0 | BK26: 0 | BL26: 0 | BM26: 0 | BN26: 0 | BO26: 0 | BP26: 0 | BQ26: 0 | BR26: 0 | BS26: 0 | BT26: 0 | BU26: 0
K27: 0 | L27: 0 | M27: 0 | N27: 0 | O27: 0 | P27: 0 | Q27: 0 | R27: 0 | S27: 0 | T27: 0 | U27: 0 | V27: 0 | W27: 0 | X27: 0 | Y27: 0 | Z27: 0 | AA27: 0 | AB27: 0 | AC27: 0 | AD27: 0 | AE27: 0 | AF27: 0 | AG27: 0 | AH27: 0 | AI27: 0 | AJ27: 0 | AK27: 0 | AL27: 0 | AM27: 0 | AN27: 0 | AO27: 0 | AP27: 0 | AQ27: 0 | AR27: 0 | AS27: 0 | AT27: 0 | AU27: 0 | AV27: 0 | AW27: 0 | AX27: 0 | AY27: 0 | AZ27: 0 | BA27: 0 | BB27: 0 | BC27: 0 | BD27: 0 | BE27: 0 | BF27: 0 | BG27: 0 | BH27: 0 | BI27: 0 | BJ27: 0 | BK27: 0 | BL27: 0 | BM27: 0 | BN27: 0 | BO27: 0 | BP27: 0 | BQ27: 0 | BR27: 0 | BS27: 0 | BT27: 0 | BU27: 0
K28: 0 | L28: 0 | M28: 0 | N28: 0 | O28: 0 | P28: 0 | Q28: 0 | R28: 0 | S28: 0 | T28: 0 | U28: 0 | V28: 0 | W28: 0 | X28: 0 | Y28: 0 | Z28: 0 | AA28: 0 | AB28: 0 | AC28: 0 | AD28: 0 | AE28: 0 | AF28: 0 | AG28: 0 | AH28: 0 | AI28: 0 | AJ28: 0 | AK28: 0 | AL28: 0 | AM28: 0 | AN28: 0 | AO28: 0 | AP28: 0 | AQ28: 0 | AR28: 0 | AS28: 0 | AT28: 0 | AU28: 0 | AV28: 0 | AW28: 0 | AX28: 0 | AY28: 0 | AZ28: 0 | BA28: 0 | BB28: 0 | BC28: 0 | BD28: 0 | BE28: 0 | BF28: 0 | BG28: 0 | BH28: 0 | BI28: 0 | BJ28: 0 | BK28: 0 | BL28: 0 | BM28: 0 | BN28: 0 | BO28: 0 | BP28: 0 | BQ28: 0 | BR28: 0 | BS28: 0 | BT28: 0 | BU28: 0
K29: 0 | L29: 0 | M29: 0 | N29: 0 | O29: 0 | P29: 0 | Q29: 0 | R29: 0 | S29: 0 | T29: 0 | U29: 0 | V29: 0 | W29: 0 | X29: 0 | Y29: 0 | Z29: 0 | AA29: 0 | AB29: 0 | AC29: 0 | AD29: 0 | AE29: 0 | AF29: 0 | AG29: 0 | AH29: 0 | AI29: 0 | AJ29: 0 | AK29: 0 | AL29: 0 | AM29: 0 | AN29: 0 | AO29: 0 | AP29: 0 | AQ29: 0 | AR29: 0 | AS29: 0 | AT29: 0 | AU29: 0 | AV29: 0 | AW29: 0 | AX29: 0 | AY29: 0 | AZ29: 0 | BA29: 0 | BB29: 0 | BC29: 0 | BD29: 0 | BE29: 0 | BF29: 0 | BG29: 0 | BH29: 0 | BI29: 0 | BJ29: 0 | BK29: 0 | BL29: 0 | BM29: 0 | BN29: 0 | BO29: 0 | BP29: 0 | BQ29: 0 | BR29: 0 | BS29: 0 | BT29: 0 | BU29: 0
K30: 0 | L30: 0 | M30: 0 | N30: 0 | O30: 0 | P30: 0 | Q30: 0 | R30: 0 | S30: 0 | T30: 0 | U30: 0 | V30: 0 | W30: 0 | X30: 0 | Y30: 0 | Z30: 0 | AA30: 0 | AB30: 0 | AC30: 0 | AD30: 0 | AE30: 0 | AF30: 0 | AG30: 0 | AH30: 0 | AI30: 0 | AJ30: 0 | AK30: 0 | AL30: 0 | AM30: 0 | AN30: 0 | AO30: 0 | AP30: 0 | AQ30: 0 | AR30: 0 | AS30: 0 | AT30: 0 | AU30: 0 | AV30: 0 | AW30: 0 | AX30: 0 | AY30: 0 | AZ30: 0 | BA30: 0 | BB30: 0 | BC30: 0 | BD30: 0 | BE30: 0 | BF30: 0 | BG30: 0 | BH30: 0 | BI30: 0 | BJ30: 0 | BK30: 0 | BL30: 0 | BM30: 0 | BN30: 0 | BO30: 0 | BP30: 0 | BQ30: 0 | BR30: 0 | BS30: 0 | BT30: 0 | BU30: 0
K31: =IF(AND(F31="M",D31="y",E31="W",G31="Y"),1,0) -> 0 | L31: =IF(AND(F31="F",D31="y",E31="W",G31="Y"),1,0) -> 0 | M31: =IF(AND(F31="M",D31="y",E31="A",G31="Y"),1,0) -> 0 | N31: =IF(AND(F31="M",D31="y",E31="I",G31="Y"),1,0) -> 0 | O31: =IF(AND(F31="M",D31="y",E31="C",G31="Y"),1,0) -> 0 | P31: =IF(AND(F31="F",D31="y",E31="A",G31="Y"),1,0) -> 0 | Q31: =IF(AND(F31="F",D31="y",E31="I",G31="Y"),1,0) -> 0 | R31: =IF(AND(F31="F",D31="y",E31="C",G31="Y"),1,0) -> 0 | S31: =SUM(K31:R31) -> 0 | T31: =IF(AND(F31="M",J31="T",E31="W"),1,0) -> 0 | U31: =IF(AND(F31="F",J31="T",E31="W"),1,0) -> 0 | V31: =IF(AND(F31="M",J31="T",E31="A"),1,0) -> 0 | W31: =IF(AND(F31="M",J31="T",E31="I"),1,0) -> 0 | X31: =IF(AND(F31="M",J31="T",E31="C"),1,0) -> 0 | Y31: =IF(AND(F31="F",J31="T",E31="A"),1,0) -> 0 | Z31: =IF(AND(F31="F",J31="T",E31="I"),1,0) -> 0 | AA31: =IF(AND(F31="F",J31="T",E31="C"),1,0) -> 0 | AB31: =SUM(T31:AA31) -> 0 | AC31: =IF(AND(F31="M",J31="S",E31="W"),1,0) -> 0 | AD31: =IF(AND(F31="F",J31="S",E31="W"),1,0) -> 0 | AE31: =IF(AND(F31="M",J31="S",E31="A"),1,0) -> 0 | AF31: =IF(AND(F31="M",J31="S",E31="I"),1,0) -> 0 | AG31: =IF(AND(F31="M",J31="S",E31="C"),1,0) -> 0 | AH31: =IF(AND(F31="F",J31="S",E31="A"),1,0) -> 0 | AI31: =IF(AND(F31="F",J31="S",E31="I"),1,0) -> 0 | AJ31: =IF(AND(F31="F",J31="S",E31="C"),1,0) -> 0 | AK31: =SUM(AC31:AJ31) -> 0 | AL31: =IF(AND(F31="M",J31="M",E31="W"),1,0) -> 0 | AM31: =IF(AND(F31="F",J31="M",E31="W"),1,0) -> 0 | AN31: =IF(AND(F31="M",J31="M",E31="A"),1,0) -> 0 | AO31: =IF(AND(F31="M",J31="M",E31="I"),1,0) -> 0 | AP31: =IF(AND(F31="M",J31="M",E31="C"),1,0) -> 0 | AQ31: =IF(AND(F31="F",J31="M",E31="A"),1,0) -> 0 | AR31: =IF(AND(F31="F",J31="M",E31="I"),1,0) -> 0 | AS31: =IF(AND(F31="F",J31="M",E31="C"),1,0) -> 0 | AT31: =SUM(AL31:AS31) -> 0 | AU31: =IF(AND(F31="M",J31="J",E31="W"),1,0) -> 0 | AV31: =IF(AND(F31="F",J31="J",E31="W"),1,0) -> 0 | AW31: =IF(AND(F31="M",J31="J",E31="A"),1,0) -> 0 | AX31: =IF(AND(F31="M",J31="J",E31="I"),1,0) -> 0 | AY31: =IF(AND(F31="M",J31="J",E31="C"),1,0) -> 0 | AZ31: =IF(AND(F31="F",J31="J",E31="A"),1,0) -> 0 | BA31: =IF(AND(F31="F",J31="J",E31="I"),1,0) -> 0 | BB31: =IF(AND(F31="F",J31="J",E31="C"),1,0) -> 0 | BC31: =SUM(AU31:BB31) -> 0 | BD31: =IF(AND(F31="M",J31="SS",E31="W"),1,0) -> 0 | BE31: =IF(AND(F31="F",J31="SS",E31="W"),1,0) -> 0 | BF31: =IF(AND(F31="M",J31="SS",E31="A"),1,0) -> 0 | BG31: =IF(AND(F31="M",J31="SS",E31="I"),1,0) -> 0 | BH31: =IF(AND(F31="M",J31="SS",E31="C"),1,0) -> 0 | BI31: =IF(AND(F31="F",J31="SS",E31="A"),1,0) -> 0 | BJ31: =IF(AND(F31="F",J31="SS",E31="I"),1,0) -> 0 | BK31: =IF(AND(F31="F",J31="SS",E31="C"),1,0) -> 0 | BL31: =SUM(BD31:BK31) -> 0 | BM31: =IF(AND(F31="M",J31="US",E31="W"),1,0) -> 0 | BN31: =IF(AND(F31="F",J31="US",E31="W"),1,0) -> 0 | BO31: =IF(AND(F31="M",J31="US",E31="A"),1,0) -> 0 | BP31: =IF(AND(F31="M",J31="US",E31="I"),1,0) -> 0 | BQ31: =IF(AND(F31="M",J31="US",E31="C"),1,0) -> 0 | BR31: =IF(AND(F31="F",J31="US",E31="A"),1,0) -> 0 | BS31: =IF(AND(F31="F",J31="US",E31="I"),1,0) -> 0 | BT31: =IF(AND(F31="F",J31="US",E31="C"),1,0) -> 0 | BU31: =SUM(BM31:BT31) -> 0
B32: Please enter new lines above here
D33: =COUNTA(D13:D32) -> 0 | K33: =SUM(K13:K32) -> 0 | L33: 0 | M33: 0 | N33: 0 | O33: 0 | P33: 0 | Q33: 0 | R33: 0 | S33: 0 | T33: 0 | U33: 0 | V33: 0 | W33: 0 | X33: 0 | Y33: 0 | Z33: 0 | AA33: 0 | AB33: 0 | AC33: 0 | AD33: 0 | AE33: 0 | AF33: 0 | AG33: 0 | AH33: 0 | AI33: 0 | AJ33: 0 | AK33: 0 | AL33: 0 | AM33: 0 | AN33: 0 | AO33: 0 | AP33: 0 | AQ33: =SUM(AQ13:AQ32) -> 0 | AR33: 0 | AS33: 0 | AT33: 0 | AU33: 0 | AV33: 0 | AW33: 0 | AX33: 0 | AY33: 0 | AZ33: 0 | BA33: 0 | BB33: 0 | BC33: 0 | BD33: 0 | BE33: 0 | BF33: 0 | BG33: 0 | BH33: 0 | BI33: 0 | BJ33: 0 | BK33: 0 | BL33: 0 | BM33: 0 | BN33: 0 | BO33: 0 | BP33: 0 | BQ33: 0 | BR33: 0 | BS33: 0 | BT33: 0 | BU33: 0

Sheet SD Table 1
A1: COMPANY NAME | B1: ='Global Business Solutions'!B27 -> Test
A3: FINANCIAL INFORMATION USED | B3: ='Global Business Solutions'!B29 -> 2017-02-28
A5: Skills Development Table 1 | C5: Please only complete table with information for the periods reflected alongside | Q5: Note: These training costs reflected must exclude VAT as well as the salaries of all Learners employed during the period under review. The salaries of the Learners must be completed in SD Table 2
A9: Type of Training Courses Attended | B9: Learning Program Matrix Category | C9: ABET Program? | D9: Total Number of Delegates Attended | E9: Number of Black Male Delegates Attended | H9: Number of Black Women Attended | K9: Number of Black Male Delegates Attended who are also disabled | N9: Number of Black Delegates Attended who are also female and disabled | Q9: Cost of Trainers (External or Internal not recovered in SD Table 4) | R9: Cost of Training Facilities not recovered in SD Table 4 | S9: Other Costs including Training Materials, but Excluding Catering, Accommodation and Travel | T9: Other Costs Incurred - Catering, Accommodation and Travel | U9: Total Costs Incurred for training courses for all delegates | V9: Reference Number | W9: Your Comments and Notes | X9: Cost per Delegate | Y9: Cost per Delegate | Z9: Black Male Delegates | AC9: Black Women Delegates | AF9: Disabled Black Male Delegates | AI9: Disabled Black Women Delegates | AL9: Category F or G Training - Black Male Delegates Only | AO9: Category F or G Training - Black Female Delegates Only | AR9: Category F or G Training - Black Male Disabled Delegates Only | AU9: Category F or G Training - Black Female Disabled Delegates Only | AX9: Accommodation, Travel & Catering - Black Male Delegates Only | BA9: Accommodation, Travel & Catering - Black Female Delegates Only | BD9: Accommodation, Travel & Catering - Black Male Disabled Delegates Only | BG9: Accommodation, Travel & Catering - Black Female Disabled Delegates Only
A10: (excluding staff bursaries granted) | B10: A,B,C,D,E,F or G (See Statement 400) | C10: (Yes or No) | D10: (Black & White) | E10: A | F10: I | G10: C | H10: A | I10: I | J10: C | K10: A | L10: I | M10: C | N10: A | O10: I | P10: C | Y10: - Catering, Accommodation and Travel | Z10: A | AA10: I | AB10: C | AC10: A | AD10: I | AE10: C | AF10: A | AG10: I | AH10: C | AI10: A | AJ10: I | AK10: C | AL10: A | AM10: I | AN10: C | AO10: A | AP10: I | AQ10: C | AR10: A | AS10: I | AT10: C | AU10: A | AV10: I | AW10: C | AX10: A | AY10: I | AZ10: C | BA10: A | BB10: I | BC10: C | BD10: A | BE10: I | BF10: C | BG10: A | BH10: I | BI10: C
R11: 0 | S11: 0 | T11: 0 | U11: =SUM(Q11:T11) -> 0 | V11: SD1-1 | X11: =IF(D11>0,(Q11+R11+S11)/D11,0) -> 0 | Y11: =IF(D11>0,T11/D11,0) -> 0 | Z11: =($X11+$Y11)*E11 -> 0 | AA11: 0 | AB11: 0 | AC11: 0 | AD11: 0 | AE11: 0 | AF11: 0 | AG11: 0 | AH11: 0 | AI11: 0 | AJ11: 0 | AK11: 0 | AL11: =IF(OR($B11="F",$B11="G"),E11*$X11,0) -> 0 | AM11: 0 | AN11: 0 | AO11: 0 | AP11: 0 | AQ11: 0 | AR11: 0 | AS11: 0 | AT11: 0 | AU11: 0 | AV11: 0 | AW11: 0 | AX11: =IF($Y11>0,E11*$Y11,0) -> 0 | AY11: 0 | AZ11: 0 | BA11: 0 | BB11: 0 | BC11: 0 | BD11: 0 | BE11: 0 | BF11: 0 | BG11: 0 | BH11: 0 | BI11: 0
R12: 0 | S12: 0 | T12: 0 | U12: =SUM(Q12:T12) -> 0 | V12: SD1-2 | X12: =IF(D12>0,(Q12+R12+S12)/D12,0) -> 0 | Y12: =IF(D12>0,T12/D12,0) -> 0 | Z12: 0 | AA12: 0 | AB12: 0 | AC12: 0 | AD12: 0 | AE12: 0 | AF12: 0 | AG12: 0 | AH12: 0 | AI12: 0 | AJ12: 0 | AK12: 0 | AL12: 0 | AM12: 0 | AN12: 0 | AO12: 0 | AP12: 0 | AQ12: 0 | AR12: 0 | AS12: 0 | AT12: 0 | AU12: 0 | AV12: 0 | AW12: 0 | AX12: 0 | AY12: 0 | AZ12: 0 | BA12: 0 | BB12: 0 | BC12: 0 | BD12: 0 | BE12: 0 | BF12: 0 | BG12: 0 | BH12: 0 | BI12: 0
R13: 0 | S13: 0 | T13: 0 | U13: 0 | V13: SD1-3 | X13: =IF(D13>0,(Q13+R13+S13)/D13,0) -> 0 | Y13: =IF(D13>0,T13/D13,0) -> 0 | Z13: =($X13+$Y13)*E13 -> 0 | AA13: =($X13+$Y13)*F13 -> 0 | AB13: =($X13+$Y13)*G13 -> 0 | AC13: =($X13+$Y13)*H13 -> 0 | AD13: =($X13+$Y13)*I13 -> 0 | AE13: =($X13+$Y13)*J13 -> 0 | AF13: =($X13+$Y13)*K13 -> 0 | AG13: =($X13+$Y13)*L13 -> 0 | AH13: =($X13+$Y13)*M13 -> 0 | AI13: =($X13+$Y13)*N13 -> 0 | AJ13: =($X13+$Y13)*O13 -> 0 | AK13: =($X13+$Y13)*P13 -> 0 | AL13: =IF(OR($B13="F",$B13="G"),E13*$X13,0) -> 0 | AM13: =IF(OR($B13="F",$B13="G"),F13*$X13,0) -> 0 | AN13: =IF(OR($B13="F",$B13="G"),G13*$X13,0) -> 0 | AO13: =IF(OR($B13="F",$B13="G"),H13*$X13,0) -> 0 | AP13: =IF(OR($B13="F",$B13="G"),I13*$X13,0) -> 0 | AQ13: =IF(OR($B13="F",$B13="G"),J13*$X13,0) -> 0 | AR13: =IF(OR($B13="F",$B13="G"),K13*$X13,0) -> 0 | AS13: =IF(OR($B13="F",$B13="G"),L13*$X13,0) -> 0 | AT13: =IF(OR($B13="F",$B13="G"),M13*$X13,0) -> 0 | AU13: =IF(OR($B13="F",$B13="G"),N13*$X13,0) -> 0 | AV13: =IF(OR($B13="F",$B13="G"),O13*$X13,0) -> 0 | AW13: =IF(OR($B13="F",$B13="G"),P13*$X13,0) -> 0 | AX13: =IF($Y13>0,E13*$Y13,0) -> 0 | AY13: =IF($Y13>0,F13*$Y13,0) -> 0 | AZ13: =IF($Y13>0,G13*$Y13,0) -> 0 | BA13: =IF($Y13>0,H13*$Y13,0) -> 0 | BB13: =IF($Y13>0,I13*$Y13,0) -> 0 | BC13: =IF($Y13>0,J13*$Y13,0) -> 0 | BD13: =IF($Y13>0,K13*$Y13,0) -> 0 | BE13: =IF($Y13>0,L13*$Y13,0) -> 0 | BF13: =IF($Y13>0,M13*$Y13,0) -> 0 | BG13: =IF($Y13>0,N13*$Y13,0) -> 0 | BH13: =IF($Y13>0,O13*$Y13,0) -> 0 | BI13: =IF($Y13>0,P13*$Y13,0) -> 0
R14: 0 | S14: 0 | T14: 0 | U14: 0 | V14: SD1-4 | X14: 0 | Y14: 0 | Z14: 0 | AA14: 0 | AB14: 0 | AC14: 0 | AD14: 0 | AE14: 0 | AF14: 0 | AG14: 0 | AH14: 0 | AI14: 0 | AJ14: 0 | AK14: 0 | AL14: 0 | AM14: 0 | AN14: 0 | AO14: 0 | AP14: 0 | AQ14: 0 | AR14: 0 | AS14: 0 | AT14: 0 | AU14: 0 | AV14: 0 | AW14: 0 | AX14: 0 | AY14: 0 | AZ14: 0 | BA14: 0 | BB14: 0 | BC14: 0 | BD14: 0 | BE14: 0 | BF14: 0 | BG14: 0 | BH14: 0 | BI14: 0
R15: 0 | S15: 0 | T15: 0 | U15: 0 | V15: SD1-5 | X15: 0 | Y15: 0 | Z15: 0 | AA15: 0 | AB15: 0 | AC15: 0 | AD15: 0 | AE15: 0 | AF15: 0 | AG15: 0 | AH15: 0 | AI15: 0 | AJ15: 0 | AK15: 0 | AL15: 0 | AM15: 0 | AN15: 0 | AO15: 0 | AP15: 0 | AQ15: 0 | AR15: 0 | AS15: 0 | AT15: 0 | AU15: 0 | AV15: 0 | AW15: 0 | AX15: 0 | AY15: 0 | AZ15: 0 | BA15: 0 | BB15: 0 | BC15: 0 | BD15: 0 | BE15: 0 | BF15: 0 | BG15: 0 | BH15: 0 | BI15: 0
R16: 0 | S16: 0 | T16: 0 | U16: 0 | V16: SD1-6 | X16: 0 | Y16: 0 | Z16: 0 | AA16: 0 | AB16: 0 | AC16: 0 | AD16: 0 | AE16: 0 | AF16: 0 | AG16: 0 | AH16: 0 | AI16: 0 | AJ16: 0 | AK16: 0 | AL16: 0 | AM16: 0 | AN16: 0 | AO16: 0 | AP16: 0 | AQ16: 0 | AR16: 0 | AS16: 0 | AT16: 0 | AU16: 0 | AV16: 0 | AW16: 0 | AX16: 0 | AY16: 0 | AZ16: 0 | BA16: 0 | BB16: 0 | BC16: 0 | BD16: 0 | BE16: 0 | BF16: 0 | BG16: 0 | BH16: 0 | BI16: 0
R17: 0 | S17: 0 | T17: 0 | U17: 0 | V17: SD1-7 | X17: 0 | Y17: 0 | Z17: 0 | AA17: 0 | AB17: 0 | AC17: 0 | AD17: 0 | AE17: 0 | AF17: 0 | AG17: 0 | AH17: 0 | AI17: 0 | AJ17: 0 | AK17: 0 | AL17: 0 | AM17: 0 | AN17: 0 | AO17: 0 | AP17: 0 | AQ17: 0 | AR17: 0 | AS17: 0 | AT17: 0 | AU17: 0 | AV17: 0 | AW17: 0 | AX17: 0 | AY17: 0 | AZ17: 0 | BA17: 0 | BB17: 0 | BC17: 0 | BD17: 0 | BE17: 0 | BF17: 0 | BG17: 0 | BH17: 0 | BI17: 0
R18: 0 | S18: 0 | T18: 0 | U18: 0 | V18: SD1-8 | X18: 0 | Y18: 0 | Z18: 0 | AA18: 0 | AB18: 0 | AC18: 0 | AD18: 0 | AE18: 0 | AF18: 0 | AG18: 0 | AH18: 0 | AI18: 0 | AJ18: 0 | AK18: 0 | AL18: 0 | AM18: 0 | AN18: 0 | AO18: 0 | AP18: 0 | AQ18: 0 | AR18: 0 | AS18: 0 | AT18: 0 | AU18: 0 | AV18: 0 | AW18: 0 | AX18: 0 | AY18: 0 | AZ18: 0 | BA18: 0 | BB18: 0 | BC18: 0 | BD18: 0 | BE18: 0 | BF18: 0 | BG18: 0 | BH18: 0 | BI18: 0
R19: 0 | S19: 0 | T19: 0 | U19: 0 | V19: SD1-9 | X19: 0 | Y19: 0 | Z19: 0 | AA19: 0 | AB19: 0 | AC19: 0 | AD19: 0 | AE19: 0 | AF19: 0 | AG19: 0 | AH19: 0 | AI19: 0 | AJ19: 0 | AK19: 0 | AL19: 0 | AM19: 0 | AN19: 0 | AO19: 0 | AP19: 0 | AQ19: 0 | AR19: 0 | AS19: 0 | AT19: 0 | AU19: 0 | AV19: 0 | AW19: 0 | AX19: 0 | AY19: 0 | AZ19: 0 | BA19: 0 | BB19: 0 | BC19: 0 | BD19: 0 | BE19: 0 | BF19: 0 | BG19: 0 | BH19: 0 | BI19: 0
R20: 0 | S20: 0 | T20: 0 | U20: 0 | V20: SD1-10 | X20: 0 | Y20: 0 | Z20: 0 | AA20: 0 | AB20: 0 | AC20: 0 | AD20: 0 | AE20: 0 | AF20: 0 | AG20: 0 | AH20: 0 | AI20: 0 | AJ20: 0 | AK20: 0 | AL20: 0 | AM20: 0 | AN20: 0 | AO20: 0 | AP20: 0 | AQ20: 0 | AR20: 0 | AS20: 0 | AT20: 0 | AU20: 0 | AV20: 0 | AW20: 0 | AX20: 0 | AY20: 0 | AZ20: 0 | BA20: 0 | BB20: 0 | BC20: 0 | BD20: 0 | BE20: 0 | BF20: 0 | BG20: 0 | BH20: 0 | BI20: 0
R21: 0 | S21: 0 | T21: 0 | U21: 0 | V21: SD1-11 | X21: 0 | Y21: 0 | Z21: 0 | AA21: 0 | AB21: 0 | AC21: 0 | AD21: 0 | AE21: 0 | AF21: 0 | AG21: 0 | AH21: 0 | AI21: 0 | AJ21: 0 | AK21: 0 | AL21: 0 | AM21: 0 | AN21: 0 | AO21: 0 | AP21: 0 | AQ21: 0 | AR21: 0 | AS21: 0 | AT21: 0 | AU21: 0 | AV21: 0 | AW21: 0 | AX21: 0 | AY21: 0 | AZ21: 0 | BA21: 0 | BB21: 0 | BC21: 0 | BD21: 0 | BE21: 0 | BF21: 0 | BG21: 0 | BH21: 0 | BI21: 0
R22: 0 | S22: 0 | T22: 0 | U22: 0 | V22: SD1-12 | X22: 0 | Y22: 0 | Z22: 0 | AA22: 0 | AB22: 0 | AC22: 0 | AD22: 0 | AE22: 0 | AF22: 0 | AG22: 0 | AH22: 0 | AI22: 0 | AJ22: 0 | AK22: 0 | AL22: 0 | AM22: 0 | AN22: 0 | AO22: 0 | AP22: 0 | AQ22: 0 | AR22: 0 | AS22: 0 | AT22: 0 | AU22: 0 | AV22: 0 | AW22: 0 | AX22: 0 | AY22: 0 | AZ22: 0 | BA22: 0 | BB22: 0 | BC22: 0 | BD22: 0 | BE22: 0 | BF22: 0 | BG22: 0 | BH22: 0 | BI22: 0
R23: 0 | S23: 0 | T23: 0 | U23: 0 | V23: SD1-13 | X23: 0 | Y23: 0 | Z23: 0 | AA23: 0 | AB23: 0 | AC23: 0 | AD23: 0 | AE23: 0 | AF23: 0 | AG23: 0 | AH23: 0 | AI23: 0 | AJ23: 0 | AK23: 0 | AL23: 0 | AM23: 0 | AN23: 0 | AO23: 0 | AP23: 0 | AQ23: 0 | AR23: 0 | AS23: 0 | AT23: 0 | AU23: 0 | AV23: 0 | AW23: 0 | AX23: 0 | AY23: 0 | AZ23: 0 | BA23: 0 | BB23: 0 | BC23: 0 | BD23: 0 | BE23: 0 | BF23: 0 | BG23: 0 | BH23: 0 | BI23: 0
R24: 0 | S24: 0 | T24: 0 | U24: 0 | V24: SD1-14 | X24: 0 | Y24: 0 | Z24: 0 | AA24: 0 | AB24: 0 | AC24: 0 | AD24: 0 | AE24: 0 | AF24: 0 | AG24: 0 | AH24: 0 | AI24: 0 | AJ24: 0 | AK24: 0 | AL24: 0 | AM24: 0 | AN24: 0 | AO24: 0 | AP24: 0 | AQ24: 0 | AR24: 0 | AS24: 0 | AT24: 0 | AU24: 0 | AV24: 0 | AW24: 0 | AX24: 0 | AY24: 0 | AZ24: 0 | BA24: 0 | BB24: 0 | BC24: 0 | BD24: 0 | BE24: 0 | BF24: 0 | BG24: 0 | BH24: 0 | BI24: 0
R25: 0 | S25: 0 | T25: 0 | U25: 0 | V25: SD1-15 | X25: 0 | Y25: 0 | Z25: 0 | AA25: 0 | AB25: 0 | AC25: 0 | AD25: 0 | AE25: 0 | AF25: 0 | AG25: 0 | AH25: 0 | AI25: 0 | AJ25: 0 | AK25: 0 | AL25: 0 | AM25: 0 | AN25: 0 | AO25: 0 | AP25: 0 | AQ25: 0 | AR25: 0 | AS25: 0 | AT25: 0 | AU25: 0 | AV25: 0 | AW25: 0 | AX25: 0 | AY25: 0 | AZ25: 0 | BA25: 0 | BB25: 0 | BC25: 0 | BD25: 0 | BE25: 0 | BF25: 0 | BG25: 0 | BH25: 0 | BI25: 0
R26: 0 | S26: 0 | T26: 0 | U26: 0 | V26: SD1-16 | X26: 0 | Y26: 0 | Z26: 0 | AA26: 0 | AB26: 0 | AC26: 0 | AD26: 0 | AE26: 0 | AF26: 0 | AG26: 0 | AH26: 0 | AI26: 0 | AJ26: 0 | AK26: 0 | AL26: 0 | AM26: 0 | AN26: 0 | AO26: 0 | AP26: 0 | AQ26: 0 | AR26: 0 | AS26: 0 | AT26: 0 | AU26: 0 | AV26: 0 | AW26: 0 | AX26: 0 | AY26: 0 | AZ26: 0 | BA26: 0 | BB26: 0 | BC26: 0 | BD26: 0 | BE26: 0 | BF26: 0 | BG26: 0 | BH26: 0 | BI26: 0
R27: 0 | S27: 0 | T27: 0 | U27: 0 | V27: SD1-17 | X27: 0 | Y27: 0 | Z27: 0 | AA27: 0 | AB27: 0 | AC27: 0 | AD27: 0 | AE27: 0 | AF27: 0 | AG27: 0 | AH27: 0 | AI27: 0 | AJ27: 0 | AK27: 0 | AL27: 0 | AM27: 0 | AN27: 0 | AO27: 0 | AP27: 0 | AQ27: 0 | AR27: 0 | AS27: 0 | AT27: 0 | AU27: 0 | AV27: 0 | AW27: 0 | AX27: 0 | AY27: 0 | AZ27: 0 | BA27: 0 | BB27: 0 | BC27: 0 | BD27: 0 | BE27: 0 | BF27: 0 | BG27: 0 | BH27: 0 | BI27: 0
R28: 0 | S28: 0 | T28: 0 | U28: 0 | V28: SD1-18 | X28: 0 | Y28: 0 | Z28: 0 | AA28: 0 | AB28: 0 | AC28: 0 | AD28: 0 | AE28: 0 | AF28: 0 | AG28: 0 | AH28: 0 | AI28: 0 | AJ28: 0 | AK28: 0 | AL28: 0 | AM28: 0 | AN28: 0 | AO28: 0 | AP28: 0 | AQ28: 0 | AR28: 0 | AS28: 0 | AT28: 0 | AU28: 0 | AV28: 0 | AW28: 0 | AX28: 0 | AY28: 0 | AZ28: 0 | BA28: 0 | BB28: 0 | BC28: 0 | BD28: 0 | BE28: 0 | BF28: 0 | BG28: 0 | BH28: 0 | BI28: 0
R29: 0 | S29: 0 | T29: 0 | U29: 0 | V29: SD1-19 | X29: 0 | Y29: 0 | Z29: 0 | AA29: 0 | AB29: 0 | AC29: 0 | AD29: 0 | AE29: 0 | AF29: 0 | AG29: 0 | AH29: 0 | AI29: 0 | AJ29: 0 | AK29: 0 | AL29: 0 | AM29: 0 | AN29: 0 | AO29: 0 | AP29: 0 | AQ29: 0 | AR29: 0 | AS29: 0 | AT29: 0 | AU29: 0 | AV29: 0 | AW29: 0 | AX29: 0 | AY29: 0 | AZ29: 0 | BA29: 0 | BB29: 0 | BC29: 0 | BD29: 0 | BE29: 0 | BF29: 0 | BG29: 0 | BH29: 0 | BI29: 0
R30: 0 | S30: 0 | T30: 0 | U30: 0 | V30: SD1-20 | X30: 0 | Y30: 0 | Z30: 0 | AA30: 0 | AB30: 0 | AC30: 0 | AD30: 0 | AE30: 0 | AF30: 0 | AG30: 0 | AH30: 0 | AI30: 0 | AJ30: 0 | AK30: 0 | AL30: 0 | AM30: 0 | AN30: 0 | AO30: 0 | AP30: 0 | AQ30: 0 | AR30: 0 | AS30: 0 | AT30: 0 | AU30: 0 | AV30: 0 | AW30: 0 | AX30: 0 | AY30: 0 | AZ30: 0 | BA30: 0 | BB30: 0 | BC30: 0 | BD30: 0 | BE30: 0 | BF30: 0 | BG30: 0 | BH30: 0 | BI30: 0
U31: 0 | V31: SD1-21 | X31: =IF(D31>0,(Q31+R31+S31)/D31,0) -> 0 | Y31: =IF(D31>0,T31/D31,0) -> 0 | Z31: =($X31+$Y31)*E31 -> 0 | AA31: =($X31+$Y31)*F31 -> 0 | AB31: =($X31+$Y31)*G31 -> 0 | AC31: =($X31+$Y31)*H31 -> 0 | AD31: =($X31+$Y31)*I31 -> 0 | AE31: =($X31+$Y31)*J31 -> 0 | AF31: =($X31+$Y31)*K31 -> 0 | AG31: =($X31+$Y31)*L31 -> 0 | AH31: =($X31+$Y31)*M31 -> 0 | AI31: =($X31+$Y31)*N31 -> 0 | AJ31: =($X31+$Y31)*O31 -> 0 | AK31: =($X31+$Y31)*P31 -> 0 | AL31: =IF(OR($B31="F",$B31="G"),E31*$X31,0) -> 0 | AM31: =IF(OR($B31="F",$B31="G"),F31*$X31,0) -> 0 | AN31: =IF(OR($B31="F",$B31="G"),G31*$X31,0) -> 0 | AO31: =IF(OR($B31="F",$B31="G"),H31*$X31,0) -> 0 | AP31: =IF(OR($B31="F",$B31="G"),I31*$X31,0) -> 0 | AQ31: =IF(OR($B31="F",$B31="G"),J31*$X31,0) -> 0 | AR31: =IF(OR($B31="F",$B31="G"),K31*$X31,0) -> 0 | AS31: =IF(OR($B31="F",$B31="G"),L31*$X31,0) -> 0 | AT31: =IF(OR($B31="F",$B31="G"),M31*$X31,0) -> 0 | AU31: =IF(OR($B31="F",$B31="G"),N31*$X31,0) -> 0 | AV31: =IF(OR($B31="F",$B31="G"),O31*$X31,0) -> 0 | AW31: =IF(OR($B31="F",$B31="G"),P31*$X31,0) -> 0 | AX31: =IF($Y31>0,E31*$Y31,0) -> 0 | AY31: =IF($Y31>0,F31*$Y31,0) -> 0 | AZ31: =IF($Y31>0,G31*$Y31,0) -> 0 | BA31: =IF($Y31>0,H31*$Y31,0) -> 0 | BB31: =IF($Y31>0,I31*$Y31,0) -> 0 | BC31: =IF($Y31>0,J31*$Y31,0) -> 0 | BD31: =IF($Y31>0,K31*$Y31,0) -> 0 | BE31: =IF($Y31>0,L31*$Y31,0) -> 0 | BF31: =IF($Y31>0,M31*$Y31,0) -> 0 | BG31: =IF($Y31>0,N31*$Y31,0) -> 0 | BH31: =IF($Y31>0,O31*$Y31,0) -> 0 | BI31: =IF($Y31>0,P31*$Y31,0) -> 0
A32: Please enter new lines above here
O33: Total Training Costs | Q33: =SUM(Q11:Q32) -> 0 | R33: 0 | S33: 0 | T33: 0 | U33: 0 | X33: 0 | Y33: 0 | Z33: 0 | AA33: 0 | AB33: 0 | AC33: 0 | AD33: 0 | AE33: 0 | AF33: 0 | AG33: 0 | AH33: 0 | AI33: 0 | AJ33: 0 | AK33: 0 | AL33: 0 | AM33: 0 | AN33: 0 | AO33: 0 | AP33: 0 | AQ33: 0 | AR33: 0 | AS33: 0 | AT33: 0 | AU33: 0 | AV33: 0 | AW33: 0 | AX33: 0 | AY33: 0 | AZ33: 0 | BA33: 0 | BB33: 0 | BC33: 0 | BD33: 0 | BE33: 0 | BF33: 0 | BG33: 0 | BH33: 0 | BI33: 0
A35: Learning Matrix
A36: A
A37: B
A38: C
A39: D
A40: E
A41: F
A42: G
A44: ABET
A45: Yes
A46: No

Sheet SD Table 2
A1: COMPANY NAME | B1: ='Global Business Solutions'!B27 -> Test
A3: FINANCIAL INFORMATION USED | B3: ='Global Business Solutions'!B29 -> 2017-02-28
A5: Skills Development Table 2 | C5: Please only complete table with actual remuneration (TCOE/TCTC) paid to the learner for the periods reflected alongside | F5: =IF('Skills Development'!$B11>0,'Skills Development'!$A11,"") ->  | G5: =IF('Skills Development'!$B14>0,'Skills Development'!$A14,"") ->  | H5: =IF('Skills Development'!$B17>0,'Skills Development'!$A17,"") ->  | I5: =IF('Skills Development'!$B20>0,'Skills Development'!$A20,"") ->  | J5: Please only reflect details pertaining to the Black Learners employed and/or hosted by your entity
F6: =IF('Skills Development'!$B12>0,'Skills Development'!$A12,"") ->  | G6: =IF('Skills Development'!$B15>0,'Skills Development'!$A15,"") ->  | H6: =IF('Skills Development'!$B18>0,'Skills Development'!$A18,"") ->  | I6: =IF('Skills Development'!$B21>0,'Skills Development'!$A21,"") -> 
F7: =IF('Skills Development'!$B13>0,'Skills Development'!$A13,"") ->  | G7: =IF('Skills Development'!$B16>0,'Skills Development'!$A16,"") ->  | H7: =IF('Skills Development'!$B19>0,'Skills Development'!$A19,"") ->  | I7: =IF('Skills Development'!$B22>0,'Skills Development'!$A22,"") ->  | J7: Please refer to the Learning Program Matrix for a full explanation as to the different types of Learnerships reflected.
A9: Name of Learner - Black Learners ONLY | B9: Type of Learnership | C9: Gender | D9: Disabled | E9: Population Group - Please do not input White or NSA learners | F9: Qualifying Months for Learnership - (Period in which the learner was employed as a learner during the measurement period) | H9: Salaries/Wages Actually Paid During Skills Measurement Period Under Review | I9: Salaries/Wages Actually Paid to Black Females During Skills Measurement Period Under Review | J9: Salaries/Wages Actually Paid to Black Disabled During Skills Measurement Period Under Review | K9: Salaries/Wages Actually Paid to Black Disabled Females During Skills Measurement Period Under Review | L9: Reference Number | M9: Your Comments and Notes | N9: African Male | O9: Indian Male | P9: Coloured Male | Q9: African Female | R9: Indian Female | S9: Coloured female | T9: Disabled African Male | U9: Disabled Indian Male | V9: Disabled Coloured Male | W9: Disabled African Female | X9: Disabled Indian Female | Y9: Disabled Coloured female
B11: Category B, C or D | C11: M/F | D11: Yes/No | E11: A/I/C | F11: Start Date (Month and Year) MMM-YY | G11: End Date (Month and Year) MMM-YY
I12: =IF(C12="f",H12,0) -> 0 | J12: =IF(D12="yes",H12,0) -> 0 | K12: =IF(AND(C12="F",D12="Yes"),H12,0) -> 0 | L12: SD2-1 | N12: =IF(AND(C12="M",E12="A"),H12,"") ->  | O12: =IF(AND(C12="M",E12="I"),H12,"") ->  | P12: =IF(AND(C12="M",E12="C"),H12,"") ->  | Q12: =IF(AND(C12="F",E12="A"),H12,"") ->  | R12: =IF(AND(C12="F",E12="I"),H12,"") ->  | S12: =IF(AND(C12="F",E12="C"),H12,"") ->  | T12: =IF(AND(C12="M",E12="A",D12="Yes"),H12,"") ->  | U12: =IF(AND(C12="M",E12="I",D12="Yes"),H12,"") ->  | V12: =IF(AND(C12="M",E12="C",D12="Yes"),H12,"") ->  | W12: =IF(AND(C12="F",E12="A",D12="Yes"),H12,"") ->  | X12: =IF(AND(C12="F",E12="I",D12="Yes"),H12,"") ->  | Y12: =IF(AND(C12="F",E12="C",D12="Yes"),H12,"") -> 
I13: =IF(C13="f",H13,0) -> 0 | J13: =IF(D13="yes",H13,0) -> 0 | K13: =IF(AND(C13="F",D13="Yes"),H13,0) -> 0 | L13: SD2-2 | N13: =IF(AND(C13="M",E13="A"),H13,"") ->  | O13: =IF(AND(C13="M",E13="I"),H13,"") ->  | P13: =IF(AND(C13="M",E13="C"),H13,"") ->  | Q13: =IF(AND(C13="F",E13="A"),H13,"") ->  | R13: =IF(AND(C13="F",E13="I"),H13,"") ->  | S13: =IF(AND(C13="F",E13="C"),H13,"") ->  | T13: =IF(AND(C13="M",E13="A",D13="Yes"),H13,"") ->  | U13: =IF(AND(C13="M",E13="I",D13="Yes"),H13,"") ->  | V13: =IF(AND(C13="M",E13="C",D13="Yes"),H13,"") ->  | W13: =IF(AND(C13="F",E13="A",D13="Yes"),H13,"") ->  | X13: =IF(AND(C13="F",E13="I",D13="Yes"),H13,"") ->  | Y13: =IF(AND(C13="F",E13="C",D13="Yes"),H13,"") -> 
I14: 0 | J14: 0 | K14: 0 | L14: SD2-3 | N14: =IF(AND(C14="M",E14="A"),H14,"") ->  | O14: =IF(AND(C14="M",E14="I"),H14,"") ->  | P14: =IF(AND(C14="M",E14="C"),H14,"") ->  | Q14: =IF(AND(C14="F",E14="A"),H14,"") ->  | R14: =IF(AND(C14="F",E14="I"),H14,"") ->  | S14: =IF(AND(C14="F",E14="C"),H14,"") ->  | T14: =IF(AND(C14="M",E14="A",D14="Yes"),H14,"") ->  | U14: =IF(AND(C14="M",E14="I",D14="Yes"),H14,"") ->  | V14: =IF(AND(C14="M",E14="C",D14="Yes"),H14,"") ->  | W14: =IF(AND(C14="F",E14="A",D14="Yes"),H14,"") ->  | X14: =IF(AND(C14="F",E14="I",D14="Yes"),H14,"") ->  | Y14: =IF(AND(C14="F",E14="C",D14="Yes"),H14,"") -> 
I15: 0 | J15: 0 | K15: 0 | L15: SD2-4
I16: 0 | J16: 0 | K16: 0 | L16: SD2-5
I17: =IF(C17="f",H17,0) -> 0 | J17: =IF(D17="yes",H17,0) -> 0 | K17: =IF(AND(C17="F",D17="Yes"),H17,0) -> 0 | L17: SD2-6
I18: 0 | J18: 0 | K18: 0 | L18: SD2-7
I19: 0 | J19: 0 | K19: 0 | L19: SD2-8
I20: 0 | J20: 0 | K20: 0 | L20: SD2-9
I21: 0 | J21: 0 | K21: 0 | L21: SD2-10
I22: 0 | J22: 0 | K22: 0 | L22: SD2-11
I23: 0 | J23: 0 | K23: 0 | L23: SD2-12
I24: 0 | J24: 0 | K24: 0 | L24: SD2-13
I25: 0 | J25: 0 | K25: 0 | L25: SD2-14
I26: 0 | J26: 0 | K26: 0 | L26: SD2-15
I27: 0 | J27: 0 | K27: 0 | L27: SD2-16
I28: 0 | J28: 0 | K28: 0 | L28: SD2-17
I29: 0 | J29: 0 | K29: 0 | L29: SD2-18
I30: 0 | J30: 0 | K30: 0 | L30: SD2-19
I31: =IF(C31="f",H31,0) -> 0 | J31: =IF(D31="yes",H31,0) -> 0 | K31: =IF(AND(C31="F",D31="Yes"),H31,0) -> 0 | L31: SD2-225 | M31: 0 | N31: =IF(AND(C31="M",E31="A"),H31,"") ->  | O31: =IF(AND(C31="M",E31="I"),H31,"") ->  | P31: =IF(AND(C31="M",E31="C"),H31,"") ->  | Q31: =IF(AND(C31="F",E31="A"),H31,"") ->  | R31: =IF(AND(C31="F",E31="I"),H31,"") ->  | S31: =IF(AND(C31="F",E31="C"),H31,"") ->  | T31: =IF(AND(C31="M",E31="A",D31="Yes"),H31,"") ->  | U31: =IF(AND(C31="M",E31="I",D31="Yes"),H31,"") ->  | V31: =IF(AND(C31="M",E31="C",D31="Yes"),H31,"") ->  | W31: =IF(AND(C31="F",E31="A",D31="Yes"),H31,"") ->  | X31: =IF(AND(C31="F",E31="I",D31="Yes"),H31,"") ->  | Y31: =IF(AND(C31="F",E31="C",D31="Yes"),H31,"") -> 
A32: Please enter new Lines above | I32: =IF(C32="f",H32,"") ->  | J32: =IF(D32="yes",H32,"") ->  | K32: =IF(AND(C32="F",D32="Yes"),H32,"") -> 
H33: =SUM(H12:H32) -> 0 | I33: =SUM(I12:I32) -> 0 | J33: =SUM(J12:J32) -> 0 | K33: =SUM(K12:K32) -> 0 | N33: =SUM(N12:N32) -> 0 | O33: 0 | P33: 0 | Q33: 0 | R33: 0 | S33: 0 | T33: 0 | U33: 0 | V33: 0 | W33: 0 | X33: 0 | Y33: 0
N34: =COUNT(N12:N32) -> 0 | O34: 0 | P34: 0 | Q34: 0 | R34: 0 | S34: 0 | T34: 0 | U34: 0 | V34: 0 | W34: 0 | X34: 0 | Y34: 0
A35: Total Number of Black Learnerships | B35: =COUNTIFS(E12:E32,"A")+COUNTIFS(E12:E32,"I")+COUNTIFS(E12:E32,"C") -> 0

Sheet SD Table 3
A1: COMPANY NAME | B1: ='Global Business Solutions'!B27 -> Test
A3: FINANCIAL INFORMATION USED | B3: ='Global Business Solutions'!B29 -> 2017-02-28
A5: Skills Development Table 3 | C5: Please only complete table with payments/disbursements during the periods reflected alongside | E5: =IF('Skills Development'!$B11>0,'Skills Development'!$A11,"") ->  | F5: =IF('Skills Development'!$B14>0,'Skills Development'!$A14,"") ->  | G5: =IF('Skills Development'!$B17>0,'Skills Development'!$A17,"") ->  | H5: =IF('Skills Development'!$B20>0,'Skills Development'!$A20,"") ->  | I5: Please only reflect details pertaining to bursary holders who are Black and who are employed by your entity
E6: =IF('Skills Development'!$B12>0,'Skills Development'!$A12,"") ->  | F6: =IF('Skills Development'!$B15>0,'Skills Development'!$A15,"") ->  | G6: =IF('Skills Development'!$B18>0,'Skills Development'!$A18,"") ->  | H6: =IF('Skills Development'!$B21>0,'Skills Development'!$A21,"") -> 
E7: =IF('Skills Development'!$B13>0,'Skills Development'!$A13,"") ->  | F7: =IF('Skills Development'!$B16>0,'Skills Development'!$A16,"") ->  | G7: =IF('Skills Development'!$B19>0,'Skills Development'!$A19,"") ->  | H7: =IF('Skills Development'!$B22>0,'Skills Development'!$A22,"") -> 
A8: Bursaries are defined as any tertiary studies undertaken that is subject to an agreement signed by the employee
A10: Name of Bursary Holder - BLACK EMPLOYEES ONLY | B10: Bursary Holder an Employee? | C10: Gender | D10: Population Group | E10: Employee Disabled? | F10: Total value of the bursaries actually paid to the employees during the skills development period | G10: Total value of the bursaries actually paid to the black female employees during the skills development period | H10: Total value of the bursaries actually paid to the black disabled employees during the skills development period | I10: Total value of the bursaries actually paid to the black female disabled employees during the skills development period | J10: Reference Number | K10: Your Comments and Notes | L10: African Male | M10: Indian Male | N10: Coloured Male | O10: African Female | P10: Indian Female | Q10: Coloured female | R10: Disabled African Male | S10: Disabled Indian Male | T10: Disabled Coloured Male | U10: Disabled African Female | V10: Disabled Indian Female | W10: Disabled Coloured female
B12: Yes/No | C12: M/F | D12: A/I/C | E12: Yes/No
G13: =IF(C13="f",F13,0) -> 0 | H13: =IF(E13="yes",F13,0) -> 0 | I13: =IF(AND(C13="f",E13="yes"),F13,0) -> 0 | J13: SD3-1 | L13: =IF(AND(C13="M",D13="A"),F13,0) -> 0 | M13: =IF(AND(C13="M",D13="I"),F13,0) -> 0 | N13: =IF(AND(C13="M",D13="C"),F13,0) -> 0 | O13: =IF(AND(C13="F",D13="A"),F13,0) -> 0 | P13: =IF(AND(C13="F",D13="I"),F13,0) -> 0 | Q13: =IF(AND(C13="F",D13="C"),F13,0) -> 0 | R13: =IF(AND(C13="M",D13="A",E13="Yes"),F13,0) -> 0 | S13: =IF(AND(C13="M",D13="I",E13="Yes"),F13,0) -> 0 | T13: =IF(AND(C13="M",D13="C",E13="Yes"),F13,0) -> 0 | U13: =IF(AND(C13="F",D13="A",E13="Yes"),F13,0) -> 0 | V13: =IF(AND(C13="F",D13="I",E13="Yes"),F13,0) -> 0 | W13: =IF(AND(C13="F",D13="C",E13="Yes"),F13,0) -> 0
G14: =IF(C14="f",F14,0) -> 0 | H14: =IF(E14="yes",F14,0) -> 0 | I14: =IF(AND(C14="f",E14="yes"),F14,0) -> 0 | J14: SD3-2 | L14: =IF(AND(C14="M",D14="A"),F14,0) -> 0 | M14: =IF(AND(C14="M",D14="I"),F14,0) -> 0 | N14: =IF(AND(C14="M",D14="C"),F14,0) -> 0 | O14: =IF(AND(C14="F",D14="A"),F14,0) -> 0 | P14: =IF(AND(C14="F",D14="I"),F14,0) -> 0 | Q14: =IF(AND(C14="F",D14="C"),F14,0) -> 0 | R14: =IF(AND(C14="M",D14="A",E14="Yes"),F14,0) -> 0 | S14: =IF(AND(C14="M",D14="I",E14="Yes"),F14,0) -> 0 | T14: =IF(AND(C14="M",D14="C",E14="Yes"),F14,0) -> 0 | U14: =IF(AND(C14="F",D14="A",E14="Yes"),F14,0) -> 0 | V14: =IF(AND(C14="F",D14="I",E14="Yes"),F14,0) -> 0 | W14: =IF(AND(C14="F",D14="C",E14="Yes"),F14,0) -> 0
G15: 0 | H15: 0 | I15: 0 | J15: SD3-3 | L15: =IF(AND(C15="M",D15="A"),F15,0) -> 0 | M15: =IF(AND(C15="M",D15="I"),F15,0) -> 0 | N15: =IF(AND(C15="M",D15="C"),F15,0) -> 0 | O15: =IF(AND(C15="F",D15="A"),F15,0) -> 0 | P15: =IF(AND(C15="F",D15="I"),F15,0) -> 0 | Q15: =IF(AND(C15="F",D15="C"),F15,0) -> 0 | R15: =IF(AND(C15="M",D15="A",E15="Yes"),F15,0) -> 0 | S15: =IF(AND(C15="M",D15="I",E15="Yes"),F15,0) -> 0 | T15: =IF(AND(C15="M",D15="C",E15="Yes"),F15,0) -> 0 | U15: =IF(AND(C15="F",D15="A",E15="Yes"),F15,0) -> 0 | V15: =IF(AND(C15="F",D15="I",E15="Yes"),F15,0) -> 0 | W15: =IF(AND(C15="F",D15="C",E15="Yes"),F15,0) -> 0
G16: 0 | H16: 0 | I16: 0 | J16: SD3-4 | L16: 0 | M16: 0 | N16: 0 | O16: 0 | P16: 0 | Q16: 0 | R16: 0 | S16: 0 | T16: 0 | U16: 0 | V16: 0 | W16: 0
G17: 0 | H17: 0 | I17: 0 | J17: SD3-5 | L17: 0 | M17: 0 | N17: 0 | O17: 0 | P17: 0 | Q17: 0 | R17: 0 | S17: 0 | T17: 0 | U17: 0 | V17: 0 | W17: 0
G18: 0 | H18: 0 | I18: 0 | J18: SD3-6 | L18: 0 | M18: 0 | N18: 0 | O18: 0 | P18: 0 | Q18: 0 | R18: 0 | S18: 0 | T18: 0 | U18: 0 | V18: 0 | W18: 0
G19: 0 | H19: 0 | I19: 0 | J19: SD3-7 | L19: 0 | M19: 0 | N19: 0 | O19: 0 | P19: 0 | Q19: 0 | R19: 0 | S19: 0 | T19: 0 | U19: 0 | V19: 0 | W19: 0
G20: 0 | H20: 0 | I20: 0 | J20: SD3-8 | L20: 0 | M20: 0 | N20: 0 | O20: 0 | P20: 0 | Q20: 0 | R20: 0 | S20: 0 | T20: 0 | U20: 0 | V20: 0 | W20: 0
G21: 0 | H21: 0 | I21: 0 | J21: SD3-9 | L21: 0 | M21: 0 | N21: 0 | O21: 0 | P21: 0 | Q21: 0 | R21: 0 | S21: 0 | T21: 0 | U21: 0 | V21: 0 | W21: 0
G22: 0 | H22: 0 | I22: 0 | J22: SD3-10 | L22: 0 | M22: 0 | N22: 0 | O22: 0 | P22: 0 | Q22: 0 | R22: 0 | S22: 0 | T22: 0 | U22: 0 | V22: 0 | W22: 0
G23: =IF(C23="f",F23,0) -> 0 | H23: =IF(E23="yes",F23,0) -> 0 | I23: =IF(AND(C23="f",E23="yes"),F23,0) -> 0 | J23: SD3-11 | L23: 0 | M23: 0 | N23: 0 | O23: 0 | P23: 0 | Q23: 0 | R23: 0 | S23: 0 | T23: 0 | U23: 0 | V23: 0 | W23: 0
G24: 0 | H24: 0 | I24: 0 | J24: SD3-12 | L24: 0 | M24: 0 | N24: 0 | O24: 0 | P24: 0 | Q24: 0 | R24: 0 | S24: 0 | T24: 0 | U24: 0 | V24: 0 | W24: 0
G25: 0 | H25: 0 | I25: 0 | J25: SD3-13 | L25: 0 | M25: 0 | N25: 0 | O25: 0 | P25: 0 | Q25: 0 | R25: 0 | S25: 0 | T25: 0 | U25: 0 | V25: 0 | W25: 0
G26: 0 | H26: 0 | I26: 0 | J26: SD3-14 | L26: 0 | M26: 0 | N26: 0 | O26: 0 | P26: 0 | Q26: 0 | R26: 0 | S26: 0 | T26: 0 | U26: 0 | V26: 0 | W26: 0
G27: 0 | H27: 0 | I27: 0 | J27: SD3-15 | L27: 0 | M27: 0 | N27: 0 | O27: 0 | P27: 0 | Q27: 0 | R27: 0 | S27: 0 | T27: 0 | U27: 0 | V27: 0 | W27: 0
G28: 0 | H28: 0 | I28: 0 | J28: SD3-16 | L28: 0 | M28: 0 | N28: 0 | O28: 0 | P28: 0 | Q28: 0 | R28: 0 | S28: 0 | T28: 0 | U28: 0 | V28: 0 | W28: 0
G29: 0 | H29: 0 | I29: 0 | J29: SD3-17 | L29: 0 | M29: 0 | N29: 0 | O29: 0 | P29: 0 | Q29: 0 | R29: 0 | S29: 0 | T29: 0 | U29: 0 | V29: 0 | W29: 0
G30: 0 | H30: 0 | I30: 0 | J30: SD3-18 | L30: 0 | M30: 0 | N30: 0 | O30: 0 | P30: 0 | Q30: 0 | R30: 0 | S30: 0 | T30: 0 | U30: 0 | V30: 0 | W30: 0
G31: 0 | H31: 0 | I31: 0 | J31: SD3-132 | L31: =IF(AND(C31="M",D31="A"),F31,0) -> 0 | M31: =IF(AND(C31="M",D31="I"),F31,0) -> 0 | N31: =IF(AND(C31="M",D31="C"),F31,0) -> 0 | O31: =IF(AND(C31="F",D31="A"),F31,0) -> 0 | P31: =IF(AND(C31="F",D31="I"),F31,0) -> 0 | Q31: =IF(AND(C31="F",D31="C"),F31,0) -> 0 | R31: =IF(AND(C31="M",D31="A",E31="Yes"),F31,0) -> 0 | S31: =IF(AND(C31="M",D31="I",E31="Yes"),F31,0) -> 0 | T31: =IF(AND(C31="M",D31="C",E31="Yes"),F31,0) -> 0 | U31: =IF(AND(C31="F",D31="A",E31="Yes"),F31,0) -> 0 | V31: =IF(AND(C31="F",D31="I",E31="Yes"),F31,0) -> 0 | W31: =IF(AND(C31="F",D31="C",E31="Yes"),F31,0) -> 0
A32: Please enter new lines above
E33: Total Bursary Costs | F33: =SUM(F13:F32) -> 0 | G33: =SUM(G13:G32) -> 0 | H33: =SUM(H13:H32) -> 0 | I33: =SUM(I13:I32) -> 0 | L33: =SUM(L13:L32) -> 0 | M33: 0 | N33: 0 | O33: 0 | P33: 0 | Q33: 0 | R33: 0 | S33: 0 | T33: 0 | U33: 0 | V33: 0 | W33: 0

Sheet SD Table 4
A1: COMPANY NAME | B1: ='Global Business Solutions'!B27 -> Test
A3: FINANCIAL INFORMATION USED | B3: ='Global Business Solutions'!B29 -> 2017-02-28
A5: Skills Development Table 4
A9: Type of Training-Related Administration Cost Claimed | B9: Rand value of expenditure - Annual | C9: Percentage Allocation of TCTC | D9: Category (A - G) | E9: Contribution to Skills Development Spend - AM | F9: Contribution to Skills Development Spend - IM | G9: Contribution to Skills Development Spend - CM | H9: Contribution to Skills Development Spend - AF | I9: Contribution to Skills Development Spend - IF | J9: Contribution to Skills Development Spend - CF | K9: Contribution to Skills Development Spend - Disabled AM | L9: Contribution to Skills Development Spend - Disabled IM | M9: Contribution to Skills Development Spend - Disabled CM | N9: Contribution to Skills Development Spend - Disabled AF | O9: Contribution to Skills Development Spend - Disabled IF | P9: Contribution to Skills Development Spend - Disabled CF | Q9: Notes
A10: Salary of Skills Development Facilitator(s) for the period under review | C10: 1 | E10: =$B10*$C10*B$27 -> 0 | F10: 0 | G10: 0 | H10: 0 | I10: 0 | J10: 0 | K10: 0 | L10: 0 | M10: 0 | N10: 0 | O10: 0 | P10: 0
A11: Salary of Training Manager(s) for the period under review | C11: 1 | E11: 0 | F11: 0 | G11: 0 | H11: 0 | I11: 0 | J11: 0 | K11: 0 | L11: 0 | M11: 0 | N11: 0 | O11: 0 | P11: 0
A12: Salary of Mentor(s) for the period under review | C12: 1 | E12: 0 | F12: 0 | G12: 0 | H12: 0 | I12: 0 | J12: 0 | K12: 0 | L12: 0 | M12: 0 | N12: 0 | O12: 0 | P12: 0
A13: Administration Cost of Disabled Learnerships | C13: 1
A14: Other | C14: 1 | E14: =$B14*$C14*B$27 -> 0 | F14: 0 | G14: 0 | H14: 0 | I14: 0 | J14: 0 | K14: 0 | L14: 0 | M14: 0 | N14: 0 | O14: 0 | P14: 0
A15: Other | C15: 1 | E15: 0 | F15: 0 | G15: 0 | H15: 0 | I15: 0 | J15: 0 | K15: 0 | L15: 0 | M15: 0 | N15: 0 | O15: 0 | P15: 0
A16: Other | C16: 1 | E16: 0 | F16: 0 | G16: 0 | H16: 0 | I16: 0 | J16: 0 | K16: 0 | L16: 0 | M16: 0 | N16: 0 | O16: 0 | P16: 0
A17: Other | C17: 1 | E17: 0 | F17: 0 | G17: 0 | H17: 0 | I17: 0 | J17: 0 | K17: 0 | L17: 0 | M17: 0 | N17: 0 | O17: 0 | P17: 0
A18: Other | C18: 1 | E18: 0 | F18: 0 | G18: 0 | H18: 0 | I18: 0 | J18: 0 | K18: 0 | L18: 0 | M18: 0 | N18: 0 | O18: 0 | P18: 0
A19: Other Administration Costs incurred relating to Skills Development for the period under review | C19: 1 | E19: 0 | F19: 0 | G19: 0 | H19: 0 | I19: 0 | J19: 0 | K19: 0 | L19: 0 | M19: 0 | N19: 0 | O19: 0 | P19: 0
B20: =SUM(B10:B19) -> 0 | E20: =SUM(E10:E19) -> 0 | F20: 0 | G20: 0 | H20: 0 | I20: 0 | J20: 0 | K20: 0 | L20: 0 | M20: 0 | N20: 0 | O20: 0 | P20: 0
A21: Note: Costs included above excludes direct training costs included in Table 4.1
A23: Please provide the period for which Table 4.4 is applicable
B25: Able Bodied | H25: Disabled
B26: AM | C26: IM | D26: CM | E26: AF | F26: IF | G26: CF | H26: AM | I26: IM | J26: CM | K26: AF | L26: IF | M26: CF
A27: Percentage Allocation to Skills Development of Black People | B27: ='Employment Equity Worksheet'!B87 -> 0 | C27: ='Employment Equity Worksheet'!C87 -> 0 | D27: ='Employment Equity Worksheet'!D87 -> 0 | E27: ='Employment Equity Worksheet'!B101 -> 0 | F27: ='Employment Equity Worksheet'!C101 -> 0 | G27: ='Employment Equity Worksheet'!D101 -> 0 | H27: ='Employment Equity Worksheet'!B88 -> 0 | I27: ='Employment Equity Worksheet'!C88 -> 0 | J27: ='Employment Equity Worksheet'!D88 -> 0 | K27: ='Employment Equity Worksheet'!B102 -> 0 | L27: ='Employment Equity Worksheet'!C102 -> 0 | M27: ='Employment Equity Worksheet'!D102 -> 0
B29: Able Bodied | H29: Disabled
A30: Type of Training-Related Administration Cost Claimed | B30: AM | C30: IM | D30: CM | E30: AF | F30: IF | G30: CF | H30: AM | I30: IM | J30: CM | K30: AF | L30: IF | M30: CF
A31: Category F | B31: =SUMIFS(E5:E19,$D$10:$D$24,"F") -> 0 | C31: =SUMIFS(F5:F19,$D$10:$D$24,"F") -> 0 | D31: 0 | E31: 0 | F31: 0 | G31: 0 | H31: 0 | I31: 0 | J31: 0 | K31: 0 | L31: 0 | M31: 0
A32: Category G | B32: =SUMIFS(E5:E19,$D$10:$D$24,"G") -> 0 | C32: =SUMIFS(F5:F19,$D$10:$D$24,"G") -> 0 | D32: 0 | E32: 0 | F32: 0 | G32: 0 | H32: 0 | I32: 0 | J32: 0 | K32: 0 | L32: 0 | M32: 0
B33: =SUM(B31:B32) -> 0 | C33: =SUM(C31:C32) -> 0 | D33: 0 | E33: 0 | F33: 0 | G33: 0 | H33: 0 | I33: 0 | J33: 0 | K33: 0 | L33: 0 | M33: 0

Sheet SD Table 5
A1: COMPANY NAME | B1: ='Global Business Solutions'!B27 -> Test
A3: FINANCIAL INFORMATION USED | B3: ='Global Business Solutions'!B29 -> 2017-02-28
A5: Skills Development Table 5
A9: Unemployed Black People participating in training per the training matrix | B9: Type of Training | C9: Gender | D9: Disabled | E9: Population Group - Please do not input White or NSA learners | F9: Qualifying Months for Learnership - (Period in which the learner was employed as a learner during the measurement period) | H9: Reference Number | I9: Your Comments and Notes | J9: African Male | K9: Indian Male | L9: Coloured Male | M9: African Female | N9: Indian Female | O9: Coloured female
B11: Category (A/B/C/D/E/F/G) | C11: M/F | D11: Yes/No | E11: A/I/C | F11: Start Date (Month and Year) MMM-YY | G11: End Date (Month and Year) MMM-YY
H12: SD5-1 | J12: =IF(AND(C12="M",E12="A"),1,"") ->  | K12: =IF(AND(C12="M",E12="I"),1,"") ->  | L12: =IF(AND(C12="M",E12="C"),1,"") ->  | M12: =IF(AND(C12="F",E12="A"),1,"") ->  | N12: =IF(AND(C12="F",E12="I"),1,"") ->  | O12: =IF(AND(C12="F",E12="C"),1,"") -> 
H13: SD5-2 | J13: =IF(AND(C13="M",E13="A"),1,"") ->  | K13: =IF(AND(C13="M",E13="I"),1,"") ->  | L13: =IF(AND(C13="M",E13="C"),1,"") ->  | M13: =IF(AND(C13="F",E13="A"),1,"") ->  | N13: =IF(AND(C13="F",E13="I"),1,"") ->  | O13: =IF(AND(C13="F",E13="C"),1,"") -> 
H14: SD5-3 | J14: =IF(AND(C14="M",E14="A"),1,"") ->  | K14: =IF(AND(C14="M",E14="I"),1,"") ->  | L14: =IF(AND(C14="M",E14="C"),1,"") ->  | M14: =IF(AND(C14="F",E14="A"),1,"") ->  | N14: =IF(AND(C14="F",E14="I"),1,"") ->  | O14: =IF(AND(C14="F",E14="C"),1,"") -> 
H15: SD5-4
H16: SD5-5
H17: SD5-6
H18: SD5-7
H19: SD5-8
H20: SD5-9
H21: SD5-10
H22: SD5-11
H23: SD5-12
H24: SD5-13
H25: SD5-14
H26: SD5-15
H27: SD5-16
H28: SD5-17
H29: SD5-18
H30: SD5-19
H31: SD5-20 | J31: =IF(AND(C31="M",E31="A"),1,"") ->  | K31: =IF(AND(C31="M",E31="I"),1,"") ->  | L31: =IF(AND(C31="M",E31="C"),1,"") ->  | M31: =IF(AND(C31="F",E31="A"),1,"") ->  | N31: =IF(AND(C31="F",E31="I"),1,"") ->  | O31: =IF(AND(C31="F",E31="C"),1,"") -> 
A32: Please insert new lines above | J32: =IF(AND(C32="M",E32="A"),1,"") ->  | K32: =IF(AND(C32="M",E32="I"),1,"") ->  | L32: =IF(AND(C32="M",E32="C"),1,"") ->  | M32: =IF(AND(C32="F",E32="A"),1,"") ->  | N32: =IF(AND(C32="F",E32="I"),1,"") ->  | O32: =IF(AND(C32="F",E32="C"),1,"") -> 
J33: =SUM(J12:J32) -> 0 | K33: 0 | L33: 0 | M33: 0 | N33: 0 | O33: 0
A34: Total Number of Black Learnerships | B34: =COUNTIFS(E12:E32,"A")+COUNTIFS(E12:E32,"I")+COUNTIFS(E12:E32,"C") -> 0
A35: Total Number of Black Female Learnerships | B35: =COUNTIF(C12:C32,"f") -> 0

Sheet SD Table 6
A1: COMPANY NAME | B1: ='Global Business Solutions'!B27 -> Test
A3: FINANCIAL INFORMATION USED | B3: ='Global Business Solutions'!B29 -> 2017-02-28
A5: Skills Development Table 6
A9: Black Learners completing their Learnerships | B9: Type of Learnership | C9: Gender | D9: Disabled | E9: Population Group - Please do not input White or NSA learners | F9: Employed by the ME or company in the same sector (Y/N) | G9: Reference Number | H9: Your Comments and Notes
B11: Category B, C or D | C11: M/F | D11: Yes/No | E11: A/I/C | I11: completion | J11: Placed
G12: SD6-1
G13: SD6-2
G14: SD6-3
G15: SD6-4
G16: SD6-5
G17: SD6-6
G18: SD6-7
G19: SD6-8
G20: SD6-9
G21: SD6-10
G22: SD6-11
G23: SD6-12
G24: SD6-13
G25: SD6-14
G26: SD6-15
G27: SD6-16
G28: SD6-17
G29: SD6-18
G30: SD6-19
G31: SD6-151
A32: Please insert new lines above
A34: Total Number of Black Learners completing their Learnership | B34: =COUNTA(B12:B32) -> 0
A35: Total Number of Black Learners completing their Learnership - Employed | B35: =COUNTIF(F12:F32,"Y") -> 0

Sheet Skills Development
A1: COMPANY NAME | B1: ='Global Business Solutions'!B27 -> Test
A3: FINANCIAL INFORMATION USED | B3: ='Global Business Solutions'!B29 -> 2017-02-28
A5: Skills Development Working Paper
A9: Leviable Payroll | B9: SDL * 100 | C9: From EMP201
A10: Month | B10: Month
A11: =+A12-31 -> 2016-03-24 | B11: =C11/1% -> 0
A12: 2016-04-24 | B12: =C12/1% -> 0
A13: 2016-05-25 | B13: =C13/1% -> 0
A14: 2016-06-25 | B14: =C14/1% -> 0
A15: 2016-07-26 | B15: 0
A16: 2016-08-26 | B16: 0
A17: 2016-09-26 | B17: 0
A18: 2016-10-27 | B18: 0
A19: 2016-11-27 | B19: 0
A20: 2016-12-28 | B20: 0
A21: =+A22-31 -> 2017-01-28 | B21: 0
A22: =+B3 -> 2017-02-28 | B22: 0
A23: Total (You may use Budgeted Payroll for the year) | B23: =SUM(B11:B22) -> 0 | C23: =SUM(C11:C22) -> 0
A25: Skills Expenditure | C25: Amount Spent on Black Males | F25: Amount Spent on Black Females | I25: Amount Spent on Disabled Black Males | L25: Amount Spent on Black Female Disabled People
A26: Type of Initiative | B26: Comments | C26: A | D26: I | E26: C | F26: A | G26: I | H26: C | I26: A | J26: I | K26: C | L26: A | M26: I | N26: C | O26: Ref
A27: All Initiatives submitted per SD Table 1 | C27: =+'SD Table 1'!Z33 -> 0 | D27: =+'SD Table 1'!AA33 -> 0 | E27: =+'SD Table 1'!AB33 -> 0 | F27: =+'SD Table 1'!AC33 -> 0 | G27: =+'SD Table 1'!AD33 -> 0 | H27: =+'SD Table 1'!AE33 -> 0 | I27: =+'SD Table 1'!AF33 -> 0 | J27: =+'SD Table 1'!AG33 -> 0 | K27: =+'SD Table 1'!AH33 -> 0 | L27: =+'SD Table 1'!AI33 -> 0 | M27: =+'SD Table 1'!AJ33 -> 0 | N27: =+'SD Table 1'!AK33 -> 0 | O27: SDWP-25
A28: All Salary of Learners per SD Table 2 | C28: ='SD Table 2'!N33 -> 0 | D28: ='SD Table 2'!O33 -> 0 | E28: ='SD Table 2'!P33 -> 0 | F28: ='SD Table 2'!Q33 -> 0 | G28: ='SD Table 2'!R33 -> 0 | H28: ='SD Table 2'!S33 -> 0 | I28: ='SD Table 2'!T33 -> 0 | J28: ='SD Table 2'!U33 -> 0 | K28: ='SD Table 2'!V33 -> 0 | L28: ='SD Table 2'!W33 -> 0 | M28: ='SD Table 2'!X33 -> 0 | N28: ='SD Table 2'!Y33 -> 0 | O28: SDWP-26
A29: All Bursary Costs per SD Table 3 | C29: =+'SD Table 3'!L33 -> 0 | D29: =+'SD Table 3'!M33 -> 0 | E29: =+'SD Table 3'!N33 -> 0 | F29: =+'SD Table 3'!O33 -> 0 | G29: =+'SD Table 3'!P33 -> 0 | H29: =+'SD Table 3'!Q33 -> 0 | I29: =+'SD Table 3'!R33 -> 0 | J29: =+'SD Table 3'!S33 -> 0 | K29: =+'SD Table 3'!T33 -> 0 | L29: =+'SD Table 3'!U33 -> 0 | M29: =+'SD Table 3'!V33 -> 0 | N29: =+'SD Table 3'!W33 -> 0 | O29: SDWP-27
A30: All overhead costs per SD Table 4 | C30: ='SD Table 4'!E20 -> 0 | D30: ='SD Table 4'!F20 -> 0 | E30: ='SD Table 4'!G20 -> 0 | F30: ='SD Table 4'!H20 -> 0 | G30: ='SD Table 4'!I20 -> 0 | H30: ='SD Table 4'!J20 -> 0 | I30: ='SD Table 4'!K20 -> 0 | J30: ='SD Table 4'!L20 -> 0 | K30: ='SD Table 4'!M20 -> 0 | L30: ='SD Table 4'!N20 -> 0 | M30: ='SD Table 4'!O20 -> 0 | N30: ='SD Table 4'!P20 -> 0 | O30: SDWP-28
A32: Total | B32: =SUM(C32:H32) -> 0 | C32: =SUM(C27:C30) -> 0 | D32: 0 | E32: 0 | F32: 0 | G32: 0 | H32: 0 | I32: 0 | J32: 0 | K32: 0 | L32: 0 | M32: 0 | N32: 0 | O32: SDWP-29
A34: Remove Category F & G | C34: =+'SD Table 1'!AL33+'SD Table 4'!B33 -> 0 | D34: =+'SD Table 1'!AM33+'SD Table 4'!C33 -> 0 | E34: =+'SD Table 1'!AN33+'SD Table 4'!D33 -> 0 | F34: =+'SD Table 1'!AO33+'SD Table 4'!E33 -> 0 | G34: =+'SD Table 1'!AP33+'SD Table 4'!F33 -> 0 | H34: =+'SD Table 1'!AQ33+'SD Table 4'!G33 -> 0 | I34: =+'SD Table 1'!AR33+'SD Table 4'!H33 -> 0 | J34: =+'SD Table 1'!AS33+'SD Table 4'!I33 -> 0 | K34: =+'SD Table 1'!AT33+'SD Table 4'!J33 -> 0 | L34: =+'SD Table 1'!AU33+'SD Table 4'!K33 -> 0 | M34: =+'SD Table 1'!AV33+'SD Table 4'!L33 -> 0 | N34: =+'SD Table 1'!AW33+'SD Table 4'!M33 -> 0 | O34: SDWP-30
A35: Travel, Accommodation and Training | C35: ='SD Table 1'!AX33 -> 0 | D35: ='SD Table 1'!AY33 -> 0 | E35: ='SD Table 1'!AZ33 -> 0 | F35: ='SD Table 1'!BA33 -> 0 | G35: ='SD Table 1'!BB33 -> 0 | H35: ='SD Table 1'!BC33 -> 0 | I35: ='SD Table 1'!BD33 -> 0 | J35: ='SD Table 1'!BE33 -> 0 | K35: ='SD Table 1'!BF33 -> 0 | L35: ='SD Table 1'!BG33 -> 0 | M35: ='SD Table 1'!BH33 -> 0 | N35: ='SD Table 1'!BI33 -> 0 | O35: SDWP-31
A36: Total against which to measure Travel, Accommodation and Training and Categories F & G | B36: =+B32*15% -> 0 | C36: =C32-C34-C35 -> 0 | D36: =D32-D34-D35 -> 0 | E36: 0 | F36: 0 | G36: 0 | H36: 0 | I36: 0 | J36: 0 | K36: 0 | L36: 0 | M36: 0 | N36: 0 | O36: SDWP-32
A37: Categories F & G Percentage | C37: =IF(C32>0,C34/C32,0) -> 0 | D37: =IF(D32>0,D34/D32,0) -> 0 | E37: 0 | F37: 0 | G37: 0 | H37: 0 | I37: 0 | J37: 0 | K37: 0 | L37: 0 | M37: 0 | N37: 0 | O37: SDWP-33
A38: Travel, Accommodation and Training Percentage | C38: =IF(C32>0,C35/C32,0) -> 0 | D38: =IF(D32>0,D35/D32,0) -> 0 | E38: 0 | F38: 0 | G38: 0 | H38: 0 | I38: 0 | J38: 0 | K38: 0 | L38: 0 | M38: 0 | N38: 0
A39: Total Recognised Spend Excluding Travel, Accommodation and Training and Categories F & G | C39: =C36 -> 0 | D39: =D36 -> 0 | E39: 0 | F39: 0 | G39: 0 | H39: 0 | I39: 0 | J39: 0 | K39: 0 | L39: 0 | M39: 0 | N39: 0 | O39: SDWP-34
A40: Categories F & G Value | C40: =IF(C34>0,IF(C37<15%,C34,(C32*0.15)),0) -> 0 | D40: =IF(D34>0,IF(D37<15%,D34,(D32*0.15)),0) -> 0 | E40: 0 | F40: 0 | G40: 0 | H40: 0 | I40: 0 | J40: 0 | K40: 0 | L40: 0 | M40: 0 | N40: 0 | O40: SDWP-35
A41: Travel, Accommodation and Catering | C41: =IF(C35>0,IF(C38<15%,C35,(C32*0.15)),0) -> 0 | D41: =IF(D35>0,IF(D38<15%,D35,(D32*0.15)),0) -> 0 | E41: 0 | F41: 0 | G41: 0 | H41: 0 | I41: 0 | J41: 0 | K41: 0 | L41: 0 | M41: 0 | N41: 0 | O41: SDWP-36
A42: Total Spend Recognised | C42: =SUM(C39:C41) -> 0 | D42: =SUM(D39:D41) -> 0 | E42: 0 | F42: 0 | G42: 0 | H42: 0 | I42: 0 | J42: 0 | K42: 0 | L42: 0 | M42: 0 | N42: 0 | O42: SDWP-37
C44: Amount Spent on Black Males | F44: Amount Spent on Black Females
C45: A | D45: I | E45: C | F45: A | G45: I | H45: C | I45: Disabled
A46: EAP Target | C46: =+'Employment Equity Worksheet'!B20 -> 0.428 | D46: =+'Employment Equity Worksheet'!C20 -> 0.018 | E46: =+'Employment Equity Worksheet'!D20 -> 0.053 | F46: =+'Employment Equity Worksheet'!G20 -> 0.351 | G46: =+'Employment Equity Worksheet'!H20 -> 0.01 | H46: =+'Employment Equity Worksheet'!I20 -> 0.045 | I46: total spend | K46: =IF($B$23>0,SUM(I42:N42),0) -> 0
A47: Adjusted EAP | C47: =+'Employment Equity Worksheet'!B21 -> 0.4729281768 | D47: =+'Employment Equity Worksheet'!C21 -> 0.01988950276 | E47: =+'Employment Equity Worksheet'!D21 -> 0.05856353591 | F47: =+'Employment Equity Worksheet'!G21 -> 0.3878453039 | G47: =+'Employment Equity Worksheet'!H21 -> 0.01104972376 | H47: =+'Employment Equity Worksheet'!I21 -> 0.04972375691 | I47: Leviable Amount | K47: =+B23 -> 0
A48: Points available | C48: 8 | I48: Points available | K48: 4
A49: Target | C49: 0.06 | I49: Target | K49: 0.003
A50: Points per Category | C50: =ROUND($C$48*C47,2) -> 3.78 | D50: 0.16 | E50: 0.47 | F50: 3.1 | G50: 0.09 | H50: 0.4 | I50: Calculate Score | K50: =IF(K47>0,IF((K46/K47)/K49*K48>K48,K48,(K46/K47)/K49*K48),0) -> 0
A51: Target per category | C51: =ROUND($C$49*C47,4) -> 0.0284 | D51: 0.0012 | E51: 0.0035 | F51: 0.0233 | G51: 0.0007 | H51: 0.003 | I51: Percentage achieved | K51: =IF(K47>0,K46/K47,0) -> 0
A52: Total Black Training % | C52: =IF($B$23>0,C42/$B$23,0) -> 0 | D52: 0 | E52: 0 | F52: 0 | G52: 0 | H52: 0
A53: Points Scored | C53: =IF(C52/C51*C50>C50,C50,ROUND(C52/C51*C50,2)) -> 0 | D53: 0 | E53: 0 | F53: 0 | G53: 0 | H53: 0
A54: Calculate Score | C54: =SUM(C53:H53) -> 0 | D54: =IF(K47>0,SUM(C42:H42)/K47,0) -> 0
C56: Black Males - Learnerships | F56: Black Females - Learnerships | I56: Black Males - Unemployed Training | L56: Black Females - Unemployed Training
C57: A | D57: I | E57: C | F57: A | G57: I | H57: C | I57: A | J57: I | K57: C | L57: A | M57: I | N57: C
A58: EAP Target | C58: =+C46 -> 0.428 | D58: 0.018 | E58: 0.053 | F58: 0.351 | G58: 0.01 | H58: 0.045 | I58: =+C58 -> 0.428 | J58: =+D58 -> 0.018 | K58: 0.053 | L58: 0.351 | M58: 0.01 | N58: 0.045
A59: Adjusted EAP | C59: =+C47 -> 0.4729281768 | D59: 0.01988950276 | E59: 0.05856353591 | F59: 0.3878453039 | G59: 0.01104972376 | H59: 0.04972375691 | I59: =+C59 -> 0.4729281768 | J59: 0.01988950276 | K59: 0.05856353591 | L59: 0.3878453039 | M59: 0.01104972376 | N59: 0.04972375691
A60: Black people | C60: ='SD Table 2'!N34 -> 0 | D60: ='SD Table 2'!O34 -> 0 | E60: ='SD Table 2'!P34 -> 0 | F60: ='SD Table 2'!Q34 -> 0 | G60: ='SD Table 2'!R34 -> 0 | H60: ='SD Table 2'!S34 -> 0 | I60: ='SD Table 5'!J33 -> 0 | J60: ='SD Table 5'!K33 -> 0 | K60: ='SD Table 5'!L33 -> 0 | L60: ='SD Table 5'!M33 -> 0 | M60: ='SD Table 5'!N33 -> 0 | N60: ='SD Table 5'!O33 -> 0
A61: Total Employees | C61: ='Targets & Inputs'!D17 -> 0
A62: Black % | C62: =IF($C$61>0,C60/$C$61,0) -> 0 | D62: =IF($C$61>0,D60/$C$61,0) -> 0 | E62: 0 | F62: 0 | G62: 0 | H62: 0 | I62: 0 | J62: 0 | K62: 0 | L62: 0 | M62: 0 | N62: 0
A63: Points available | C63: 4 | I63: 4
A64: Target | C64: 0.025 | I64: 0.025
A65: Points per Category | C65: =ROUND($C$63*C59,2) -> 1.89 | D65: 0.08 | E65: 0.23 | F65: 1.55 | G65: 0.04 | H65: 0.2 | I65: 1.89 | J65: 0.08 | K65: 0.23 | L65: 1.55 | M65: 0.04 | N65: 0.2
A66: Target per category | C66: =ROUND($C$64*C59,4) -> 0.0118 | D66: 0.0005 | E66: 0.0015 | F66: 0.0097 | G66: 0.0003 | H66: 0.0012 | I66: 0.0118 | J66: 0.0005 | K66: 0.0015 | L66: 0.0097 | M66: 0.0003 | N66: 0.0012
A67: Points Scored | C67: =IF(C66>0,IF(C62/C66*C65>C65,C65,ROUND(C62/C66*C65,2)),0) -> 0 | D67: =IF(D66>0,IF(D62/D66*D65>D65,D65,ROUND(D62/D66*D65,2)),0) -> 0 | E67: 0 | F67: 0 | G67: 0 | H67: 0 | I67: 0 | J67: 0 | K67: 0 | L67: 0 | M67: 0 | N67: 0
A68: Calculate Score | C68: =SUM(C67:H67) -> 0 | D68: =IF(C61>0,SUM(C60:H60)/$C$61,0) -> 0 | I68: =SUM(I67:N67) -> 0 | J68: =IF(I61>0,SUM(I60:N60)/$C$61,0) -> 0
B70: Black Unemployed
A71: Black Learners - Employed | B71: ='SD Table 6'!B35 -> 0
A72: Total Number of Learners completing learnerships | B72: ='SD Table 6'!B34 -> 0
A73: Scored | B73: =IF(B72>0,B71/B72,0) -> 0
A74: Target | B74: 1
A76: Industry SETA
A79: Score for Skills Spend | C79: 1.233232476
A80: Score for Disabled Skills Spend | C80: 0.9341540404
A81: Learners - Black | C81: 4
A82: Black Unemployed people participating in training per the Matrix | C82: No Data available
A83: Absorption of Learners | C83: No Data available

Sheet Procurement Recognition
A1: Client Name | B1: ='Global Business Solutions'!B27 -> Test
A3: FINANCIAL INFORMATION USED | B3: ='Global Business Solutions'!B29 -> 2017-02-28
A5: Preferential Procurement
A6: Details of BEE suppliers
A7: Measurement period | B7: =+C7-364 -> 2016-03-01 | C7: =+B3 -> 2017-02-28
A8: Supplier Name | B8: Supplier Code | C8: Expiry Date | D8: Currency | E8: Comments | F8: Classification | K8: Level Contribution Status (0 to 9) | L8: BEE Recognition Level | M8: Level 9 Exclusions | N8: Exclusions Total | O8: Total Procurement Spend | P8: Total Procurement Spend - Last Financial Year | Q8: SD beneficiary with 3 yr contract | R8: Black EME/QSE (Non SD) with 3 yr contract | S8: First time suppplier | T8: Supplier an Empowering Supplier? | U8: Supplier Greater than 51% Black Owned? | W8: Supplier Greater than 30% Black Women Owned? | Y8: >51% black owned & Designated Group Supplier | AA8: Proof of BEE Status Available for Inspection? | AB8: Recognised Procurement
F9: QSE (Y/N) | G9: EME (Y/N) | H9: Other/Generic (Y/N) | I9: Recognised QSE | J9: Recognised EME | K9: 0=no certificate, 9=Exclusion | L9: 0% - 135% | M9: Reason | O9: Annual EXCL VAT | P9: R 's | Q9: Y = 1.2, N = 1 | R9: Y = 1.2, N = 1 | S9: Y = 1.2, N = 1 | T9: (Y/N) | U9: (Y/N) | V9: Recognised | W9: (Y/N) | X9: Recognised | Y9: (Y/N) | Z9: Recognised | AA9: (Y/N)
I10: =IF(F10="Y",AB10,0) -> 0 | J10: =IF(G10="Y",AB10,0) -> 0 | L10: =IF(K10>0,VLOOKUP(K10,Scorecard!$A$77:$D$87,4,FALSE),0) -> 0 | N10: =IF(K10=9,P10,0) -> 0 | P10: =SUM(O10:O10) -> 0 | T10: Y | V10: =IF(U10="Y",AB10,0) -> 0 | X10: =IF(W10="Y",AB10,0) -> 0 | Z10: =IF(Y10="Y",AB10,0) -> 0 | AA10: =IF(AND(C10>$B$7,T10="Y"),"Y","N") -> N | AB10: =IF(AND(T10="Y",AA10="Y"),O10*L10*Q10*R10*S10,0) -> 0 | AC10: =SUM(Q10:S10) -> 0
I11: =IF(F11="Y",AB11,0) -> 0 | J11: =IF(G11="Y",AB11,0) -> 0 | L11: =IF(K11>0,VLOOKUP(K11,Scorecard!$A$77:$D$87,4,FALSE),0) -> 0 | N11: =IF(K11=9,P11,0) -> 0 | P11: =SUM(O11:O11) -> 0 | T11: Y | V11: =IF(U11="Y",AB11,0) -> 0 | X11: =IF(W11="Y",AB11,0) -> 0 | Z11: =IF(Y11="Y",AB11,0) -> 0 | AA11: =IF(AND(C11>$B$7,T11="Y"),"Y","N") -> N | AB11: =IF(AND(T11="Y",AA11="Y"),O11*L11*Q11*R11*S11,0) -> 0 | AC11: 0
I12: 0 | J12: 0 | L12: =IF(K12>0,VLOOKUP(K12,Scorecard!$A$77:$D$87,4,FALSE),0) -> 0 | N12: 0 | P12: 0 | T12: Y | V12: 0 | X12: 0 | Z12: 0 | AA12: N | AB12: 0 | AC12: 0
I13: 0 | J13: 0 | L13: =IF(K13>0,VLOOKUP(K13,Scorecard!$A$77:$D$87,4,FALSE),0) -> 0 | N13: 0 | P13: 0 | T13: Y | V13: 0 | X13: 0 | Z13: 0 | AA13: N | AB13: 0 | AC13: 0
I14: 0 | J14: 0 | L14: =IF(K14>0,VLOOKUP(K14,Scorecard!$A$77:$D$87,4,FALSE),0) -> 0 | N14: 0 | P14: 0 | T14: Y | V14: 0 | X14: 0 | Z14: 0 | AA14: N | AB14: 0 | AC14: 0
I15: 0 | J15: 0 | L15: =IF(K15>0,VLOOKUP(K15,Scorecard!$A$77:$D$87,4,FALSE),0) -> 0 | N15: 0 | P15: 0 | T15: Y | V15: 0 | X15: 0 | Z15: 0 | AA15: N | AB15: 0 | AC15: 0
I16: 0 | J16: 0 | L16: =IF(K16>0,VLOOKUP(K16,Scorecard!$A$77:$D$87,4,FALSE),0) -> 0 | N16: 0 | P16: 0 | T16: Y | V16: 0 | X16: 0 | Z16: 0 | AA16: N | AB16: 0 | AC16: 0
I17: 0 | J17: 0 | L17: =IF(K17>0,VLOOKUP(K17,Scorecard!$A$77:$D$87,4,FALSE),0) -> 0 | N17: 0 | P17: 0 | T17: Y | V17: 0 | X17: 0 | Z17: 0 | AA17: N | AB17: 0 | AC17: 0
I18: 0 | J18: 0 | L18: =IF(K18>0,VLOOKUP(K18,Scorecard!$A$77:$D$87,4,FALSE),0) -> 0 | N18: 0 | P18: 0 | T18: Y | V18: 0 | X18: 0 | Z18: 0 | AA18: N | AB18: 0 | AC18: 0
I19: 0 | J19: 0 | L19: =IF(K19>0,VLOOKUP(K19,Scorecard!$A$77:$D$87,4,FALSE),0) -> 0 | N19: 0 | P19: 0 | T19: Y | V19: 0 | X19: 0 | Z19: 0 | AA19: N | AB19: 0 | AC19: 0
I20: 0 | J20: 0 | L20: =IF(K20>0,VLOOKUP(K20,Scorecard!$A$77:$D$87,4,FALSE),0) -> 0 | N20: 0 | P20: 0 | T20: Y | V20: 0 | X20: 0 | Z20: 0 | AA20: N | AB20: 0 | AC20: 0
I21: 0 | J21: 0 | L21: =IF(K21>0,VLOOKUP(K21,Scorecard!$A$77:$D$87,4,FALSE),0) -> 0 | N21: 0 | P21: 0 | T21: Y | V21: 0 | X21: 0 | Z21: 0 | AA21: N | AB21: 0 | AC21: 0
I22: 0 | J22: 0 | L22: =IF(K22>0,VLOOKUP(K22,Scorecard!$A$77:$D$87,4,FALSE),0) -> 0 | N22: 0 | P22: 0 | T22: Y | V22: 0 | X22: 0 | Z22: 0 | AA22: N | AB22: 0 | AC22: 0
I23: 0 | J23: 0 | L23: =IF(K23>0,VLOOKUP(K23,Scorecard!$A$77:$D$87,4,FALSE),0) -> 0 | N23: 0 | P23: 0 | T23: Y | V23: 0 | X23: 0 | Z23: 0 | AA23: N | AB23: 0 | AC23: 0
I24: 0 | J24: 0 | L24: =IF(K24>0,VLOOKUP(K24,Scorecard!$A$77:$D$87,4,FALSE),0) -> 0 | N24: 0 | P24: 0 | T24: Y | V24: 0 | X24: 0 | Z24: 0 | AA24: N | AB24: 0 | AC24: 0
I25: 0 | J25: 0 | L25: =IF(K25>0,VLOOKUP(K25,Scorecard!$A$77:$D$87,4,FALSE),0) -> 0 | N25: 0 | P25: 0 | T25: Y | V25: 0 | X25: 0 | Z25: 0 | AA25: N | AB25: 0 | AC25: 0
I26: 0 | J26: 0 | L26: =IF(K26>0,VLOOKUP(K26,Scorecard!$A$77:$D$87,4,FALSE),0) -> 0 | N26: 0 | P26: 0 | T26: Y | V26: 0 | X26: 0 | Z26: 0 | AA26: N | AB26: 0 | AC26: 0
I27: 0 | J27: 0 | L27: =IF(K27>0,VLOOKUP(K27,Scorecard!$A$77:$D$87,4,FALSE),0) -> 0 | N27: 0 | P27: 0 | T27: Y | V27: 0 | X27: 0 | Z27: 0 | AA27: N | AB27: 0 | AC27: 0
I28: 0 | J28: 0 | L28: =IF(K28>0,VLOOKUP(K28,Scorecard!$A$77:$D$87,4,FALSE),0) -> 0 | N28: 0 | P28: 0 | T28: Y | V28: 0 | X28: 0 | Z28: 0 | AA28: N | AB28: 0 | AC28: 0
I29: 0 | J29: 0 | L29: =IF(K29>0,VLOOKUP(K29,Scorecard!$A$77:$D$87,4,FALSE),0) -> 0 | N29: 0 | P29: 0 | T29: Y | V29: 0 | X29: 0 | Z29: 0 | AA29: N | AB29: 0 | AC29: 0
I30: 0 | J30: 0 | L30: =IF(K30>0,VLOOKUP(K30,Scorecard!$A$77:$D$87,4,FALSE),0) -> 0 | N30: 0 | P30: 0 | T30: Y | V30: 0 | X30: 0 | Z30: 0 | AA30: N | AB30: 0 | AC30: 0
I31: =IF(F31="Y",AB31,0) -> 0 | J31: =IF(G31="Y",AB31,0) -> 0 | L31: =IF(K31>0,VLOOKUP(K31,Scorecard!$A$77:$D$87,4,FALSE),0) -> 0 | N31: =IF(K31=9,P31,0) -> 0 | P31: =SUM(O31:O31) -> 0 | T31: Y | V31: =IF(U31="Y",AB31,0) -> 0 | X31: =IF(W31="Y",AB31,0) -> 0 | Z31: =IF(Y31="Y",AB31,0) -> 0 | AA31: =IF(AND(C31>$B$7,T31="Y"),"Y","N") -> N | AB31: 0
A32: Insert Lines above
I33: =SUM(I10:I32) -> 0 | J33: =SUM(J10:J32) -> 0 | N33: =SUM(N10:N32) -> 0 | P33: =SUM(P10:P32) -> 0 | V33: =SUM(V10:V32) -> 0 | X33: =SUM(X10:X32) -> 0 | Z33: =SUM(Z10:Z31) -> 0 | AB33: =SUM(AB10:AB32) -> 0
J34: =SUM(I33:J33) -> 0 | N34: 0 | P34: 0 | V34: 0 | X34: 0 | Z34: 0 | AB34: 0
I35: 0 | J35: 0

Sheet Procurement Calculation
A1: COMPANY NAME | B1: ='Global Business Solutions'!B27 -> Test
A3: FINANCIAL INFORMATION USED | B3: ='Global Business Solutions'!B29 -> 2017-02-28
A5: Preferential Procurement
A7: Total Measured Procurement Spend | B7: =TMPS!D18 -> 0
A8: Recognised Procurement | B8: ='Procurement Recognition'!AB33 -> 0
A9: QSE Spend | B9: =+'Procurement Recognition'!I33 -> 0
A10: EME Spend | B10: =+'Procurement Recognition'!J33 -> 0
A11: Black Owned Spend | B11: ='Procurement Recognition'!V33 -> 0
A12: Black Women Owned Spend | B12: ='Procurement Recognition'!X33 -> 0
A13: 51% black owned designated group spend | B13: ='Procurement Recognition'!Z33 -> 0
A15: Calculations
A16: Procurement Indicator | C16: Company Performance | D16: Compliance Target | E16: Weighting Points | F16: Score
A17: B-BBEE Procurement Spend from all Empowering Suppliers as % of Measured Spend | C17: =IF($B$7>0,B8/$B$7,0) -> 0 | D17: =+Scorecard!E39 -> 0.8 | E17: =+Scorecard!F39 -> 5 | F17: =IF(C17/D17*E17>E17,E17,C17/D17*E17) -> 0
A18: BEE Procurement Spend from Empowering QSE Suppliers | C18: 0 | D18: =+Scorecard!E40 -> 0.15 | E18: =+Scorecard!F40 -> 3 | F18: 0
A19: BEE Procurement Spend from EME Suppliers | C19: 0 | D19: =+Scorecard!E41 -> 0.15 | E19: =+Scorecard!F41 -> 4 | F19: 0
A20: Spend from Black Owned Suppliers | B20: Black Owned | C20: 0 | D20: =+Scorecard!E42 -> 0.4 | E20: =+Scorecard!F42 -> 9 | F20: 0
B21: Black Woman Owned | C21: 0 | D21: =+Scorecard!E43 -> 0.12 | E21: =+Scorecard!F43 -> 4 | F21: 0
A22: BBBEE Spend from Designated Group Suppliers >=51% Black Owned | C22: 0 | D22: =+Scorecard!E44 -> 0.02 | E22: =+Scorecard!F44 -> 2 | F22: 0
A23: Supplier Development | C23: ='ED & SD'!C55 -> 0 | D23: =+Scorecard!E45 -> 0.02 | E23: =+Scorecard!F45 -> 10 | F23: =+'ED & SD'!B47 -> 0
A24: Enterprise Development | C24: ='ED & SD'!C56 -> 0 | D24: =+Scorecard!E46 -> 0.01 | E24: =+Scorecard!F46 -> 5 | F24: =+'ED & SD'!C47 -> 0
A25: Graduation to Supplier Development from Enterprise Development | C25: 0 | D25: =+Scorecard!E47 -> 1 | E25: =+Scorecard!F47 -> 1 | F25: =IF(C25>=1,E25,0) -> 0
A26: Creating one or more Jobs via Supplier or Enterprise Development | C26: 0 | D26: =+Scorecard!E48 -> 1 | E26: =+Scorecard!F48 -> 1 | F26: =IF(C26>=1,E26,0) -> 0
F28: =SUM(F17:F27) -> 0

Sheet TMPS
A1: COMPANY NAME | B1: ='Global Business Solutions'!B27 -> Test
A3: FINANCIAL INFORMATION USED | B3: ='Global Business Solutions'!B29 -> 2017-02-28
A5: TMPS & NPAT
C9: ='Procurement Recognition'!C7 -> 2017-02-28 | D9: Total
A10: COS | C10: =+'Procurement Recognition'!P33 -> 0 | D10: =SUM(C10:C10) -> 0
A11: Operational Expenditure | C11: 0 | D11: =SUM(C11:C11) -> 0
A12: Capex | C12: 0 | D12: 0
A13: Interest & Finance Charges | C13: 0 | D13: 0
A14: Miscellaneous | C14: 0 | D14: 0
A15: Total Expenditure | C15: =SUM(C10:C14) -> 0 | D15: =SUM(D10:D14) -> 0
A16: Imports and Government Suppliers per schedule | D16: ='Procurement Recognition'!N33 -> 0
A17: Exclusions - per Table below | C17: =+C49 -> 0 | D17: =SUM(C17:C17) -> 0
A18: TMPS | C18: =C15-C17 -> 0 | D18: =(D15-D17-D16) -> 0
C19: 0
A20: Exclusions
A22: Bad debts | C22: 0 | D22: =SUM(C22:C22) -> 0
A23: Depreciation | C23: 0 | D23: 0
A24: Donations | C24: 0 | D24: 0
A25: Fines | C25: 0 | D25: 0
A26: Licences and levies | C26: 0 | D26: 0
A27: Loss on sale of Fixed Assets | C27: 0 | D27: 0
A28: Labour | C28: 0 | D28: 0
A29: Travel Allowances | C29: 0 | D29: 0
A30: Rates & Taxes | C30: 0 | D30: 0
A31: Skills development Levies | C31: 0 | D31: 0
A32: Tender Costs | C32: 0 | D32: 0
A33: Overseas Travel | C33: 0 | D33: 0
A34: Vehicle Adjustment | C34: 0 | D34: 0
A35: Obsolescence | C35: 0 | D35: 0
A36: Stock Adjustment | C36: 0 | D36: 0
A37: Utilities | C37: 0 | D37: 0
A38: Customs Duty | C38: 0 | D38: 0
A39: Royalties | C39: 0 | D39: 0
A40: Stock Losses | C40: 0 | D40: 0
A41: Fines | C41: 0 | D41: 0
A42: Taxation | C42: 0 | D42: 0
A43: Impairment Loss | C43: 0 | D43: 0
A44: Management fees | C44: 0 | D44: 0
A45: Annual Duty | C45: 0 | D45: 0
A46: Discount | C46: 0 | D46: 0
A47: Imports | C47: 0 | D47: 0
A48: Miscellaneous | C48: 0 | D48: 0
C49: =SUM(C21:C48) -> 0 | D49: =SUM(D22:D48) -> 0
A51: Net Profit after Tax | C51: =+'Targets & Inputs'!C20 -> 0 | D51: =SUM(C51:C51) -> 0
A52: Turnover | C52: =+'Targets & Inputs'!C19 -> 0 | D52: =SUM(C52:C52) -> 0

Sheet ED & SD
A1: COMPANY NAME | B1: ='Global Business Solutions'!B27 -> Test
A3: FINANCIAL INFORMATION USED | B3: ='Global Business Solutions'!B29 -> 2017-02-28
A5: Enterprise Development
A9: Beneficiaries - If beneficiary is also supplier please use exact name as used in Procurement Recognition Sheet | B9: Enterprise/Supplier Development | C9: Contribution Type | D9: Monetary or Non Monetary | E9: Contribution Factor per Matrix | F9: amount claimed | G9: amount recognised | H9: ref | I9: Comments | L9: Supplier Development | M9: Enterprise Development | N9: Supplier Development - Early Settlement | O9: Enterprise Development - Early Settlement
A10: Early Payments | B10: Enterprise Development | C10: Early Payment | D10: Non Monetary | E10: 1 | F10: =+'Early Payments - ED'!H24 -> 0 | G10: =F10*E10 -> 0 | H10: ED-1 | M10: 0 | N10: =IF(AND(B10="Supplier Development",C10="Early Payment"),G10,0) -> 0 | O10: =IF(AND(B10="Enterprise Development",C10="Early Payment"),G10,0) -> 0
A11: Early Payments | B11: Supplier Development | C11: Early Payment | D11: Non Monetary | E11: 1 | F11: =+'Early Payments - SD'!H32 -> 0 | G11: =F11*E11 -> 0 | H11: ED-2 | L11: 0 | N11: =IF(AND(B11="Supplier Development",C11="Early Payment"),G11,0) -> 0 | O11: =IF(AND(B11="Enterprise Development",C11="Early Payment"),G11,0) -> 0
C12: Direct Cost | D12: Monetary | E12: =VLOOKUP(C12,$D$76:$E$89,2,FALSE) -> 1 | G12: =F12*E12 -> 0 | H12: ED-3 | L12: =IF(B12="Supplier Development",G12,0) -> 0 | M12: =IF(B12="Enterprise Development",G12,0) -> 0 | N12: =IF(AND(B12="Supplier Development",C12="Early Payment"),G12,0) -> 0 | O12: =IF(AND(B12="Enterprise Development",C12="Early Payment"),G12,0) -> 0
C13: Direct Cost | D13: Monetary | E13: 1 | G13: =F13*E13 -> 0 | H13: ED-4 | L13: =IF(B13="Supplier Development",G13,0) -> 0 | M13: =IF(B13="Enterprise Development",G13,0) -> 0 | N13: =IF(AND(B13="Supplier Development",C13="Early Payment"),G13,0) -> 0 | O13: =IF(AND(B13="Enterprise Development",C13="Early Payment"),G13,0) -> 0
C14: Direct Cost | D14: Monetary | E14: 1 | G14: =F14*E14 -> 0 | H14: ED-5 | L14: 0 | M14: 0 | N14: 0 | O14: 0
C15: Direct Cost | D15: Monetary | E15: 1 | G15: 0 | H15: ED-6 | L15: 0 | M15: 0 | N15: 0 | O15: 0
C16: Direct Cost | D16: Monetary | E16: 1 | G16: 0 | H16: ED-7 | L16: 0 | M16: 0 | N16: 0 | O16: 0
C17: Employee Time | D17: Monetary | E17: 0.6 | G17: 0 | H17: ED-8 | L17: 0 | M17: 0 | N17: 0 | O17: 0
C18: Direct Cost | D18: Monetary | E18: 1 | G18: 0 | H18: ED-9 | L18: 0 | M18: 0 | N18: 0 | O18: 0
C19: Employee Time | D19: Monetary | E19: 0.6 | G19: 0 | H19: ED-10 | L19: 0 | M19: 0 | N19: 0 | O19: 0
C20: Employee Time | D20: Monetary | E20: 0.6 | G20: 0 | H20: ED-11 | L20: 0 | M20: 0 | N20: 0 | O20: 0
C21: Employee Time | D21: Monetary | E21: 0.6 | G21: 0 | H21: ED-12 | L21: 0 | M21: 0 | N21: 0 | O21: 0
C22: Employee Time | D22: Monetary | E22: 0.6 | G22: 0 | H22: ED-13 | L22: 0 | M22: 0 | N22: 0 | O22: 0
C23: Direct Cost | D23: Monetary | E23: 1 | G23: 0 | H23: ED-14 | L23: 0 | M23: 0 | N23: 0 | O23: 0
C24: Grant | D24: Monetary | E24: 1 | G24: 0 | H24: ED-15 | L24: 0 | M24: 0 | N24: 0 | O24: 0
C25: Grant | D25: Monetary | E25: 1 | G25: 0 | H25: ED-16 | L25: 0 | M25: 0 | N25: 0 | O25: 0
C26: Grant | D26: Monetary | E26: 1 | G26: 0 | H26: ED-17 | L26: 0 | M26: 0 | N26: 0 | O26: 0
C27: Grant | D27: Monetary | E27: 1 | G27: 0 | H27: ED-18 | L27: 0 | M27: 0 | N27: 0 | O27: 0
C28: Grant | D28: Monetary | E28: 1 | G28: 0 | H28: ED-19 | L28: 0 | M28: 0 | N28: 0 | O28: 0
C29: Employee Time | D29: Monetary | E29: 0.6 | G29: 0 | H29: ED-20 | L29: 0 | M29: 0 | N29: 0 | O29: 0
C30: Employee Time | D30: Monetary | E30: 0.6 | G30: 0 | H30: ED-21 | L30: 0 | M30: 0 | N30: 0 | O30: 0
A31: Insert lines above
G32: =SUM(G10:G31) -> 0 | L32: =SUM(L10:L31) -> 0 | M32: =SUM(M10:M31) -> 0 | N32: =SUM(N10:N31) -> 0 | O32: =SUM(O10:O31) -> 0
A34: Makeup | B34: Supplier Development | C34: Enterprise Development | D34: Total
A35: Early Settlement | B35: =+N32 -> 0 | C35: =+O32 -> 0 | D35: =+B35+C35 -> 0
A36: Other | B36: =+L32 -> 0 | C36: =+M32 -> 0 | D36: =+B36+C36 -> 0
B37: =SUM(B35:B36) -> 0 | C37: =SUM(C35:C36) -> 0 | D37: =SUM(D35:D36) -> 0
B39: Supplier Development | C39: Enterprise Development
A40: Points Available | B40: =+Scorecard!F45 -> 10 | C40: =+Scorecard!F46 -> 5
A41: Targets | B41: 0.02 | C41: =+Scorecard!E46 -> 0.01
A42: Spend Required | B42: =+B41*C54 -> 0 | C42: =+C41*C54 -> 0
A44: Scoring | B44: Supplier Development | C44: Enterprise Development
A45: Early Settlement | B45: =IF($C$54>0,IF(B35/$C$54/B41*B40>15%*B40,15%*B40,ROUND(B35/$C$54/B41*B40,2)),0) -> 0 | C45: =IF($C$54>0,IF(C35/$C$54/C41*C40>15%*C40,15%*C40,ROUND(C35/$C$54/C41*C40,2)),0) -> 0
A46: Other | B46: =IF($C$54>0,IF((B36/$C$54/B41*B40)+B45>B40,B40-B45,ROUND(B36/$C$54/B41*B40,2)),0) -> 0 | C46: =IF($C$54>0,IF((C36/$C$54/C41*C40)+C45>C40,C40-C45,ROUND(C36/$C$54/C41*C40,2)),0) -> 0
B47: =SUM(B45:B46) -> 0 | C47: =SUM(C45:C46) -> 0
A49: Percentages | B49: Supplier Development | C49: Enterprise Development
A50: Early Settlement | B50: =IF(C54>0,B35/$C$54,0) -> 0 | C50: =IF(C54>0,C35/$C$54,0) -> 0
A51: Other | B51: =IF(C54>0,B36/$C$54,0) -> 0 | C51: =IF(C54>0,C36/$C$54,0) -> 0
B52: =SUM(B50:B51) -> 0 | C52: =SUM(C50:C51) -> 0
A54: Net Profit after tax | C54: =HLOOKUP(D54,B71:J74,4) -> 0 | D54: ='Targets & Inputs'!C23 -> Table 3
A55: % spend of NPAT - Supplier Dev | C55: =+B52 -> 0
A56: % spend of NPAT - Enterprise Dev | C56: =+C52 -> 0
A58: =+'Targets & Inputs'!A166 -> 2016-12-31 | B58: All Industries | C58: Mining & Quarrying | D58: Manufacturing | E58: Electricity, Gas & Water Supply | F58: Construction | G58: Trade | H58: Transport, Storage & Communication | I58: Real Estate & Other Business Services | J58: Community, Social and Personnal Services
B59: Table 1 | C59: Table 2 | D59: Table 3 | E59: Table 4 | F59: Table 5 | G59: Table 6 | H59: Table 7 | I59: Table 8 | J59: Table 9
A60: Stats SA Returns
A61: Turnover | B61: ='Targets & Inputs'!B169 -> 2309987 | C61: ='Targets & Inputs'!C169 -> 158235 | D61: ='Targets & Inputs'!D169 -> 645643 | E61: ='Targets & Inputs'!E169 -> 56197 | F61: ='Targets & Inputs'!F169 -> 109228 | G61: ='Targets & Inputs'!G169 -> 810779 | H61: ='Targets & Inputs'!H169 -> 203834 | I61: ='Targets & Inputs'!I169 -> 270075 | J61: ='Targets & Inputs'!J169 -> 55996
A62: Net profit before Tax | B62: ='Targets & Inputs'!B170 -> 164904 | C62: ='Targets & Inputs'!C170 -> 23915 | D62: ='Targets & Inputs'!D170 -> 38725 | E62: ='Targets & Inputs'!E170 -> -197 | F62: ='Targets & Inputs'!F170 -> 3713 | G62: ='Targets & Inputs'!G170 -> 44922 | H62: ='Targets & Inputs'!H170 -> 16409 | I62: ='Targets & Inputs'!I170 -> 35077 | J62: ='Targets & Inputs'!J170 -> 2340
A63: Tax | B63: ='Targets & Inputs'!B171 -> 31644 | C63: ='Targets & Inputs'!C171 -> 5820 | D63: ='Targets & Inputs'!D171 -> 8716 | E63: ='Targets & Inputs'!E171 -> 504 | F63: ='Targets & Inputs'!F171 -> 1497 | G63: ='Targets & Inputs'!G171 -> 5616 | H63: ='Targets & Inputs'!H171 -> 3862 | I63: ='Targets & Inputs'!I171 -> 4454 | J63: ='Targets & Inputs'!J171 -> 1175
A64: Net Profit after Tax | B64: =+B62-B63 -> 133260 | C64: =+C62-C63 -> 18095 | D64: 30009 | E64: -701 | F64: 2216 | G64: 39306 | H64: 12547 | I64: 30623 | J64: =+J62-J63 -> 1165
A65: NPAT % | B65: =IF(B61>0,B64/B61,0) -> 0.05768863634 | C65: =IF(C61>0,C64/C61,0) -> 0.1143552311 | D65: 0.04647924627 | E65: -0.01247397548 | F65: 0.02028783828 | G65: 0.048479302 | H65: 0.06155499083 | I65: 0.1133870221 | J65: =IF(J61>0,J64/J61,0) -> 0.0208050575
A66: 0.25 | B66: =+B65*$A$66 -> 0.01442215909 | C66: =+C65*$A$66 -> 0.02858880779 | D66: 0.01161981157 | E66: -0.00311849387 | F66: 0.005071959571 | G66: 0.0121198255 | H66: 0.01538874771 | I66: 0.02834675553 | J66: =+J65*$A$66 -> 0.005201264376
A68: Client Figures
A69: Turnover | B69: =TMPS!C52 -> 0 | C69: =+B69 -> 0 | D69: =+C69 -> 0 | E69: 0 | F69: 0 | G69: 0 | H69: 0 | I69: 0 | J69: =+I69 -> 0
B71: Table 1 | C71: Table 2 | D71: Table 3 | E71: Table 4 | F71: Table 5 | G71: Table 6 | H71: Table 7 | I71: Table 8 | J71: Table 9
A72: Industry Norm NPAT | B72: =+B69*B66 -> 0 | C72: 0 | D72: 0 | E72: 0 | F72: 0 | G72: 0 | H72: 0 | I72: 0 | J72: 0
A73: NPAT | B73: =+TMPS!C51 -> 0 | C73: =+B73 -> 0 | D73: =+C73 -> 0 | E73: 0 | F73: 0 | G73: 0 | H73: 0 | I73: 0 | J73: =+I73 -> 0
A74: Figure Used | B74: =IF(B72>B73,B72,B73) -> 0 | C74: =IF(C72>C73,C72,C73) -> 0 | D74: 0 | E74: 0 | F74: 0 | G74: 0 | H74: 0 | I74: 0 | J74: =IF(J72>J73,J72,J73) -> 0
B76: Qualifying Contribution type | C76: Contribution Amount | D76: Contribution Amount | E76: Benefit Factor
A77: Grant and Related Contributions | B77: Grant Contribution | C77: Full Grant Amount | D77: Grant | E77: 1
B78: Direct Cost incurred in supporting Enterprise Development and Supplier Development | C78: Verifiable Cost (including both monetary and non-monetary) | D78: Direct Cost | E78: 1
B79: Discounts in addition to normal business practices supporting Enterprise Development and Supplier Development | C79: Discount Amount (in addition to normal business discount) | D79: Discount | E79: 1
B80: Overhead Costs incurred in supporting Enterprise Development and Supplier Development (including people appointed in Enterprise Development and Supplier Development) | C80: Verifiable Costs (including both monetary and non-monetary) | D80: Overhead Costs | E80: 0.7
A81: Loans and Related Contributions | B81: Interest-Free Loan with no security requirements supporting Enterprise Development and Supplier Development | C81: Outstanding Loan Amount | D81: Interest Free Loan | E81: 0.7
B82: Standard Loan to Enterprise Development and Supplier Development Beneficiaries | C82: Outstanding Loan Amount | D82: Standard Loan | E82: 0.5
B83: Guarantees provided on behalf of a Beneficiary entity | C83: Guarantee Amount | D83: Guarantee Amount | E83: 0.03
B84: Lower Interest Rate | C84: Outstanding loan amount | D84: Lower interest Rate | E84: Prime Rate - Actual Rate
A85: Equity Investments and Related Contributions | B85: Minority Investment in Enterprise Development and Supplier Development Beneficiaries | C85: Investment Amount | D85: Equity Investment | E85: 0.7
B86: Enterprise Development and Supplier Development Investment with lower dividend to financier | C86: Investment Amount | D86: Investment Amount | E86: 1
A87: Contributions made in the form of human resource capacity | B87: Professional services rendered at no cost and supporting Enterprise Development and Supplier Development | C87: Commercial hourly rate of professional | D87: Professional Services | E87: 0.6
B88: Professional services rendered at a discount and supporting Enterprise Development and Supplier Development | C88: Value of discount based on commercial hourly rate of professional | D88: Discounted Professional Services | E88: 0.6
B89: Time of employees of Measured Entity productively deployed in assisting beneficiaries | C89: Monthly salary divided by 160 | D89: Employee Time | E89: 0.6

Sheet Early Payments - ED
A1: COMPANY NAME | B1: ='Global Business Solutions'!B27 -> Test
A3: FINANCIAL INFORMATION USED | B3: ='Global Business Solutions'!B29 -> 2017-02-28
A5: Enterprise Development - Early Payments Schedule
A9: Beneficiaries | B9: Invoice Date | C9: Invoice Amount excl VAT | D9: Category Classification | E9: Recognition Amount | F9: EFT Date | G9: Benefit Factor | H9: Amount Recognised | I9: ref | J9: Comments
E10: =IF(D10="A",(C10*1),0) -> 0 | G10: =IF(B10=0,0,(IF((15-(F10-B10))>15,15,(15-(F10-B10)))))/100 -> 0 | H10: =IF(G10<5%,0,(G10*E10)) -> 0 | I10: ED/SD-1
E11: 0 | G11: 0 | H11: 0 | I11: ED/SD-2
E12: 0 | G12: 0 | H12: 0 | I12: ED/SD-3
E13: 0 | G13: 0 | H13: 0 | I13: ED/SD-4
E14: 0 | G14: 0 | H14: 0 | I14: ED/SD-5
E15: 0 | G15: 0 | H15: 0 | I15: ED/SD-6
E16: 0 | G16: 0 | H16: 0 | I16: ED/SD-7
E17: 0 | G17: 0 | H17: 0 | I17: ED/SD-8
E18: 0 | G18: 0 | H18: 0 | I18: ED/SD-9
E19: 0 | G19: 0 | H19: 0 | I19: ED/SD-10
E20: 0 | G20: 0 | H20: 0 | I20: ED/SD-11
E21: 0 | G21: =IF(B21=0,0,(IF((15-(F21-B21))>15,15,(15-(F21-B21)))))/100 -> 0 | H21: =IF(G21<5%,0,(G21*E21)) -> 0 | I21: ED/SD-12
E22: =IF(D22="A",(C22*1),0) -> 0 | G22: 0 | H22: 0 | I22: ED/SD-13
A23: Please insert Lines above
H24: =SUM(H10:H23) -> 0

Sheet Early Payments - SD
A1: COMPANY NAME | B1: ='Global Business Solutions'!B27 -> Test
A3: FINANCIAL INFORMATION USED | B3: ='Global Business Solutions'!B29 -> 2017-02-28
A5: Supplier Development - Early Payments Schedule
A9: Beneficiaries | B9: Invoice Date | C9: Invoice Amount excl VAT | D9: Category Classification | E9: Recognition Amount | F9: EFT Date | G9: Benefit Factor | H9: Amount Recognised | I9: ref | J9: Comments
E10: =IF(D10="A",(C10*1),0) -> 0 | G10: =IF(B10=0,0,(IF((15-(F10-B10))>15,15,(15-(F10-B10)))))/100 -> 0 | H10: =IF(G10<5%,0,(G10*E10)) -> 0 | I10: ED/SD-1
E11: =IF(D11="A",(C11*1),0) -> 0 | G11: =IF(B11=0,0,(IF((15-(F11-B11))>15,15,(15-(F11-B11)))))/100 -> 0 | H11: =IF(G11<5%,0,(G11*E11)) -> 0 | I11: ED/SD-2
E12: 0 | G12: 0 | H12: 0 | I12: ED/SD-3
E13: 0 | G13: 0 | H13: 0 | I13: ED/SD-4
E14: 0 | G14: 0 | H14: 0 | I14: ED/SD-5
E15: 0 | G15: 0 | H15: 0 | I15: ED/SD-6
E16: 0 | G16: 0 | H16: 0 | I16: ED/SD-7
E17: 0 | G17: 0 | H17: 0 | I17: ED/SD-8
E18: 0 | G18: 0 | H18: 0 | I18: ED/SD-9
E19: 0 | G19: 0 | H19: 0 | I19: ED/SD-10
E20: 0 | G20: 0 | H20: 0 | I20: ED/SD-11
E21: 0 | G21: 0 | H21: 0 | I21: ED/SD-12
E22: 0 | G22: 0 | H22: 0 | I22: ED/SD-13
E23: 0 | G23: 0 | H23: 0 | I23: ED/SD-14
E24: 0 | G24: 0 | H24: 0 | I24: ED/SD-15
E25: 0 | G25: 0 | H25: 0 | I25: ED/SD-16
E26: 0 | G26: 0 | H26: 0 | I26: ED/SD-17
E27: 0 | G27: 0 | H27: 0 | I27: ED/SD-18
E28: 0 | G28: 0 | H28: 0 | I28: ED/SD-19
E29: 0 | G29: 0 | H29: 0 | I29: ED/SD-20
E30: 0 | G30: 0 | H30: 0 | I30: ED/SD-21
A31: Please insert lines above
H32: =SUM(H10:H31) -> 0
A36: A
A37: B

Sheet Socio Economic Development
A1: COMPANY NAME | B1: ='Global Business Solutions'!B27 -> Test
A3: FINANCIAL INFORMATION USED | B3: ='Global Business Solutions'!B29 -> 2017-02-28
A5: Socio Economic Development
A9: Beneficiaries | B9: Contribution Type | C9: Monetary or Non Monetary | D9: Contribution Factor per Matrix | E9: % Black Beneficiaries | F9: amount claimed | G9: amount recognised | H9: ref | I9: Comments
B10: Grant | D10: =VLOOKUP(B10,$D$38:$E$45,2,FALSE) -> 1 | G10: =IF(E10<75%,(F10*E10*D10),F10*D10) -> 0 | H10: SED-1
B11: Grant | D11: =VLOOKUP(B11,$D$38:$E$45,2,FALSE) -> 1 | G11: =IF(E11<75%,(F11*E11*D11),F11*D11) -> 0 | H11: SED-2
B12: Grant | D12: 1 | G12: 0 | H12: SED-3
B13: Grant | D13: 1 | G13: 0 | H13: SED-4
B14: Grant | D14: 1 | G14: 0 | H14: SED-5
B15: Grant | D15: 1 | G15: 0 | H15: SED-6
B16: Costs | D16: =VLOOKUP(B16,$D$38:$E$45,2,FALSE) -> 0.8 | G16: 0 | H16: SED-7
B17: Grant | D17: 1 | G17: 0 | H17: SED-8
B18: Grant | D18: 1 | G18: 0 | H18: SED-9
B19: Grant | D19: 1 | G19: 0 | H19: SED-10
B20: Grant | D20: 1 | G20: 0 | H20: SED-11
B21: Grant | D21: 1 | G21: 0 | H21: SED-12
B22: Grant | D22: 1 | G22: 0 | H22: SED-13
B23: Grant | D23: 1 | G23: 0 | H23: SED-14
B24: Grant | D24: 1 | G24: 0 | H24: SED-15
B25: Grant | D25: 1 | G25: 0 | H25: SED-16
B26: Grant | D26: 1 | G26: 0 | H26: SED-17
B27: Grant | D27: 1 | G27: 0 | H27: SED-18
A28: Insert lines above | B28: Grant | D28: 1 | G28: =IF(E28<75%,(F28*E28*D28),F28*D28) -> 0
G29: =SUM(G10:G28) -> 0
A31: Net Profit after tax | B31: =+'ED & SD'!C54 -> 0
A32: % spend of NPAT | B32: =IF(B31>0,G29/B31,0) -> 0
A33: Target | B33: =+Scorecard!E51 -> 0.01
A34: Weight | B34: =+Scorecard!F51 -> 5
A35: Score | B35: =IF((B32/B33*B34)>B34,B34,(B32/B33*B34)) -> 0
A36: Spend Required | B36: =+B31*B33 -> 0
B38: Qualifying Contribution type | C38: Contribution Amount | D38: Contribution Amount | E38: Benefit Factor
A39: Grant and Related Contributions | B39: Grant Contribution | C39: Full Grant Amount | D39: Grant | E39: 1
B40: Direct Cost incurred in supporting socio-economic development, sector specific initiatives or Qualifying Socio-Economic Development Contributions | C40: Verifiable Cost (including both monetary and non-monetary) | D40: Verifiable cost | E40: 1
B41: Discounts in addition to normal business practices supporting socio-economic development, sector specific initiatives or Qualifying Socio-Economic Development Contributions | C41: Discount Amount (in addition to normal business discount) | D41: Discount | E41: 1
B42: Overhead Costs incurred in supporting socio-economic development, sector specific initiatives orQualifying Socio-Economic Development Contributions | C42: Verifiable Costs (including both monetary and non-monetary) | D42: Costs | E42: 0.8
A43: Contributions made in the form of human resource capacity | B43: Professional services rendered at no cost supporting socio-economic development, sector specific initiatives or Qualifying Socio-Economic Development Contributions | C43: Commercial hourly rate of professional | D43: Commercial Rate | E43: 0.8
B44: Professional services rendered at a discount supporting socio-economic development, sector specific initiatives or Qualifying Socio-Economic Development Contributions | C44: Value of discount based on commercial hourly rate of professional | D44: Prof Discount | E44: 0.8
B45: Time of employees of Measured Entity productively deployed in assisting beneficiaries and supporting socio-economic development, sector specific initiatives or Qualifying Socio-Economic Development Contributions | C45: Monthly salary divided by 160 | D45: Salary | E45: 0.8
